Workbook

Sheet Title Page
B8: Final Standardised Metering Pricing Model
B10: Version | C10: 1.02
B11: Date | C11: 2022-01-14
B14: Status
B16: Notes:
B17: Current model version contains test data.
C19: Locked Sheets Pwd:
B25: Version Summary
B27: Date | C27: Version | D27: Author | E27: Changes
B29: 2022-01-14 | C29: 1.02 | D29: AER | E29: Updates following consultation
B30: 2021-10-25 | C30: 1 | D30: AER | E30: Consultation version (contains anonymised input data)

Sheet Inputs | General
B1: ='Title Page'!B8&" v"&'Title Page'!$C$10 -> Final Standardised Metering Pricing Model v1.02 | V1: Worksheet check: | W1: =IF(COUNTA($X$14:$X$46)=COUNTIF($X14:$X47,"OK"),"OK","Check") -> OK
B2: =MID(CELL("filename",A1),FIND("]",CELL("filename",A1))+1,255) -> Inputs | General | I2: Key: | J2: Input | K2: External Link | M2: Internal Link
B5: 1. Inputs - General
C7: Inputs | D7: Source | E7: Input Format | G7: Value
C8: NSP name | D8: NSP | G8: TasNetworks
C9: Decision stage | D9: NSP | G9: draft
C11: Forecast regulatory control period, first year | D11: NSP | E11: YYYY-YY | G11: 2024-25
C12: Forecast regulatory control period, last year | D12: NSP | G12: =LEFT(FPFirstYear,4)+4&"-"&RIGHT(FPFirstYear,2)+4 -> 2028-29
C14: Regulatory Period Length, Yrs | G14: =LEFT(G12,4)-LEFT(FPFirstYear,4)+1 -> 5
C16: Model Used For (Price Cap or Vic Exit Fees?) | G16: Price Cap
B21: =LEFT('Inputs | General'!B5,1)+1&". Linked Inputs - Inflation" -> 2. Linked Inputs - Inflation
G24: Base year | H24: Regulatory period
C25: Year | E25: Units | G25: =LEFT(H25,4)-1&"-"&RIGHT(H25,2)-1 -> 2023-24 | H25: =FPFirstYear -> 2024-25 | I25: =LEFT(H25,4)+1&"-"&RIGHT(H25,2)+1 -> 2025-26 | J25: =LEFT(I25,4)+1&"-"&RIGHT(I25,2)+1 -> 2026-27 | K25: 2027-28 | L25: 2028-29
C26: Inflation Assumption (CPI % increase) | E26: % | H26: 0.03348252263 | I26: 0.03348252263 | J26: 0.03348252263 | K26: 0.03348252263 | L26: 0.03348252263
C27: Cumulative Inflation Index (CPI end period) | E27: Index | G27: 1 | H27: =G27*(1+H26) -> 1.033482523 | I27: =H27*(1+I26) -> 1.068086125 | J27: =I27*(1+J26) -> 1.103848342 | K27: =J27*(1+K26) -> 1.14080797 | L27: =K27*(1+L26) -> 1.179005098

Sheet Price Cap >

Sheet Inputs | Price Cap
B1: ='Title Page'!B8&" v"&'Title Page'!$C$10 -> Final Standardised Metering Pricing Model v1.02 | N1: DNSP: | O1: =IF('Inputs | General'!$G$16="Exit Fees (Vic)","NOT USED",NSP) -> TasNetworks | U1: Worksheet check: | V1: =IF(COUNTA($W$4:$W$71)=COUNTIF($W4:$W72,"OK"),"OK","Check") -> OK
B2: =MID(CELL("filename",A1),FIND("]",CELL("filename",A1))+1,255) -> Inputs | Price Cap | H2: Key: | I2: Input | J2: External Link | K2: Internal Link
B5: =LEFT('Inputs | General'!B21,1)+1&". Linked Input - Inflation & Discount Rates" -> 3. Linked Input - Inflation & Discount Rates | J5: =IF('Inputs | General'!$G$16="Exit Fees (Vic)","NOT USED","") -> 
B7: Linked Inputs - Discount Rates | G7: Base year | H7: Regulatory period
C8: Year | E8: Units | G8: =LEFT(H8,4)-1&"-"&RIGHT(H8,2)-1 -> 2023-24 | H8: =FPFirstYear -> 2024-25 | I8: =LEFT(H8,4)+1&"-"&RIGHT(H8,2)+1 -> 2025-26 | J8: =LEFT(I8,4)+1&"-"&RIGHT(I8,2)+1 -> 2026-27 | K8: 2027-28 | L8: 2028-29 | N8: Link from PTRM
C9: Nominal Vanilla WACC | E9: % | H9: 0.05706200557 | I9: 0.05779296522 | J9: 0.05852392486 | K9: 0.05925488451 | L9: 0.06031296676
C10: Cumulative Discount Index | E10: Index | G10: 1 | H10: =G10*(1+H9) -> 1.057062006 | I10: =H10*(1+I9) -> 1.118152753 | J10: =I10*(1+J9) -> 1.183591441 | K10: =J10*(1+K9) -> 1.253725015 | L10: =K10*(1+L9) -> 1.32934089
B15: =LEFT(B5,1)+1&". Linked Input - Building Block Revenue Requirements" -> 4. Linked Input - Building Block Revenue Requirements | J15: =IF('Inputs | General'!$G$16="Exit Fees (Vic)","NOT USED","") -> 
B17: Linked Inputs - Unsmoothed revenue requirement
E19: Units | H19: =FPFirstYear -> 2024-25 | I19: =LEFT(H19,4)+1&"-"&RIGHT(H19,2)+1 -> 2025-26 | J19: =LEFT(I19,4)+1&"-"&RIGHT(I19,2)+1 -> 2026-27 | K19: 2027-28 | L19: 2028-29 | N19: Link from PTRM
C20: Return on Capital | E20: $m | H20: 1.598135707 | I20: 1.307852345 | J20: 1.028484784 | K20: 0.7201590959 | L20: 0.3830326526
C21: Return of Capital (regulatory depreciation) | E21: $m | H21: 5.521249246 | I21: 5.056208156 | J21: 5.420167341 | K21: 5.802830659 | L21: 6.205042606
C22: Operating Expenditure | E22: $m | H22: 1.768867834 | I22: 1.875639559 | J22: 2.066775175 | K22: 1.159905427 | L22: 0.8289300136
C23: Revenue Adjustments | E23: $m | H23: 0 | I23: 0 | J23: 0 | K23: 0 | L23: 0
C24: Net Tax Allowance | E24: $m | H24: 0.3802644485 | I24: 0.7779319181 | J24: 0.8082856899 | K24: 0.8397586395 | L24: 0.8723916836
C25: Annual Revenue Requirement (unsmoothed) | E25: $m | H25: =SUM(H20:H24) -> 9.268517236 | I25: =SUM(I20:I24) -> 9.017631977 | J25: =SUM(J20:J24) -> 9.32371299 | K25: =SUM(K20:K24) -> 8.522653822 | L25: =SUM(L20:L24) -> 8.289396956
C27: Non-Capital Component | E27: $m | H27: =H22 -> 1.768867834 | I27: =I22 -> 1.875639559 | J27: =J22 -> 2.066775175 | K27: =K22 -> 1.159905427 | L27: =L22 -> 0.8289300136
C28: Capital Component | E28: $m | H28: =SUM(H20:H21,H23:H24) -> 7.499649401 | I28: =SUM(I20:I21,I23:I24) -> 7.141992419 | J28: =SUM(J20:J21,J23:J24) -> 7.256937815 | K28: =SUM(K20:K21,K23:K24) -> 7.362748395 | L28: =SUM(L20:L21,L23:L24) -> 7.460466943
H29: =(H27+H28=H25)/1 -> 1 | I29: =(I27+I28=I25)/1 -> 0 | J29: 1 | K29: 1 | L29: 1
B31: NPV of unsmoothed revenue requirement
E32: Units | G32: NPV
C33: Non-capital | E33: $m | G33: =SUMPRODUCT($H27:$L27,1/$H$10:$L$10) -> 6.645747867
C34: Capital | E34: $m | G34: =SUMPRODUCT($H28:$L28,1/$H$10:$L$10) -> 31.09825831
C35: Total | E35: $m | G35: =G33+G34 -> 37.74400617
B39: =LEFT(B15,1)+1&". Input - Base Year Tariffs, Base Year Volume & Volume Forecast" -> 5. Input - Base Year Tariffs, Base Year Volume & Volume Forecast
H41: =LEFT(J42,4)-1&"-"&RIGHT(J42,2)-1 -> 2023-24 | I41: =LEFT(J42,4)-1&"-"&RIGHT(J42,2)-1 -> 2023-24 | J41: Volume Forecast
A42: ▼ Table Filters | C42: Tariff # | D42: Tariff name | E42: Application | F42: Tariff Code | G42: Other designation | H42: Base year tariff ($/year) | I42: Base year volume | J42: =FPFirstYear -> 2024-25 | K42: =LEFT(J42,4)+1&"-"&RIGHT(J42,2)+1 -> 2025-26 | L42: =LEFT(K42,4)+1&"-"&RIGHT(K42,2)+1 -> 2026-27 | M42: 2027-28 | N42: 2028-29
C43: Tariff # | D43: Tariff name | E43: Application | F43: Tariff Code | G43: Other designation | H43: Base year tariff ($/year) | I43: Base year volume | J43: F-RP0 | K43: F-RP+1 | L43: F-RP+2 | M43: F-RP+3 | N43: F-RP+4
C44: 1 | D44: Low Voltage Domestic - Single Phase | E44: Non-capital | F44: T01 | G44: Primary | H44: 12.2713 | I44: 117033.75 | J44: 68836.3916 | K44: 20639.0332 | L44: 6602.377863 | M44: 2640.951145 | N44: 1056.380458
C45: 1 | D45: Low Voltage Domestic - Single Phase | E45: Capital | F45: T01 | G45: Primary | H45: 13.5530625 | I45: 362569.6658 | J45: 362569.6658 | K45: 362569.6658 | L45: 362569.6658 | M45: 362569.6658 | N45: 362569.6658
C46: 1 | D46: Low Voltage Domestic - Single Phase | E46: Total | F46: T01 | G46: Primary | H46: =H44+H45 -> 25.8243625
C47: 2 | D47: Low Voltage Domestic - Multi-Phase | E47: Non-capital | F47: T02 | G47: Primary | H47: 25.46715 | I47: 4823.1 | J47: 2836.82955 | K47: 850.5590996 | L47: 272.0918425 | M47: 108.836737 | N47: 43.5346948
C48: 2 | D48: Low Voltage Domestic - Multi-Phase | E48: Capital | F48: T02 | G48: Primary | H48: 28.1357375 | I48: 14941.92705 | J48: 14941.92705 | K48: 14941.92705 | L48: 14941.92705 | M48: 14941.92705 | N48: 14941.92705
C49: 2 | D49: Low Voltage Domestic - Multi-Phase | E49: Total | F49: T02 | G49: Primary | H49: =H47+H48 -> 53.6028875
C50: 3 | D50: Low Voltage Domestic - CT Meter | E50: Non-capital | F50: T03 | G50: Secondary | H50: 31.51875 | I50: 36.9 | J50: 21.70367821 | K50: 6.507356426 | L50: 2.081687916 | M50: 0.8326751664 | N50: 0.3330700666
C51: 3 | D51: Low Voltage Domestic - CT Meter | E51: Capital | F51: T03 | G51: Secondary | H51: 34.8177125 | I51: 114.3159188 | J51: 114.3159188 | K51: 114.3159188 | L51: 114.3159188 | M51: 114.3159188 | N51: 114.3159188
C52: 3 | D52: Low Voltage Domestic - CT Meter | E52: Total | F52: T03 | G52: Secondary | H52: =H50+H51 -> 66.3364625
C53: 4 | D53: Low Voltage Business - Single Phase | E53: Non-capital | F53: T04 | G53: Primary | H53: 12.69155 | I53: 6742.8 | J53: 3965.950175 | K53: 1189.10035 | L53: 380.390387 | M53: 152.1561548 | N53: 60.86246192
C54: 4 | D54: Low Voltage Business - Single Phase | E54: Capital | F54: T04 | G54: Primary | H54: 14.02584375 | I54: 20889.14302 | J54: 20889.14302 | K54: 20889.14302 | L54: 20889.14302 | M54: 20889.14302 | N54: 20889.14302
C55: 4 | D55: Low Voltage Business - Single Phase | E55: Total | F55: T04 | G55: Primary | H55: =H53+H54 -> 26.71739375
C56: 5 | D56: Low Voltage Business - Multi-Phase | E56: Non-capital | F56: T05 | G56: Primary | H56: 25.39360625 | I56: 6865.2 | J56: 4037.942864 | K56: 1210.685727 | L56: 387.2954981 | M56: 154.9181993 | N56: 61.9672797
C57: 5 | D57: Low Voltage Business - Multi-Phase | E57: Capital | F57: T05 | G57: Primary | H57: 28.06219375 | I57: 21268.33729 | J57: 21268.33729 | K57: 21268.33729 | L57: 21268.33729 | M57: 21268.33729 | N57: 21268.33729
A58: ▼ More Rows | C58: 5 | D58: Low Voltage Business - Multi-Phase | E58: Total | F58: T05 | G58: Primary | H58: =H56+H57 -> 53.4558
C59: 6 | D59: Low Voltage Business - CT Meter | E59: Non-capital | F59: T06 | G59: Secondary | H59: 32.8425375 | I59: 784.35 | J59: 461.3355015 | K59: 138.321003 | L59: 44.24856144 | M59: 17.69942457 | N59: 7.07976983
C60: 6 | D60: Low Voltage Business - CT Meter | E60: Capital | F60: T06 | G60: Secondary | H60: 36.27808125 | I60: 2429.910324 | J60: 2429.910324 | K60: 2429.910324 | L60: 2429.910324 | M60: 2429.910324 | N60: 2429.910324
C61: 6 | D61: Low Voltage Business - CT Meter | E61: Total | F61: T06 | G61: Secondary | H61: =H59+H60 -> 69.12061875
C62: 7 | D62: Other | E62: Non-capital | F62: T09 | G62: Secondary | H62: 22.40983125 | I62: 6517.35 | J62: 3833.345995 | K62: 1149.341989 | L62: 367.6717816 | M62: 147.0687126 | N62: 58.82748505
C63: 7 | D63: Other | E63: Capital | F63: T09 | G63: Secondary | H63: 24.752725 | I63: 20190.70064 | J63: 20190.70064 | K63: 20190.70064 | L63: 20190.70064 | M63: 20190.70064 | N63: 20190.70064
C64: 7 | D64: Other | E64: Total | F64: T09 | G64: Secondary | H64: =H62+H63 -> 47.16255625
C65: 8 | D65: =D66 -> 0 | E65: Non-capital | F65: =F66 -> 0 | G65: 0
C66: 8 | D66: 0 | E66: Capital | F66: 0 | G66: 0
C67: 8 | D67: 0 | E67: Total | F67: 0 | G67: 0 | H67: =H65+H66 -> 0
C68: 9 | D68: =D69 -> 0 | E68: Non-capital | F68: =F69 -> 0 | G68: 0
C69: 9 | D69: 0 | E69: Capital | F69: 0 | G69: 0
C70: 9 | D70: 0 | E70: Total | F70: 0 | G70: 0 | H70: =H68+H69 -> 0
C71: 10 | D71: =D72 -> 0 | E71: Non-capital | F71: =F72 -> 0 | G71: 0
C72: 10 | D72: 0 | E72: Capital | F72: 0 | G72: 0
C73: 10 | D73: 0 | E73: Total | F73: 0 | G73: 0 | H73: =H71+H72 -> 0
C74: 11 | D74: =D75 -> 0 | E74: Non-capital | F74: =F75 -> 0 | G74: 0
C75: 11 | D75: 0 | E75: Capital | F75: 0 | G75: 0
C76: 11 | D76: 0 | E76: Total | F76: 0 | G76: 0 | H76: =H74+H75 -> 0
C77: 12 | D77: =D78 -> 0 | E77: Non-capital | F77: =F78 -> 0 | G77: 0
C78: 12 | D78: 0 | E78: Capital | F78: 0 | G78: 0
C79: 12 | D79: 0 | E79: Total | F79: 0 | G79: 0 | H79: =H77+H78 -> 0
C80: 13 | D80: =D81 -> 0 | E80: Non-capital | F80: =F81 -> 0 | G80: 0
C81: 13 | D81: 0 | E81: Capital | F81: 0 | G81: 0
C82: 13 | D82: 0 | E82: Total | F82: 0 | G82: 0 | H82: =H80+H81 -> 0
C83: 14 | D83: =D84 -> 0 | E83: Non-capital | F83: =F84 -> 0 | G83: 0
C84: 14 | D84: 0 | E84: Capital | F84: 0 | G84: 0
C85: 14 | D85: 0 | E85: Total | F85: 0 | G85: 0 | H85: =H83+H84 -> 0
C86: 15 | D86: =D87 -> 0 | E86: Non-capital | F86: =F87 -> 0 | G86: 0
C87: 15 | D87: 0 | E87: Capital | F87: 0 | G87: 0
C88: 15 | D88: 0 | E88: Total | F88: 0 | G88: 0 | H88: =H86+H87 -> 0
D90: Total | E90: Non-capital | I90: =SUMIFS(Table4[Base year volume],Table4[[Application]:[Application]],$E90) -> 142803.45 | J90: =SUMIFS(Table4[F-RP0],Table4[[Application]:[Application]],$E90) -> 83993.49936 | K90: =SUMIFS(Table4[F-RP+1],Table4[[Application]:[Application]],$E90) -> 25183.54873 | L90: =SUMIFS(Table4[F-RP+2],Table4[[Application]:[Application]],$E90) -> 8056.157622 | M90: =SUMIFS(Table4[F-RP+3],Table4[[Application]:[Application]],$E90) -> 3222.463049 | N90: =SUMIFS(Table4[F-RP+4],Table4[[Application]:[Application]],$E90) -> 1288.985219
D91: Total | E91: Capital | I91: =SUMIFS(Table4[Base year volume],Table4[[Application]:[Application]],$E91) -> 442404 | J91: =SUMIFS(Table4[F-RP0],Table4[[Application]:[Application]],$E91) -> 442404 | K91: =SUMIFS(Table4[F-RP+1],Table4[[Application]:[Application]],$E91) -> 442404 | L91: =SUMIFS(Table4[F-RP+2],Table4[[Application]:[Application]],$E91) -> 442404 | M91: =SUMIFS(Table4[F-RP+3],Table4[[Application]:[Application]],$E91) -> 442404 | N91: =SUMIFS(Table4[F-RP+4],Table4[[Application]:[Application]],$E91) -> 442404
B95: =LEFT(B39,1)+1&". Set X-Factors" -> 6. Set X-Factors
A97: Price cap calculation
B99: 1: Non-capital
C101: Unsmoothed - Annual Revenue Requirement | E101: ='Calc | Price Cap'!I59/10^6 -> 1.991696985 | F101: ='Inputs | Price Cap'!H27 -> 1.768867834 | G101: ='Inputs | Price Cap'!I27 -> 1.875639559 | H101: ='Inputs | Price Cap'!J27 -> 2.066775175 | I101: ='Inputs | Price Cap'!K27 -> 1.159905427 | J101: ='Inputs | Price Cap'!L27 -> 0.8289300136 | L101: ='Inputs | Price Cap'!G33 -> 6.645747867 | M101: NPV (unsmoothed)
F103: =F106-E101 -> -0.1996759244 | G103: First year difference ($m) | L103: =J101-I101 -> -0.3309754133 | M103: Final year difference ($m)
F104: =(F106/E101)-1 -> -0.1002541681 | G104: First year difference (%) | L104: =(J101/I101)-1 -> -0.2853468961 | M104: Final year difference (%)
C106: Smoothed - Expected Revenue | E106: ='Calc | Price Cap'!I59/10^6 -> 1.991696985 | F106: ='Calc | Price Cap'!J59/10^6 -> 1.792021061 | G106: ='Calc | Price Cap'!K59/10^6 -> 1.887871058 | H106: ='Calc | Price Cap'!L59/10^6 -> 2.04720779 | I106: ='Calc | Price Cap'!M59/10^6 -> 1.142504563 | J106: ='Calc | Price Cap'!N59/10^6 -> 0.8123640237 | L106: =SUMPRODUCT($F106:$J106,1/'Inputs | Price Cap'!$H$10:$L$10) -> 6.635716916 | M106: NPV (smoothed)
C108: X Factors | F108: P_0 | G108: X_02 | H108: X_03 | I108: X_04 | J108: X_05
C109: positive P0, X imply real decrease in price/ revenue constraint | F109: -0.48 | G109: -2.4 | H109: -2.28 | I109: -0.35 | J109: -0.72 | L109: =L101-L106 -> 0.01003095058 | M109: NPV difference (smoothed vs unsmoothed)
B115: 2: Capital
C117: Unsmoothed - Annual Revenue Requirement | E117: ='Calc | Price Cap'!I60/10^6 -> 6.815006487 | F117: ='Inputs | Price Cap'!H28 -> 7.499649401 | G117: ='Inputs | Price Cap'!I28 -> 7.141992419 | H117: ='Inputs | Price Cap'!J28 -> 7.256937815 | I117: ='Inputs | Price Cap'!K28 -> 7.362748395 | J117: ='Inputs | Price Cap'!L28 -> 7.460466943 | L117: ='Inputs | Price Cap'!G34 -> 31.09825831 | M117: NPV (unsmoothed)
F119: =F122-E117 -> 0.1767476759 | G119: First year difference ($m) | L119: =J117-I117 -> 0.09771854797 | M119: Final year difference ($m)
F120: =(F122/E117)-1 -> 0.02593507082 | G120: First year difference (%) | L120: =(J117/I117)-1 -> 0.01327202055 | M120: Final year difference (%)
C122: Smoothed - Expected Revenue | E122: ='Calc | Price Cap'!I60/10^6 -> 6.815006487 | F122: ='Calc | Price Cap'!J60/10^6 -> 6.991754163 | G122: ='Calc | Price Cap'!K60/10^6 -> 7.172955113 | H122: ='Calc | Price Cap'!L60/10^6 -> 7.359169555 | I122: ='Calc | Price Cap'!M60/10^6 -> 7.550221024 | J122: ='Calc | Price Cap'!N60/10^6 -> 7.746285985 | L122: =SUMPRODUCT($F122:$J122,1/'Inputs | Price Cap'!$H$10:$L$10) -> 31.09638581 | M122: NPV (smoothed)
C124: X Factors | F124: P_0 | G124: X_02 | H124: X_03 | I124: X_04 | J124: X_05
C125: positive P0, X imply real decrease in price/ revenue constraint | F125: 0.0071 | G125: 0.0073 | H125: 0.0073 | I125: 0.0073 | J125: 0.0073 | L125: =L117-L122 -> 0.00187249366 | M125: NPV difference (smoothed vs unsmoothed)

Sheet Calc | Price Cap
B1: ='Title Page'!B8&" v"&'Title Page'!$C$10 -> Final Standardised Metering Pricing Model v1.02 | M1: DNSP: | N1: =IF('Inputs | General'!$G$16="Exit Fees (Vic)","NOT USED",NSP) -> TasNetworks
B2: =MID(CELL("filename",A1),FIND("]",CELL("filename",A1))+1,255) -> Calc | Price Cap | H2: Key: | I2: Input | J2: External Link | K2: Internal Link
B5: Annual Charges Calculations
B7: Annual Smoothed Revenue Calculation
I8: Base Year Revenue | J8: Annual Revenue
A9: ▼ Table Filters | C9: Tariff # | D9: Tariff name | E9: Application | F9: Tariff Code | G9: Other designation | I9: =LEFT(J9,4)-1&"-"&RIGHT(J9,2)-1 -> 2023-24 | J9: =FPFirstYear -> 2024-25 | K9: =LEFT(J9,4)+1&"-"&RIGHT(J9,2)+1 -> 2025-26 | L9: =LEFT(K9,4)+1&"-"&RIGHT(K9,2)+1 -> 2026-27 | M9: 2027-28 | N9: 2028-29
C10: Tariff # | D10: Tariff name | E10: Application | F10: Tariff Code | G10: Other designation | H10: Column1 | I10: F-RP-1 | J10: F-RP0 | K10: F-RP+1 | L10: F-RP+2 | M10: F-RP+3 | N10: F-RP+4
C11: 1 | D11: ='Inputs | Price Cap'!D44 -> Low Voltage Domestic - Single Phase | E11: Non-capital | F11: ='Inputs | Price Cap'!F44 -> T01 | G11: ='Inputs | Price Cap'!G44 -> Primary | I11: ='Output | Price Caps'!$I9*'Inputs | Price Cap'!I44 -> 1436004.113 | J11: ='Output | Price Caps'!J9*'Inputs | Price Cap'!J44 -> 1292059.07 | K11: ='Output | Price Caps'!K9*'Inputs | Price Cap'!K44 -> 1361144.24 | L11: ='Output | Price Caps'!L9*'Inputs | Price Cap'!L44 -> 1476027.595 | M11: ='Output | Price Caps'!M9*'Inputs | Price Cap'!M44 -> 823739.0717 | N11: ='Output | Price Caps'!N9*'Inputs | Price Cap'!N44 -> 585710.145
C12: 1 | D12: ='Inputs | Price Cap'!D45 -> Low Voltage Domestic - Single Phase | E12: Capital | F12: ='Inputs | Price Cap'!F45 -> T01 | G12: ='Inputs | Price Cap'!G45 -> Primary | I12: ='Output | Price Caps'!$I10*'Inputs | Price Cap'!I45 -> 4912818.971 | J12: ='Output | Price Caps'!J10*'Inputs | Price Cap'!J45 -> 5039718.354 | K12: ='Output | Price Caps'!K10*'Inputs | Price Cap'!K45 -> 5170243.434 | L12: ='Output | Price Caps'!L10*'Inputs | Price Cap'!L45 -> 5304394.21 | M12: ='Output | Price Caps'!M10*'Inputs | Price Cap'!M45 -> 5442170.683 | N12: ='Output | Price Caps'!N10*'Inputs | Price Cap'!N45 -> 5583572.853
C13: 1 | D13: ='Inputs | Price Cap'!D46 -> Low Voltage Domestic - Single Phase | E13: Total | F13: ='Inputs | Price Cap'!F46 -> T01 | G13: ='Inputs | Price Cap'!G46 -> Primary | I13: =I11+I12 -> 6348823.083 | J13: 6331777.424 | K13: 6531387.673 | L13: 6780421.805 | M13: 6265909.755 | N13: 6169282.998
C14: 2 | D14: ='Inputs | Price Cap'!D47 -> Low Voltage Domestic - Multi-Phase | E14: Non-capital | F14: ='Inputs | Price Cap'!F47 -> T02 | G14: ='Inputs | Price Cap'!G47 -> Primary | I14: ='Output | Price Caps'!$I12*'Inputs | Price Cap'!I47 -> 122844.357 | J14: ='Output | Price Caps'!J12*'Inputs | Price Cap'!J47 -> 110522.8793 | K14: ='Output | Price Caps'!K12*'Inputs | Price Cap'!K47 -> 116441.5407 | L14: ='Output | Price Caps'!L12*'Inputs | Price Cap'!L47 -> 126269.6613 | M14: ='Output | Price Caps'!M12*'Inputs | Price Cap'!M47 -> 70468.5221 | N14: ='Output | Price Caps'!N12*'Inputs | Price Cap'!N47 -> 50105.82163
C15: 2 | D15: ='Inputs | Price Cap'!D48 -> Low Voltage Domestic - Multi-Phase | E15: Capital | F15: ='Inputs | Price Cap'!F48 -> T02 | G15: ='Inputs | Price Cap'!G48 -> Primary | I15: ='Output | Price Caps'!$I13*'Inputs | Price Cap'!I48 -> 420465.8272 | J15: ='Output | Price Caps'!J13*'Inputs | Price Cap'!J48 -> 431522.8532 | K15: ='Output | Price Caps'!K13*'Inputs | Price Cap'!K48 -> 442729.2985 | L15: ='Output | Price Caps'!L13*'Inputs | Price Cap'!L48 -> 454234.5823 | M15: ='Output | Price Caps'!M13*'Inputs | Price Cap'!M48 -> 466038.7047 | N15: ='Output | Price Caps'!N13*'Inputs | Price Cap'!N48 -> 478141.6656
C16: 2 | D16: ='Inputs | Price Cap'!D49 -> Low Voltage Domestic - Multi-Phase | E16: Total | F16: ='Inputs | Price Cap'!F49 -> T02 | G16: ='Inputs | Price Cap'!G49 -> Primary | I16: =I14+I15 -> 543310.1842 | J16: 542045.7325 | K16: 559170.8392 | L16: 580504.2437 | M16: 536507.2268 | N16: 528247.4872
C17: 3 | D17: ='Inputs | Price Cap'!D50 -> Low Voltage Domestic - CT Meter | E17: Non-capital | F17: ='Inputs | Price Cap'!F50 -> T03 | G17: ='Inputs | Price Cap'!G50 -> Secondary | I17: ='Output | Price Caps'!$I15*'Inputs | Price Cap'!I50 -> 1163.088 | J17: ='Output | Price Caps'!J15*'Inputs | Price Cap'!J50 -> 1046.334327 | K17: ='Output | Price Caps'!K15*'Inputs | Price Cap'!K50 -> 1102.346178 | L17: ='Output | Price Caps'!L15*'Inputs | Price Cap'!L50 -> 1195.388469 | M17: ='Output | Price Caps'!M15*'Inputs | Price Cap'!M50 -> 667.1226898 | N17: ='Output | Price Caps'!N15*'Inputs | Price Cap'!N50 -> 474.3483967
C18: 3 | D18: ='Inputs | Price Cap'!D51 -> Low Voltage Domestic - CT Meter | E18: Capital | F18: ='Inputs | Price Cap'!F51 -> T03 | G18: ='Inputs | Price Cap'!G51 -> Secondary | I18: ='Output | Price Caps'!$I16*'Inputs | Price Cap'!I51 -> 3980.480294 | J18: ='Output | Price Caps'!J16*'Inputs | Price Cap'!J51 -> 4084.50778 | K18: ='Output | Price Caps'!K16*'Inputs | Price Cap'!K51 -> 4190.821585 | L18: ='Output | Price Caps'!L16*'Inputs | Price Cap'!L51 -> 4299.421708 | M18: ='Output | Price Caps'!M16*'Inputs | Price Cap'!M51 -> 4411.451308 | N18: ='Output | Price Caps'!N16*'Inputs | Price Cap'!N51 -> 4525.767227
C19: 3 | D19: ='Inputs | Price Cap'!D52 -> Low Voltage Domestic - CT Meter | E19: Total | F19: ='Inputs | Price Cap'!F52 -> T03 | G19: ='Inputs | Price Cap'!G52 -> Secondary | I19: =I17+I18 -> 5143.568294 | J19: 5130.842107 | K19: 5293.167763 | L19: 5494.810176 | M19: 5078.573998 | N19: 5000.115624
C20: 4 | D20: ='Inputs | Price Cap'!D53 -> Low Voltage Business - Single Phase | E20: Non-capital | F20: ='Inputs | Price Cap'!F53 -> T04 | G20: ='Inputs | Price Cap'!G53 -> Primary | I20: ='Output | Price Caps'!$I18*'Inputs | Price Cap'!I53 -> 85566.132 | J20: ='Output | Price Caps'!J18*'Inputs | Price Cap'!J53 -> 76979.09289 | K20: ='Output | Price Caps'!K18*'Inputs | Price Cap'!K53 -> 81096.64385 | L20: ='Output | Price Caps'!L18*'Inputs | Price Cap'!L53 -> 87942.45357 | M20: ='Output | Price Caps'!M18*'Inputs | Price Cap'!M53 -> 49079.48929 | N20: ='Output | Price Caps'!N18*'Inputs | Price Cap'!N53 -> 34897.31842
C21: 4 | D21: ='Inputs | Price Cap'!D54 -> Low Voltage Business - Single Phase | E21: Capital | F21: ='Inputs | Price Cap'!F54 -> T04 | G21: ='Inputs | Price Cap'!G54 -> Primary | I21: ='Output | Price Caps'!$I19*'Inputs | Price Cap'!I54 -> 293074.6766 | J21: ='Output | Price Caps'!J19*'Inputs | Price Cap'!J54 -> 300803.6595 | K21: ='Output | Price Caps'!K19*'Inputs | Price Cap'!K54 -> 308532.6424 | L21: ='Output | Price Caps'!L19*'Inputs | Price Cap'!L54 -> 316470.5168 | M21: ='Output | Price Caps'!M19*'Inputs | Price Cap'!M54 -> 324617.2826 | N21: ='Output | Price Caps'!N19*'Inputs | Price Cap'!N54 -> 332972.9398
C22: 4 | D22: ='Inputs | Price Cap'!D55 -> Low Voltage Business - Single Phase | E22: Total | F22: ='Inputs | Price Cap'!F55 -> T04 | G22: ='Inputs | Price Cap'!G55 -> Primary | I22: =I20+I21 -> 378640.8086 | J22: 377782.7524 | K22: 389629.2863 | L22: 404412.9704 | M22: 373696.7719 | N22: 367870.2582
C23: 5 | D23: ='Inputs | Price Cap'!D56 -> Low Voltage Business - Multi-Phase | E23: Non-capital | F23: ='Inputs | Price Cap'!F56 -> T05 | G23: ='Inputs | Price Cap'!G56 -> Primary | I23: ='Output | Price Caps'!$I21*'Inputs | Price Cap'!I56 -> 174307.428 | J23: ='Output | Price Caps'!J21*'Inputs | Price Cap'!J56 -> 156833.7008 | K23: ='Output | Price Caps'!K21*'Inputs | Price Cap'!K56 -> 165234.388 | L23: ='Output | Price Caps'!L21*'Inputs | Price Cap'!L56 -> 179178.3893 | M23: ='Output | Price Caps'!M21*'Inputs | Price Cap'!M56 -> 99996.59926 | N23: ='Output | Price Caps'!N21*'Inputs | Price Cap'!N56 -> 71101.25673
C24: 5 | D24: ='Inputs | Price Cap'!D57 -> Low Voltage Business - Multi-Phase | E24: Capital | F24: ='Inputs | Price Cap'!F57 -> T05 | G24: ='Inputs | Price Cap'!G57 -> Primary | I24: ='Output | Price Caps'!$I22*'Inputs | Price Cap'!I57 -> 596789.5444 | J24: ='Output | Price Caps'!J22*'Inputs | Price Cap'!J57 -> 612315.4306 | K24: ='Output | Price Caps'!K22*'Inputs | Price Cap'!K57 -> 628266.6836 | L24: ='Output | Price Caps'!L22*'Inputs | Price Cap'!L57 -> 644643.3033 | M24: ='Output | Price Caps'!M22*'Inputs | Price Cap'!M57 -> 661445.2897 | N24: ='Output | Price Caps'!N22*'Inputs | Price Cap'!N57 -> 678672.6429
A25: ▼ More Rows | C25: 5 | D25: ='Inputs | Price Cap'!D58 -> Low Voltage Business - Multi-Phase | E25: Total | F25: ='Inputs | Price Cap'!F58 -> T05 | G25: ='Inputs | Price Cap'!G58 -> Primary | I25: =I23+I24 -> 771096.9724 | J25: 769149.1314 | K25: 793501.0716 | L25: 823821.6925 | M25: 761441.889 | N25: 749773.8997
C26: 6 | D26: ='Inputs | Price Cap'!D59 -> Low Voltage Business - CT Meter | E26: Non-capital | F26: ='Inputs | Price Cap'!F59 -> T06 | G26: ='Inputs | Price Cap'!G59 -> Secondary | I26: ='Output | Price Caps'!$I24*'Inputs | Price Cap'!I59 -> 25758.054 | J26: ='Output | Price Caps'!J24*'Inputs | Price Cap'!J59 -> 23172.88224 | K26: ='Output | Price Caps'!K24*'Inputs | Price Cap'!K59 -> 24413.65704 | L26: ='Output | Price Caps'!L24*'Inputs | Price Cap'!L59 -> 26473.91431 | M26: ='Output | Price Caps'!M24*'Inputs | Price Cap'!M59 -> 14774.59466 | N26: ='Output | Price Caps'!N24*'Inputs | Price Cap'!N59 -> 10505.24566
C27: 6 | D27: ='Inputs | Price Cap'!D60 -> Low Voltage Business - CT Meter | E27: Capital | F27: ='Inputs | Price Cap'!F60 -> T06 | G27: ='Inputs | Price Cap'!G60 -> Secondary | I27: ='Output | Price Caps'!$I25*'Inputs | Price Cap'!I60 -> 88157.14654 | J27: ='Output | Price Caps'!J25*'Inputs | Price Cap'!J60 -> 90465.56135 | K27: ='Output | Price Caps'!K25*'Inputs | Price Cap'!K60 -> 92822.57436 | L27: ='Output | Price Caps'!L25*'Inputs | Price Cap'!L60 -> 95228.18558 | M27: ='Output | Price Caps'!M25*'Inputs | Price Cap'!M60 -> 97706.69411 | N27: ='Output | Price Caps'!N25*'Inputs | Price Cap'!N60 -> 100233.8008
C28: 6 | D28: ='Inputs | Price Cap'!D61 -> Low Voltage Business - CT Meter | E28: Total | F28: ='Inputs | Price Cap'!F61 -> T06 | G28: ='Inputs | Price Cap'!G61 -> Secondary | I28: =I26+I27 -> 113915.2005 | J28: 113638.4436 | K28: 117236.2314 | L28: 121702.0999 | M28: 112481.2888 | N28: 110739.0465
C29: 7 | D29: ='Inputs | Price Cap'!D62 -> Other | E29: Non-capital | F29: ='Inputs | Price Cap'!F62 -> T09 | G29: ='Inputs | Price Cap'!G62 -> Secondary | I29: ='Output | Price Caps'!$I27*'Inputs | Price Cap'!I62 -> 146053.8135 | J29: ='Output | Price Caps'!J27*'Inputs | Price Cap'!J62 -> 131407.1007 | K29: ='Output | Price Caps'!K27*'Inputs | Price Cap'!K62 -> 138438.2426 | L29: ='Output | Price Caps'!L27*'Inputs | Price Cap'!L62 -> 150120.3884 | M29: ='Output | Price Caps'!M27*'Inputs | Price Cap'!M62 -> 83779.16283 | N29: ='Output | Price Caps'!N27*'Inputs | Price Cap'!N62 -> 59569.88791
C30: 7 | D30: ='Inputs | Price Cap'!D63 -> Other | E30: Capital | F30: ='Inputs | Price Cap'!F63 -> T09 | G30: ='Inputs | Price Cap'!G63 -> Secondary | I30: ='Output | Price Caps'!$I28*'Inputs | Price Cap'!I63 -> 499719.8409 | J30: ='Output | Price Caps'!J28*'Inputs | Price Cap'!J63 -> 512843.7963 | K30: ='Output | Price Caps'!K28*'Inputs | Price Cap'!K63 -> 526169.6587 | L30: ='Output | Price Caps'!L28*'Inputs | Price Cap'!L63 -> 539899.3351 | M30: ='Output | Price Caps'!M28*'Inputs | Price Cap'!M63 -> 553830.9186 | N30: ='Output | Price Caps'!N28*'Inputs | Price Cap'!N63 -> 568166.316
C31: 7 | D31: ='Inputs | Price Cap'!D64 -> Other | E31: Total | F31: ='Inputs | Price Cap'!F64 -> T09 | G31: ='Inputs | Price Cap'!G64 -> Secondary | I31: =I29+I30 -> 645773.6544 | J31: 644250.897 | K31: 664607.9013 | L31: 690019.7235 | M31: 637610.0814 | N31: 627736.2039
C32: 8 | D32: ='Inputs | Price Cap'!D65 -> 0 | E32: Non-capital | F32: ='Inputs | Price Cap'!F65 -> 0 | G32: ='Inputs | Price Cap'!G65 -> 0 | I32: ='Output | Price Caps'!$I30*'Inputs | Price Cap'!I65 -> 0 | J32: ='Output | Price Caps'!J30*'Inputs | Price Cap'!J65 -> 0 | K32: ='Output | Price Caps'!K30*'Inputs | Price Cap'!K65 -> 0 | L32: ='Output | Price Caps'!L30*'Inputs | Price Cap'!L65 -> 0 | M32: ='Output | Price Caps'!M30*'Inputs | Price Cap'!M65 -> 0 | N32: ='Output | Price Caps'!N30*'Inputs | Price Cap'!N65 -> 0
C33: 8 | D33: ='Inputs | Price Cap'!D66 -> 0 | E33: Capital | F33: ='Inputs | Price Cap'!F66 -> 0 | G33: ='Inputs | Price Cap'!G66 -> 0 | I33: ='Output | Price Caps'!$I31*'Inputs | Price Cap'!I66 -> 0 | J33: ='Output | Price Caps'!J31*'Inputs | Price Cap'!J66 -> 0 | K33: ='Output | Price Caps'!K31*'Inputs | Price Cap'!K66 -> 0 | L33: ='Output | Price Caps'!L31*'Inputs | Price Cap'!L66 -> 0 | M33: ='Output | Price Caps'!M31*'Inputs | Price Cap'!M66 -> 0 | N33: ='Output | Price Caps'!N31*'Inputs | Price Cap'!N66 -> 0
C34: 8 | D34: ='Inputs | Price Cap'!D67 -> 0 | E34: Total | F34: ='Inputs | Price Cap'!F67 -> 0 | G34: ='Inputs | Price Cap'!G67 -> 0 | I34: =I32+I33 -> 0 | J34: 0 | K34: 0 | L34: 0 | M34: 0 | N34: 0
C35: 9 | D35: ='Inputs | Price Cap'!D68 -> 0 | E35: Non-capital | F35: ='Inputs | Price Cap'!F68 -> 0 | G35: ='Inputs | Price Cap'!G68 -> 0 | I35: ='Output | Price Caps'!$I33*'Inputs | Price Cap'!I68 -> 0 | J35: ='Output | Price Caps'!J33*'Inputs | Price Cap'!J68 -> 0 | K35: ='Output | Price Caps'!K33*'Inputs | Price Cap'!K68 -> 0 | L35: ='Output | Price Caps'!L33*'Inputs | Price Cap'!L68 -> 0 | M35: ='Output | Price Caps'!M33*'Inputs | Price Cap'!M68 -> 0 | N35: ='Output | Price Caps'!N33*'Inputs | Price Cap'!N68 -> 0
C36: 9 | D36: ='Inputs | Price Cap'!D69 -> 0 | E36: Capital | F36: ='Inputs | Price Cap'!F69 -> 0 | G36: ='Inputs | Price Cap'!G69 -> 0 | I36: ='Output | Price Caps'!$I34*'Inputs | Price Cap'!I69 -> 0 | J36: ='Output | Price Caps'!J34*'Inputs | Price Cap'!J69 -> 0 | K36: ='Output | Price Caps'!K34*'Inputs | Price Cap'!K69 -> 0 | L36: ='Output | Price Caps'!L34*'Inputs | Price Cap'!L69 -> 0 | M36: ='Output | Price Caps'!M34*'Inputs | Price Cap'!M69 -> 0 | N36: ='Output | Price Caps'!N34*'Inputs | Price Cap'!N69 -> 0
C37: 9 | D37: ='Inputs | Price Cap'!D70 -> 0 | E37: Total | F37: ='Inputs | Price Cap'!F70 -> 0 | G37: ='Inputs | Price Cap'!G70 -> 0 | I37: =I35+I36 -> 0 | J37: 0 | K37: 0 | L37: 0 | M37: 0 | N37: 0
C38: 10 | D38: ='Inputs | Price Cap'!D71 -> 0 | E38: Non-capital | F38: ='Inputs | Price Cap'!F71 -> 0 | G38: ='Inputs | Price Cap'!G71 -> 0 | I38: ='Output | Price Caps'!$I36*'Inputs | Price Cap'!I71 -> 0 | J38: ='Output | Price Caps'!J36*'Inputs | Price Cap'!J71 -> 0 | K38: ='Output | Price Caps'!K36*'Inputs | Price Cap'!K71 -> 0 | L38: ='Output | Price Caps'!L36*'Inputs | Price Cap'!L71 -> 0 | M38: ='Output | Price Caps'!M36*'Inputs | Price Cap'!M71 -> 0 | N38: ='Output | Price Caps'!N36*'Inputs | Price Cap'!N71 -> 0
C39: 10 | D39: ='Inputs | Price Cap'!D72 -> 0 | E39: Capital | F39: ='Inputs | Price Cap'!F72 -> 0 | G39: ='Inputs | Price Cap'!G72 -> 0 | I39: ='Output | Price Caps'!$I37*'Inputs | Price Cap'!I72 -> 0 | J39: ='Output | Price Caps'!J37*'Inputs | Price Cap'!J72 -> 0 | K39: ='Output | Price Caps'!K37*'Inputs | Price Cap'!K72 -> 0 | L39: ='Output | Price Caps'!L37*'Inputs | Price Cap'!L72 -> 0 | M39: ='Output | Price Caps'!M37*'Inputs | Price Cap'!M72 -> 0 | N39: ='Output | Price Caps'!N37*'Inputs | Price Cap'!N72 -> 0
C40: 10 | D40: ='Inputs | Price Cap'!D73 -> 0 | E40: Total | F40: ='Inputs | Price Cap'!F73 -> 0 | G40: ='Inputs | Price Cap'!G73 -> 0 | I40: =I38+I39 -> 0 | J40: 0 | K40: 0 | L40: 0 | M40: 0 | N40: 0
C41: 11 | D41: ='Inputs | Price Cap'!D74 -> 0 | E41: Non-capital | F41: ='Inputs | Price Cap'!F74 -> 0 | G41: ='Inputs | Price Cap'!G74 -> 0 | I41: ='Output | Price Caps'!$I39*'Inputs | Price Cap'!I74 -> 0 | J41: ='Output | Price Caps'!J39*'Inputs | Price Cap'!J74 -> 0 | K41: ='Output | Price Caps'!K39*'Inputs | Price Cap'!K74 -> 0 | L41: ='Output | Price Caps'!L39*'Inputs | Price Cap'!L74 -> 0 | M41: ='Output | Price Caps'!M39*'Inputs | Price Cap'!M74 -> 0 | N41: ='Output | Price Caps'!N39*'Inputs | Price Cap'!N74 -> 0
C42: 11 | D42: ='Inputs | Price Cap'!D75 -> 0 | E42: Capital | F42: ='Inputs | Price Cap'!F75 -> 0 | G42: ='Inputs | Price Cap'!G75 -> 0 | I42: ='Output | Price Caps'!$I40*'Inputs | Price Cap'!I75 -> 0 | J42: ='Output | Price Caps'!J40*'Inputs | Price Cap'!J75 -> 0 | K42: ='Output | Price Caps'!K40*'Inputs | Price Cap'!K75 -> 0 | L42: ='Output | Price Caps'!L40*'Inputs | Price Cap'!L75 -> 0 | M42: ='Output | Price Caps'!M40*'Inputs | Price Cap'!M75 -> 0 | N42: ='Output | Price Caps'!N40*'Inputs | Price Cap'!N75 -> 0
C43: 11 | D43: ='Inputs | Price Cap'!D76 -> 0 | E43: Total | F43: ='Inputs | Price Cap'!F76 -> 0 | G43: ='Inputs | Price Cap'!G76 -> 0 | I43: =I41+I42 -> 0 | J43: 0 | K43: 0 | L43: 0 | M43: 0 | N43: 0
C44: 12 | D44: ='Inputs | Price Cap'!D77 -> 0 | E44: Non-capital | F44: ='Inputs | Price Cap'!F77 -> 0 | G44: ='Inputs | Price Cap'!G77 -> 0 | I44: ='Output | Price Caps'!$I42*'Inputs | Price Cap'!I77 -> 0 | J44: ='Output | Price Caps'!J42*'Inputs | Price Cap'!J77 -> 0 | K44: ='Output | Price Caps'!K42*'Inputs | Price Cap'!K77 -> 0 | L44: ='Output | Price Caps'!L42*'Inputs | Price Cap'!L77 -> 0 | M44: ='Output | Price Caps'!M42*'Inputs | Price Cap'!M77 -> 0 | N44: ='Output | Price Caps'!N42*'Inputs | Price Cap'!N77 -> 0
C45: 12 | D45: ='Inputs | Price Cap'!D78 -> 0 | E45: Capital | F45: ='Inputs | Price Cap'!F78 -> 0 | G45: ='Inputs | Price Cap'!G78 -> 0 | I45: ='Output | Price Caps'!$I43*'Inputs | Price Cap'!I78 -> 0 | J45: ='Output | Price Caps'!J43*'Inputs | Price Cap'!J78 -> 0 | K45: ='Output | Price Caps'!K43*'Inputs | Price Cap'!K78 -> 0 | L45: ='Output | Price Caps'!L43*'Inputs | Price Cap'!L78 -> 0 | M45: ='Output | Price Caps'!M43*'Inputs | Price Cap'!M78 -> 0 | N45: ='Output | Price Caps'!N43*'Inputs | Price Cap'!N78 -> 0
C46: 12 | D46: ='Inputs | Price Cap'!D79 -> 0 | E46: Total | F46: ='Inputs | Price Cap'!F79 -> 0 | G46: ='Inputs | Price Cap'!G79 -> 0 | I46: =I44+I45 -> 0 | J46: 0 | K46: 0 | L46: 0 | M46: 0 | N46: 0
C47: 13 | D47: ='Inputs | Price Cap'!D80 -> 0 | E47: Non-capital | F47: ='Inputs | Price Cap'!F80 -> 0 | G47: ='Inputs | Price Cap'!G80 -> 0 | I47: ='Output | Price Caps'!$I45*'Inputs | Price Cap'!I80 -> 0 | J47: ='Output | Price Caps'!J45*'Inputs | Price Cap'!J80 -> 0 | K47: ='Output | Price Caps'!K45*'Inputs | Price Cap'!K80 -> 0 | L47: ='Output | Price Caps'!L45*'Inputs | Price Cap'!L80 -> 0 | M47: ='Output | Price Caps'!M45*'Inputs | Price Cap'!M80 -> 0 | N47: ='Output | Price Caps'!N45*'Inputs | Price Cap'!N80 -> 0
C48: 13 | D48: ='Inputs | Price Cap'!D81 -> 0 | E48: Capital | F48: ='Inputs | Price Cap'!F81 -> 0 | G48: ='Inputs | Price Cap'!G81 -> 0 | I48: ='Output | Price Caps'!$I46*'Inputs | Price Cap'!I81 -> 0 | J48: ='Output | Price Caps'!J46*'Inputs | Price Cap'!J81 -> 0 | K48: ='Output | Price Caps'!K46*'Inputs | Price Cap'!K81 -> 0 | L48: ='Output | Price Caps'!L46*'Inputs | Price Cap'!L81 -> 0 | M48: ='Output | Price Caps'!M46*'Inputs | Price Cap'!M81 -> 0 | N48: ='Output | Price Caps'!N46*'Inputs | Price Cap'!N81 -> 0
C49: 13 | D49: ='Inputs | Price Cap'!D82 -> 0 | E49: Total | F49: ='Inputs | Price Cap'!F82 -> 0 | G49: ='Inputs | Price Cap'!G82 -> 0 | I49: =I47+I48 -> 0 | J49: 0 | K49: 0 | L49: 0 | M49: 0 | N49: 0
C50: 14 | D50: ='Inputs | Price Cap'!D83 -> 0 | E50: Non-capital | F50: ='Inputs | Price Cap'!F83 -> 0 | G50: ='Inputs | Price Cap'!G83 -> 0 | I50: ='Output | Price Caps'!$I48*'Inputs | Price Cap'!I83 -> 0 | J50: ='Output | Price Caps'!J48*'Inputs | Price Cap'!J83 -> 0 | K50: ='Output | Price Caps'!K48*'Inputs | Price Cap'!K83 -> 0 | L50: ='Output | Price Caps'!L48*'Inputs | Price Cap'!L83 -> 0 | M50: ='Output | Price Caps'!M48*'Inputs | Price Cap'!M83 -> 0 | N50: ='Output | Price Caps'!N48*'Inputs | Price Cap'!N83 -> 0
C51: 14 | D51: ='Inputs | Price Cap'!D84 -> 0 | E51: Capital | F51: ='Inputs | Price Cap'!F84 -> 0 | G51: ='Inputs | Price Cap'!G84 -> 0 | I51: ='Output | Price Caps'!$I49*'Inputs | Price Cap'!I84 -> 0 | J51: ='Output | Price Caps'!J49*'Inputs | Price Cap'!J84 -> 0 | K51: ='Output | Price Caps'!K49*'Inputs | Price Cap'!K84 -> 0 | L51: ='Output | Price Caps'!L49*'Inputs | Price Cap'!L84 -> 0 | M51: ='Output | Price Caps'!M49*'Inputs | Price Cap'!M84 -> 0 | N51: ='Output | Price Caps'!N49*'Inputs | Price Cap'!N84 -> 0
C52: 14 | D52: ='Inputs | Price Cap'!D85 -> 0 | E52: Total | F52: ='Inputs | Price Cap'!F85 -> 0 | G52: ='Inputs | Price Cap'!G85 -> 0 | I52: =I50+I51 -> 0 | J52: 0 | K52: 0 | L52: 0 | M52: 0 | N52: 0
C53: 15 | D53: ='Inputs | Price Cap'!D86 -> 0 | E53: Non-capital | F53: ='Inputs | Price Cap'!F86 -> 0 | G53: ='Inputs | Price Cap'!G86 -> 0 | I53: ='Output | Price Caps'!$I51*'Inputs | Price Cap'!I86 -> 0 | J53: ='Output | Price Caps'!J51*'Inputs | Price Cap'!J86 -> 0 | K53: ='Output | Price Caps'!K51*'Inputs | Price Cap'!K86 -> 0 | L53: ='Output | Price Caps'!L51*'Inputs | Price Cap'!L86 -> 0 | M53: ='Output | Price Caps'!M51*'Inputs | Price Cap'!M86 -> 0 | N53: ='Output | Price Caps'!N51*'Inputs | Price Cap'!N86 -> 0
C54: 15 | D54: ='Inputs | Price Cap'!D87 -> 0 | E54: Capital | F54: ='Inputs | Price Cap'!F87 -> 0 | G54: ='Inputs | Price Cap'!G87 -> 0 | I54: ='Output | Price Caps'!$I52*'Inputs | Price Cap'!I87 -> 0 | J54: ='Output | Price Caps'!J52*'Inputs | Price Cap'!J87 -> 0 | K54: ='Output | Price Caps'!K52*'Inputs | Price Cap'!K87 -> 0 | L54: ='Output | Price Caps'!L52*'Inputs | Price Cap'!L87 -> 0 | M54: ='Output | Price Caps'!M52*'Inputs | Price Cap'!M87 -> 0 | N54: ='Output | Price Caps'!N52*'Inputs | Price Cap'!N87 -> 0
C55: 15 | D55: ='Inputs | Price Cap'!D88 -> 0 | E55: Total | F55: ='Inputs | Price Cap'!F88 -> 0 | G55: ='Inputs | Price Cap'!G88 -> 0 | I55: =I53+I54 -> 0 | J55: 0 | K55: 0 | L55: 0 | M55: 0 | N55: 0
B57: Total Smoothed Revenue
E58: Application | I58: =LEFT(J58,4)-1&"-"&RIGHT(J58,2)-1 -> 2023-24 | J58: =FPFirstYear -> 2024-25 | K58: =LEFT(J58,4)+1&"-"&RIGHT(J58,2)+1 -> 2025-26 | L58: =LEFT(K58,4)+1&"-"&RIGHT(K58,2)+1 -> 2026-27 | M58: 2027-28 | N58: 2028-29
E59: Non-capital | I59: =SUMIFS('Calc | Price Cap'!I$11:I$55,'Output | Price Caps'!$E$9:$E$53,$E59) -> 1991696.985 | J59: =SUMIFS('Calc | Price Cap'!J$11:J$55,'Output | Price Caps'!$E$9:$E$53,$E59) -> 1792021.061 | K59: =SUMIFS('Calc | Price Cap'!K$11:K$55,'Output | Price Caps'!$E$9:$E$53,$E59) -> 1887871.058 | L59: =SUMIFS('Calc | Price Cap'!L$11:L$55,'Output | Price Caps'!$E$9:$E$53,$E59) -> 2047207.79 | M59: =SUMIFS('Calc | Price Cap'!M$11:M$55,'Output | Price Caps'!$E$9:$E$53,$E59) -> 1142504.563 | N59: =SUMIFS('Calc | Price Cap'!N$11:N$55,'Output | Price Caps'!$E$9:$E$53,$E59) -> 812364.0237
E60: Capital | I60: =SUMIFS('Calc | Price Cap'!I$11:I$55,'Output | Price Caps'!$E$9:$E$53,$E60) -> 6815006.487 | J60: =SUMIFS('Calc | Price Cap'!J$11:J$55,'Output | Price Caps'!$E$9:$E$53,$E60) -> 6991754.163 | K60: =SUMIFS('Calc | Price Cap'!K$11:K$55,'Output | Price Caps'!$E$9:$E$53,$E60) -> 7172955.113 | L60: =SUMIFS('Calc | Price Cap'!L$11:L$55,'Output | Price Caps'!$E$9:$E$53,$E60) -> 7359169.555 | M60: =SUMIFS('Calc | Price Cap'!M$11:M$55,'Output | Price Caps'!$E$9:$E$53,$E60) -> 7550221.024 | N60: =SUMIFS('Calc | Price Cap'!N$11:N$55,'Output | Price Caps'!$E$9:$E$53,$E60) -> 7746285.985
E61: Total | I61: =SUMIFS('Calc | Price Cap'!I$11:I$55,'Output | Price Caps'!$E$9:$E$53,$E61) -> 8806703.472 | J61: =SUMIFS('Calc | Price Cap'!J$11:J$55,'Output | Price Caps'!$E$9:$E$53,$E61) -> 8783775.223 | K61: =SUMIFS('Calc | Price Cap'!K$11:K$55,'Output | Price Caps'!$E$9:$E$53,$E61) -> 9060826.171 | L61: =SUMIFS('Calc | Price Cap'!L$11:L$55,'Output | Price Caps'!$E$9:$E$53,$E61) -> 9406377.345 | M61: =SUMIFS('Calc | Price Cap'!M$11:M$55,'Output | Price Caps'!$E$9:$E$53,$E61) -> 8692725.586 | N61: =SUMIFS('Calc | Price Cap'!N$11:N$55,'Output | Price Caps'!$E$9:$E$53,$E61) -> 8558650.009
I63: =(ROUND(I59+I60,0)=ROUND(I61,0))/1 -> 1 | J63: 1 | K63: 1 | L63: 1 | M63: 1 | N63: 1

Sheet Output | Price Caps
C1: ='Title Page'!B8&" v"&'Title Page'!$C$10 -> Final Standardised Metering Pricing Model v1.02 | N1: DNSP: | O1: =IF('Inputs | General'!$G$16="Exit Fees (Vic)","NOT USED",NSP) -> TasNetworks | U1: Worksheet check: | V1: =IF(COUNTA($W$5:$W$52)=COUNTIF($W5:$W53,"OK"),"OK","Check") -> OK
C2: =MID(CELL("filename",A1),FIND("]",CELL("filename",A1))+1,255) -> Output | Price Caps | H2: Key: | I2: Input | J2: External Link | K2: Internal Link
B5: RESULT - Price Cap - Annual Charges
I6: Base Year Charges | J6: Price Cap - Annual Charges (nominal)
A7: ▼ Table Filters | C7: Tariff # | D7: Tariff name | E7: Application | F7: Tariff Code | G7: Other designation | I7: =LEFT(J7,4)-1&"-"&RIGHT(J7,2)-1 -> 2023-24 | J7: =FPFirstYear -> 2024-25 | K7: =LEFT(J7,4)+1&"-"&RIGHT(J7,2)+1 -> 2025-26 | L7: =LEFT(K7,4)+1&"-"&RIGHT(K7,2)+1 -> 2026-27 | M7: 2027-28 | N7: 2028-29
C8: Tariff # | D8: Tariff name | E8: Application | F8: Tariff Code | G8: Other designation | H8: Ca | I8: F-RP-1 | J8: F-RP0 | K8: F-RP+1 | L8: F-RP+2 | M8: F-RP+3 | N8: F-RP+4 | O8: Column1
C9: 1 | D9: ='Inputs | Price Cap'!D44 -> Low Voltage Domestic - Single Phase | E9: Non-capital | F9: ='Inputs | Price Cap'!F44 -> T01 | G9: ='Inputs | Price Cap'!G44 -> Primary | I9: =ROUND('Inputs | Price Cap'!H44,2) -> 12.27 | J9: =ROUND('Output | Price Caps'!I9*(1-'Inputs | Price Cap'!F$109)*(1+'Inputs | General'!H$26),2) -> 18.77 | K9: =ROUND('Output | Price Caps'!J9*(1-'Inputs | Price Cap'!G$109)*(1+'Inputs | General'!I$26),2) -> 65.95 | L9: =ROUND('Output | Price Caps'!K9*(1-'Inputs | Price Cap'!H$109)*(1+'Inputs | General'!J$26),2) -> 223.56 | M9: =ROUND('Output | Price Caps'!L9*(1-'Inputs | Price Cap'!I$109)*(1+'Inputs | General'!K$26),2) -> 311.91 | N9: =ROUND('Output | Price Caps'!M9*(1-'Inputs | Price Cap'!J$109)*(1+'Inputs | General'!L$26),2) -> 554.45
C10: 1 | D10: ='Inputs | Price Cap'!D45 -> Low Voltage Domestic - Single Phase | E10: Capital | F10: ='Inputs | Price Cap'!F45 -> T01 | G10: ='Inputs | Price Cap'!G45 -> Primary | I10: =ROUND('Inputs | Price Cap'!H45,2) -> 13.55 | J10: =ROUND('Output | Price Caps'!I10*(1-'Inputs | Price Cap'!F$125)*(1+'Inputs | General'!H$26),2) -> 13.9 | K10: =ROUND('Output | Price Caps'!J10*(1-'Inputs | Price Cap'!G$125)*(1+'Inputs | General'!I$26),2) -> 14.26 | L10: =ROUND('Output | Price Caps'!K10*(1-'Inputs | Price Cap'!H$125)*(1+'Inputs | General'!J$26),2) -> 14.63 | M10: =ROUND('Output | Price Caps'!L10*(1-'Inputs | Price Cap'!I$125)*(1+'Inputs | General'!K$26),2) -> 15.01 | N10: =ROUND('Output | Price Caps'!M10*(1-'Inputs | Price Cap'!J$125)*(1+'Inputs | General'!L$26),2) -> 15.4
C11: 1 | D11: ='Inputs | Price Cap'!D46 -> Low Voltage Domestic - Single Phase | E11: Total | F11: ='Inputs | Price Cap'!F46 -> T01 | G11: ='Inputs | Price Cap'!G46 -> Primary | I11: =ROUND('Inputs | Price Cap'!H46,2) -> 25.82 | J11: =J9+J10 -> 32.67 | K11: =K9+K10 -> 80.21 | L11: =L9+L10 -> 238.19 | M11: =M9+M10 -> 326.92 | N11: =N9+N10 -> 569.85
C12: 2 | D12: ='Inputs | Price Cap'!D47 -> Low Voltage Domestic - Multi-Phase | E12: Non-capital | F12: ='Inputs | Price Cap'!F47 -> T02 | G12: ='Inputs | Price Cap'!G47 -> Primary | I12: =ROUND('Inputs | Price Cap'!H47,2) -> 25.47 | J12: =ROUND('Output | Price Caps'!I12*(1-'Inputs | Price Cap'!F$109)*(1+'Inputs | General'!H$26),2) -> 38.96 | K12: =ROUND('Output | Price Caps'!J12*(1-'Inputs | Price Cap'!G$109)*(1+'Inputs | General'!I$26),2) -> 136.9 | L12: =ROUND('Output | Price Caps'!K12*(1-'Inputs | Price Cap'!H$109)*(1+'Inputs | General'!J$26),2) -> 464.07 | M12: =ROUND('Output | Price Caps'!L12*(1-'Inputs | Price Cap'!I$109)*(1+'Inputs | General'!K$26),2) -> 647.47 | N12: =ROUND('Output | Price Caps'!M12*(1-'Inputs | Price Cap'!J$109)*(1+'Inputs | General'!L$26),2) -> 1150.94
C13: 2 | D13: ='Inputs | Price Cap'!D48 -> Low Voltage Domestic - Multi-Phase | E13: Capital | F13: ='Inputs | Price Cap'!F48 -> T02 | G13: ='Inputs | Price Cap'!G48 -> Primary | I13: =ROUND('Inputs | Price Cap'!H48,2) -> 28.14 | J13: =ROUND('Output | Price Caps'!I13*(1-'Inputs | Price Cap'!F$125)*(1+'Inputs | General'!H$26),2) -> 28.88 | K13: =ROUND('Output | Price Caps'!J13*(1-'Inputs | Price Cap'!G$125)*(1+'Inputs | General'!I$26),2) -> 29.63 | L13: =ROUND('Output | Price Caps'!K13*(1-'Inputs | Price Cap'!H$125)*(1+'Inputs | General'!J$26),2) -> 30.4 | M13: =ROUND('Output | Price Caps'!L13*(1-'Inputs | Price Cap'!I$125)*(1+'Inputs | General'!K$26),2) -> 31.19 | N13: =ROUND('Output | Price Caps'!M13*(1-'Inputs | Price Cap'!J$125)*(1+'Inputs | General'!L$26),2) -> 32
C14: 2 | D14: ='Inputs | Price Cap'!D49 -> Low Voltage Domestic - Multi-Phase | E14: Total | F14: ='Inputs | Price Cap'!F49 -> T02 | G14: ='Inputs | Price Cap'!G49 -> Primary | I14: =ROUND('Inputs | Price Cap'!H49,2) -> 53.6 | J14: =J12+J13 -> 67.84 | K14: =K12+K13 -> 166.53 | L14: =L12+L13 -> 494.47 | M14: =M12+M13 -> 678.66 | N14: =N12+N13 -> 1182.94
C15: 3 | D15: ='Inputs | Price Cap'!D50 -> Low Voltage Domestic - CT Meter | E15: Non-capital | F15: ='Inputs | Price Cap'!F50 -> T03 | G15: ='Inputs | Price Cap'!G50 -> Secondary | I15: =ROUND('Inputs | Price Cap'!H50,2) -> 31.52 | J15: =ROUND('Output | Price Caps'!I15*(1-'Inputs | Price Cap'!F$109)*(1+'Inputs | General'!H$26),2) -> 48.21 | K15: =ROUND('Output | Price Caps'!J15*(1-'Inputs | Price Cap'!G$109)*(1+'Inputs | General'!I$26),2) -> 169.4 | L15: =ROUND('Output | Price Caps'!K15*(1-'Inputs | Price Cap'!H$109)*(1+'Inputs | General'!J$26),2) -> 574.24 | M15: =ROUND('Output | Price Caps'!L15*(1-'Inputs | Price Cap'!I$109)*(1+'Inputs | General'!K$26),2) -> 801.18 | N15: =ROUND('Output | Price Caps'!M15*(1-'Inputs | Price Cap'!J$109)*(1+'Inputs | General'!L$26),2) -> 1424.17
C16: 3 | D16: ='Inputs | Price Cap'!D51 -> Low Voltage Domestic - CT Meter | E16: Capital | F16: ='Inputs | Price Cap'!F51 -> T03 | G16: ='Inputs | Price Cap'!G51 -> Secondary | I16: =ROUND('Inputs | Price Cap'!H51,2) -> 34.82 | J16: =ROUND('Output | Price Caps'!I16*(1-'Inputs | Price Cap'!F$125)*(1+'Inputs | General'!H$26),2) -> 35.73 | K16: =ROUND('Output | Price Caps'!J16*(1-'Inputs | Price Cap'!G$125)*(1+'Inputs | General'!I$26),2) -> 36.66 | L16: =ROUND('Output | Price Caps'!K16*(1-'Inputs | Price Cap'!H$125)*(1+'Inputs | General'!J$26),2) -> 37.61 | M16: =ROUND('Output | Price Caps'!L16*(1-'Inputs | Price Cap'!I$125)*(1+'Inputs | General'!K$26),2) -> 38.59 | N16: =ROUND('Output | Price Caps'!M16*(1-'Inputs | Price Cap'!J$125)*(1+'Inputs | General'!L$26),2) -> 39.59
C17: 3 | D17: ='Inputs | Price Cap'!D52 -> Low Voltage Domestic - CT Meter | E17: Total | F17: ='Inputs | Price Cap'!F52 -> T03 | G17: ='Inputs | Price Cap'!G52 -> Secondary | I17: =ROUND('Inputs | Price Cap'!H52,2) -> 66.34 | J17: =J15+J16 -> 83.94 | K17: =K15+K16 -> 206.06 | L17: =L15+L16 -> 611.85 | M17: =M15+M16 -> 839.77 | N17: =N15+N16 -> 1463.76
C18: 4 | D18: ='Inputs | Price Cap'!D53 -> Low Voltage Business - Single Phase | E18: Non-capital | F18: ='Inputs | Price Cap'!F53 -> T04 | G18: ='Inputs | Price Cap'!G53 -> Primary | I18: =ROUND('Inputs | Price Cap'!H53,2) -> 12.69 | J18: =ROUND('Output | Price Caps'!I18*(1-'Inputs | Price Cap'!F$109)*(1+'Inputs | General'!H$26),2) -> 19.41 | K18: =ROUND('Output | Price Caps'!J18*(1-'Inputs | Price Cap'!G$109)*(1+'Inputs | General'!I$26),2) -> 68.2 | L18: =ROUND('Output | Price Caps'!K18*(1-'Inputs | Price Cap'!H$109)*(1+'Inputs | General'!J$26),2) -> 231.19 | M18: =ROUND('Output | Price Caps'!L18*(1-'Inputs | Price Cap'!I$109)*(1+'Inputs | General'!K$26),2) -> 322.56 | N18: =ROUND('Output | Price Caps'!M18*(1-'Inputs | Price Cap'!J$109)*(1+'Inputs | General'!L$26),2) -> 573.38
C19: 4 | D19: ='Inputs | Price Cap'!D54 -> Low Voltage Business - Single Phase | E19: Capital | F19: ='Inputs | Price Cap'!F54 -> T04 | G19: ='Inputs | Price Cap'!G54 -> Primary | I19: =ROUND('Inputs | Price Cap'!H54,2) -> 14.03 | J19: =ROUND('Output | Price Caps'!I19*(1-'Inputs | Price Cap'!F$125)*(1+'Inputs | General'!H$26),2) -> 14.4 | K19: =ROUND('Output | Price Caps'!J19*(1-'Inputs | Price Cap'!G$125)*(1+'Inputs | General'!I$26),2) -> 14.77 | L19: =ROUND('Output | Price Caps'!K19*(1-'Inputs | Price Cap'!H$125)*(1+'Inputs | General'!J$26),2) -> 15.15 | M19: =ROUND('Output | Price Caps'!L19*(1-'Inputs | Price Cap'!I$125)*(1+'Inputs | General'!K$26),2) -> 15.54 | N19: =ROUND('Output | Price Caps'!M19*(1-'Inputs | Price Cap'!J$125)*(1+'Inputs | General'!L$26),2) -> 15.94
C20: 4 | D20: ='Inputs | Price Cap'!D55 -> Low Voltage Business - Single Phase | E20: Total | F20: ='Inputs | Price Cap'!F55 -> T04 | G20: ='Inputs | Price Cap'!G55 -> Primary | I20: =ROUND('Inputs | Price Cap'!H55,2) -> 26.72 | J20: =J18+J19 -> 33.81 | K20: =K18+K19 -> 82.97 | L20: =L18+L19 -> 246.34 | M20: =M18+M19 -> 338.1 | N20: =N18+N19 -> 589.32
C21: 5 | D21: ='Inputs | Price Cap'!D56 -> Low Voltage Business - Multi-Phase | E21: Non-capital | F21: ='Inputs | Price Cap'!F56 -> T05 | G21: ='Inputs | Price Cap'!G56 -> Primary | I21: =ROUND('Inputs | Price Cap'!H56,2) -> 25.39 | J21: =ROUND('Output | Price Caps'!I21*(1-'Inputs | Price Cap'!F$109)*(1+'Inputs | General'!H$26),2) -> 38.84 | K21: =ROUND('Output | Price Caps'!J21*(1-'Inputs | Price Cap'!G$109)*(1+'Inputs | General'!I$26),2) -> 136.48 | L21: =ROUND('Output | Price Caps'!K21*(1-'Inputs | Price Cap'!H$109)*(1+'Inputs | General'!J$26),2) -> 462.64 | M21: =ROUND('Output | Price Caps'!L21*(1-'Inputs | Price Cap'!I$109)*(1+'Inputs | General'!K$26),2) -> 645.48 | N21: =ROUND('Output | Price Caps'!M21*(1-'Inputs | Price Cap'!J$109)*(1+'Inputs | General'!L$26),2) -> 1147.4
C22: 5 | D22: ='Inputs | Price Cap'!D57 -> Low Voltage Business - Multi-Phase | E22: Capital | F22: ='Inputs | Price Cap'!F57 -> T05 | G22: ='Inputs | Price Cap'!G57 -> Primary | I22: =ROUND('Inputs | Price Cap'!H57,2) -> 28.06 | J22: =ROUND('Output | Price Caps'!I22*(1-'Inputs | Price Cap'!F$125)*(1+'Inputs | General'!H$26),2) -> 28.79 | K22: =ROUND('Output | Price Caps'!J22*(1-'Inputs | Price Cap'!G$125)*(1+'Inputs | General'!I$26),2) -> 29.54 | L22: =ROUND('Output | Price Caps'!K22*(1-'Inputs | Price Cap'!H$125)*(1+'Inputs | General'!J$26),2) -> 30.31 | M22: =ROUND('Output | Price Caps'!L22*(1-'Inputs | Price Cap'!I$125)*(1+'Inputs | General'!K$26),2) -> 31.1 | N22: =ROUND('Output | Price Caps'!M22*(1-'Inputs | Price Cap'!J$125)*(1+'Inputs | General'!L$26),2) -> 31.91
C23: 5 | D23: ='Inputs | Price Cap'!D58 -> Low Voltage Business - Multi-Phase | E23: Total | F23: ='Inputs | Price Cap'!F58 -> T05 | G23: ='Inputs | Price Cap'!G58 -> Primary | I23: =ROUND('Inputs | Price Cap'!H58,2) -> 53.46 | J23: =J21+J22 -> 67.63 | K23: =K21+K22 -> 166.02 | L23: =L21+L22 -> 492.95 | M23: =M21+M22 -> 676.58 | N23: =N21+N22 -> 1179.31
C24: 6 | D24: ='Inputs | Price Cap'!D59 -> Low Voltage Business - CT Meter | E24: Non-capital | F24: ='Inputs | Price Cap'!F59 -> T06 | G24: ='Inputs | Price Cap'!G59 -> Secondary | I24: =ROUND('Inputs | Price Cap'!H59,2) -> 32.84 | J24: =ROUND('Output | Price Caps'!I24*(1-'Inputs | Price Cap'!F$109)*(1+'Inputs | General'!H$26),2) -> 50.23 | K24: =ROUND('Output | Price Caps'!J24*(1-'Inputs | Price Cap'!G$109)*(1+'Inputs | General'!I$26),2) -> 176.5 | L24: =ROUND('Output | Price Caps'!K24*(1-'Inputs | Price Cap'!H$109)*(1+'Inputs | General'!J$26),2) -> 598.3 | M24: =ROUND('Output | Price Caps'!L24*(1-'Inputs | Price Cap'!I$109)*(1+'Inputs | General'!K$26),2) -> 834.75 | N24: =ROUND('Output | Price Caps'!M24*(1-'Inputs | Price Cap'!J$109)*(1+'Inputs | General'!L$26),2) -> 1483.84
C25: 6 | D25: ='Inputs | Price Cap'!D60 -> Low Voltage Business - CT Meter | E25: Capital | F25: ='Inputs | Price Cap'!F60 -> T06 | G25: ='Inputs | Price Cap'!G60 -> Secondary | I25: =ROUND('Inputs | Price Cap'!H60,2) -> 36.28 | J25: =ROUND('Output | Price Caps'!I25*(1-'Inputs | Price Cap'!F$125)*(1+'Inputs | General'!H$26),2) -> 37.23 | K25: =ROUND('Output | Price Caps'!J25*(1-'Inputs | Price Cap'!G$125)*(1+'Inputs | General'!I$26),2) -> 38.2 | L25: =ROUND('Output | Price Caps'!K25*(1-'Inputs | Price Cap'!H$125)*(1+'Inputs | General'!J$26),2) -> 39.19 | M25: =ROUND('Output | Price Caps'!L25*(1-'Inputs | Price Cap'!I$125)*(1+'Inputs | General'!K$26),2) -> 40.21 | N25: =ROUND('Output | Price Caps'!M25*(1-'Inputs | Price Cap'!J$125)*(1+'Inputs | General'!L$26),2) -> 41.25
C26: 6 | D26: ='Inputs | Price Cap'!D61 -> Low Voltage Business - CT Meter | E26: Total | F26: ='Inputs | Price Cap'!F61 -> T06 | G26: ='Inputs | Price Cap'!G61 -> Secondary | I26: =ROUND('Inputs | Price Cap'!H61,2) -> 69.12 | J26: =J24+J25 -> 87.46 | K26: =K24+K25 -> 214.7 | L26: =L24+L25 -> 637.49 | M26: =M24+M25 -> 874.96 | N26: =N24+N25 -> 1525.09
C27: 7 | D27: ='Inputs | Price Cap'!D62 -> Other | E27: Non-capital | F27: ='Inputs | Price Cap'!F62 -> T09 | G27: ='Inputs | Price Cap'!G62 -> Secondary | I27: =ROUND('Inputs | Price Cap'!H62,2) -> 22.41 | J27: =ROUND('Output | Price Caps'!I27*(1-'Inputs | Price Cap'!F$109)*(1+'Inputs | General'!H$26),2) -> 34.28 | K27: =ROUND('Output | Price Caps'!J27*(1-'Inputs | Price Cap'!G$109)*(1+'Inputs | General'!I$26),2) -> 120.45 | L27: =ROUND('Output | Price Caps'!K27*(1-'Inputs | Price Cap'!H$109)*(1+'Inputs | General'!J$26),2) -> 408.3 | M27: =ROUND('Output | Price Caps'!L27*(1-'Inputs | Price Cap'!I$109)*(1+'Inputs | General'!K$26),2) -> 569.66 | N27: =ROUND('Output | Price Caps'!M27*(1-'Inputs | Price Cap'!J$109)*(1+'Inputs | General'!L$26),2) -> 1012.62
C28: 7 | D28: ='Inputs | Price Cap'!D63 -> Other | E28: Capital | F28: ='Inputs | Price Cap'!F63 -> T09 | G28: ='Inputs | Price Cap'!G63 -> Secondary | I28: =ROUND('Inputs | Price Cap'!H63,2) -> 24.75 | J28: =ROUND('Output | Price Caps'!I28*(1-'Inputs | Price Cap'!F$125)*(1+'Inputs | General'!H$26),2) -> 25.4 | K28: =ROUND('Output | Price Caps'!J28*(1-'Inputs | Price Cap'!G$125)*(1+'Inputs | General'!I$26),2) -> 26.06 | L28: =ROUND('Output | Price Caps'!K28*(1-'Inputs | Price Cap'!H$125)*(1+'Inputs | General'!J$26),2) -> 26.74 | M28: =ROUND('Output | Price Caps'!L28*(1-'Inputs | Price Cap'!I$125)*(1+'Inputs | General'!K$26),2) -> 27.43 | N28: =ROUND('Output | Price Caps'!M28*(1-'Inputs | Price Cap'!J$125)*(1+'Inputs | General'!L$26),2) -> 28.14
C29: 7 | D29: ='Inputs | Price Cap'!D64 -> Other | E29: Total | F29: ='Inputs | Price Cap'!F64 -> T09 | G29: ='Inputs | Price Cap'!G64 -> Secondary | I29: =ROUND('Inputs | Price Cap'!H64,2) -> 47.16 | J29: =J27+J28 -> 59.68 | K29: =K27+K28 -> 146.51 | L29: =L27+L28 -> 435.04 | M29: =M27+M28 -> 597.09 | N29: =N27+N28 -> 1040.76
C30: 8 | D30: ='Inputs | Price Cap'!D65 -> 0 | E30: Non-capital | F30: ='Inputs | Price Cap'!F65 -> 0 | G30: ='Inputs | Price Cap'!G65 -> 0 | I30: =ROUND('Inputs | Price Cap'!H65,2) -> 0 | J30: =ROUND('Output | Price Caps'!I30*(1-'Inputs | Price Cap'!F$109)*(1+'Inputs | General'!H$26),2) -> 0 | K30: =ROUND('Output | Price Caps'!J30*(1-'Inputs | Price Cap'!G$109)*(1+'Inputs | General'!I$26),2) -> 0 | L30: =ROUND('Output | Price Caps'!K30*(1-'Inputs | Price Cap'!H$109)*(1+'Inputs | General'!J$26),2) -> 0 | M30: =ROUND('Output | Price Caps'!L30*(1-'Inputs | Price Cap'!I$109)*(1+'Inputs | General'!K$26),2) -> 0 | N30: =ROUND('Output | Price Caps'!M30*(1-'Inputs | Price Cap'!J$109)*(1+'Inputs | General'!L$26),2) -> 0
C31: 8 | D31: ='Inputs | Price Cap'!D66 -> 0 | E31: Capital | F31: ='Inputs | Price Cap'!F66 -> 0 | G31: ='Inputs | Price Cap'!G66 -> 0 | I31: =ROUND('Inputs | Price Cap'!H66,2) -> 0 | J31: =ROUND('Output | Price Caps'!I31*(1-'Inputs | Price Cap'!F$125)*(1+'Inputs | General'!H$26),2) -> 0 | K31: =ROUND('Output | Price Caps'!J31*(1-'Inputs | Price Cap'!G$125)*(1+'Inputs | General'!I$26),2) -> 0 | L31: =ROUND('Output | Price Caps'!K31*(1-'Inputs | Price Cap'!H$125)*(1+'Inputs | General'!J$26),2) -> 0 | M31: =ROUND('Output | Price Caps'!L31*(1-'Inputs | Price Cap'!I$125)*(1+'Inputs | General'!K$26),2) -> 0 | N31: =ROUND('Output | Price Caps'!M31*(1-'Inputs | Price Cap'!J$125)*(1+'Inputs | General'!L$26),2) -> 0
C32: 8 | D32: ='Inputs | Price Cap'!D67 -> 0 | E32: Total | F32: ='Inputs | Price Cap'!F67 -> 0 | G32: ='Inputs | Price Cap'!G67 -> 0 | I32: =ROUND('Inputs | Price Cap'!H67,2) -> 0 | J32: =J30+J31 -> 0 | K32: =K30+K31 -> 0 | L32: =L30+L31 -> 0 | M32: =M30+M31 -> 0 | N32: =N30+N31 -> 0
C33: 9 | D33: ='Inputs | Price Cap'!D68 -> 0 | E33: Non-capital | F33: ='Inputs | Price Cap'!F68 -> 0 | G33: ='Inputs | Price Cap'!G68 -> 0 | I33: =ROUND('Inputs | Price Cap'!H68,2) -> 0 | J33: =ROUND('Output | Price Caps'!I33*(1-'Inputs | Price Cap'!F$109)*(1+'Inputs | General'!H$26),2) -> 0 | K33: =ROUND('Output | Price Caps'!J33*(1-'Inputs | Price Cap'!G$109)*(1+'Inputs | General'!I$26),2) -> 0 | L33: =ROUND('Output | Price Caps'!K33*(1-'Inputs | Price Cap'!H$109)*(1+'Inputs | General'!J$26),2) -> 0 | M33: =ROUND('Output | Price Caps'!L33*(1-'Inputs | Price Cap'!I$109)*(1+'Inputs | General'!K$26),2) -> 0 | N33: =ROUND('Output | Price Caps'!M33*(1-'Inputs | Price Cap'!J$109)*(1+'Inputs | General'!L$26),2) -> 0
C34: 9 | D34: ='Inputs | Price Cap'!D69 -> 0 | E34: Capital | F34: ='Inputs | Price Cap'!F69 -> 0 | G34: ='Inputs | Price Cap'!G69 -> 0 | I34: =ROUND('Inputs | Price Cap'!H69,2) -> 0 | J34: =ROUND('Output | Price Caps'!I34*(1-'Inputs | Price Cap'!F$125)*(1+'Inputs | General'!H$26),2) -> 0 | K34: =ROUND('Output | Price Caps'!J34*(1-'Inputs | Price Cap'!G$125)*(1+'Inputs | General'!I$26),2) -> 0 | L34: =ROUND('Output | Price Caps'!K34*(1-'Inputs | Price Cap'!H$125)*(1+'Inputs | General'!J$26),2) -> 0 | M34: =ROUND('Output | Price Caps'!L34*(1-'Inputs | Price Cap'!I$125)*(1+'Inputs | General'!K$26),2) -> 0 | N34: =ROUND('Output | Price Caps'!M34*(1-'Inputs | Price Cap'!J$125)*(1+'Inputs | General'!L$26),2) -> 0
C35: 9 | D35: ='Inputs | Price Cap'!D70 -> 0 | E35: Total | F35: ='Inputs | Price Cap'!F70 -> 0 | G35: ='Inputs | Price Cap'!G70 -> 0 | I35: =ROUND('Inputs | Price Cap'!H70,2) -> 0 | J35: =J33+J34 -> 0 | K35: =K33+K34 -> 0 | L35: =L33+L34 -> 0 | M35: =M33+M34 -> 0 | N35: =N33+N34 -> 0
C36: 10 | D36: ='Inputs | Price Cap'!D71 -> 0 | E36: Non-capital | F36: ='Inputs | Price Cap'!F71 -> 0 | G36: ='Inputs | Price Cap'!G71 -> 0 | I36: =ROUND('Inputs | Price Cap'!H71,2) -> 0 | J36: =ROUND('Output | Price Caps'!I36*(1-'Inputs | Price Cap'!F$109)*(1+'Inputs | General'!H$26),2) -> 0 | K36: =ROUND('Output | Price Caps'!J36*(1-'Inputs | Price Cap'!G$109)*(1+'Inputs | General'!I$26),2) -> 0 | L36: =ROUND('Output | Price Caps'!K36*(1-'Inputs | Price Cap'!H$109)*(1+'Inputs | General'!J$26),2) -> 0 | M36: =ROUND('Output | Price Caps'!L36*(1-'Inputs | Price Cap'!I$109)*(1+'Inputs | General'!K$26),2) -> 0 | N36: =ROUND('Output | Price Caps'!M36*(1-'Inputs | Price Cap'!J$109)*(1+'Inputs | General'!L$26),2) -> 0
C37: 10 | D37: ='Inputs | Price Cap'!D72 -> 0 | E37: Capital | F37: ='Inputs | Price Cap'!F72 -> 0 | G37: ='Inputs | Price Cap'!G72 -> 0 | I37: =ROUND('Inputs | Price Cap'!H72,2) -> 0 | J37: =ROUND('Output | Price Caps'!I37*(1-'Inputs | Price Cap'!F$125)*(1+'Inputs | General'!H$26),2) -> 0 | K37: =ROUND('Output | Price Caps'!J37*(1-'Inputs | Price Cap'!G$125)*(1+'Inputs | General'!I$26),2) -> 0 | L37: =ROUND('Output | Price Caps'!K37*(1-'Inputs | Price Cap'!H$125)*(1+'Inputs | General'!J$26),2) -> 0 | M37: =ROUND('Output | Price Caps'!L37*(1-'Inputs | Price Cap'!I$125)*(1+'Inputs | General'!K$26),2) -> 0 | N37: =ROUND('Output | Price Caps'!M37*(1-'Inputs | Price Cap'!J$125)*(1+'Inputs | General'!L$26),2) -> 0
C38: 10 | D38: ='Inputs | Price Cap'!D73 -> 0 | E38: Total | F38: ='Inputs | Price Cap'!F73 -> 0 | G38: ='Inputs | Price Cap'!G73 -> 0 | I38: =ROUND('Inputs | Price Cap'!H73,2) -> 0 | J38: =J36+J37 -> 0 | K38: =K36+K37 -> 0 | L38: =L36+L37 -> 0 | M38: =M36+M37 -> 0 | N38: =N36+N37 -> 0
C39: 11 | D39: ='Inputs | Price Cap'!D74 -> 0 | E39: Non-capital | F39: ='Inputs | Price Cap'!F74 -> 0 | G39: ='Inputs | Price Cap'!G74 -> 0 | I39: =ROUND('Inputs | Price Cap'!H74,2) -> 0 | J39: =ROUND('Output | Price Caps'!I39*(1-'Inputs | Price Cap'!F$109)*(1+'Inputs | General'!H$26),2) -> 0 | K39: =ROUND('Output | Price Caps'!J39*(1-'Inputs | Price Cap'!G$109)*(1+'Inputs | General'!I$26),2) -> 0 | L39: =ROUND('Output | Price Caps'!K39*(1-'Inputs | Price Cap'!H$109)*(1+'Inputs | General'!J$26),2) -> 0 | M39: =ROUND('Output | Price Caps'!L39*(1-'Inputs | Price Cap'!I$109)*(1+'Inputs | General'!K$26),2) -> 0 | N39: =ROUND('Output | Price Caps'!M39*(1-'Inputs | Price Cap'!J$109)*(1+'Inputs | General'!L$26),2) -> 0
C40: 11 | D40: ='Inputs | Price Cap'!D75 -> 0 | E40: Capital | F40: ='Inputs | Price Cap'!F75 -> 0 | G40: ='Inputs | Price Cap'!G75 -> 0 | I40: =ROUND('Inputs | Price Cap'!H75,2) -> 0 | J40: =ROUND('Output | Price Caps'!I40*(1-'Inputs | Price Cap'!F$125)*(1+'Inputs | General'!H$26),2) -> 0 | K40: =ROUND('Output | Price Caps'!J40*(1-'Inputs | Price Cap'!G$125)*(1+'Inputs | General'!I$26),2) -> 0 | L40: =ROUND('Output | Price Caps'!K40*(1-'Inputs | Price Cap'!H$125)*(1+'Inputs | General'!J$26),2) -> 0 | M40: =ROUND('Output | Price Caps'!L40*(1-'Inputs | Price Cap'!I$125)*(1+'Inputs | General'!K$26),2) -> 0 | N40: =ROUND('Output | Price Caps'!M40*(1-'Inputs | Price Cap'!J$125)*(1+'Inputs | General'!L$26),2) -> 0
C41: 11 | D41: ='Inputs | Price Cap'!D76 -> 0 | E41: Total | F41: ='Inputs | Price Cap'!F76 -> 0 | G41: ='Inputs | Price Cap'!G76 -> 0 | I41: =ROUND('Inputs | Price Cap'!H76,2) -> 0 | J41: =J39+J40 -> 0 | K41: =K39+K40 -> 0 | L41: =L39+L40 -> 0 | M41: =M39+M40 -> 0 | N41: =N39+N40 -> 0
C42: 12 | D42: ='Inputs | Price Cap'!D77 -> 0 | E42: Non-capital | F42: ='Inputs | Price Cap'!F77 -> 0 | G42: ='Inputs | Price Cap'!G77 -> 0 | I42: =ROUND('Inputs | Price Cap'!H77,2) -> 0 | J42: =ROUND('Output | Price Caps'!I42*(1-'Inputs | Price Cap'!F$109)*(1+'Inputs | General'!H$26),2) -> 0 | K42: =ROUND('Output | Price Caps'!J42*(1-'Inputs | Price Cap'!G$109)*(1+'Inputs | General'!I$26),2) -> 0 | L42: =ROUND('Output | Price Caps'!K42*(1-'Inputs | Price Cap'!H$109)*(1+'Inputs | General'!J$26),2) -> 0 | M42: =ROUND('Output | Price Caps'!L42*(1-'Inputs | Price Cap'!I$109)*(1+'Inputs | General'!K$26),2) -> 0 | N42: =ROUND('Output | Price Caps'!M42*(1-'Inputs | Price Cap'!J$109)*(1+'Inputs | General'!L$26),2) -> 0
C43: 12 | D43: ='Inputs | Price Cap'!D78 -> 0 | E43: Capital | F43: ='Inputs | Price Cap'!F78 -> 0 | G43: ='Inputs | Price Cap'!G78 -> 0 | I43: =ROUND('Inputs | Price Cap'!H78,2) -> 0 | J43: =ROUND('Output | Price Caps'!I43*(1-'Inputs | Price Cap'!F$125)*(1+'Inputs | General'!H$26),2) -> 0 | K43: =ROUND('Output | Price Caps'!J43*(1-'Inputs | Price Cap'!G$125)*(1+'Inputs | General'!I$26),2) -> 0 | L43: =ROUND('Output | Price Caps'!K43*(1-'Inputs | Price Cap'!H$125)*(1+'Inputs | General'!J$26),2) -> 0 | M43: =ROUND('Output | Price Caps'!L43*(1-'Inputs | Price Cap'!I$125)*(1+'Inputs | General'!K$26),2) -> 0 | N43: =ROUND('Output | Price Caps'!M43*(1-'Inputs | Price Cap'!J$125)*(1+'Inputs | General'!L$26),2) -> 0
C44: 12 | D44: ='Inputs | Price Cap'!D79 -> 0 | E44: Total | F44: ='Inputs | Price Cap'!F79 -> 0 | G44: ='Inputs | Price Cap'!G79 -> 0 | I44: =ROUND('Inputs | Price Cap'!H79,2) -> 0 | J44: =J42+J43 -> 0 | K44: =K42+K43 -> 0 | L44: =L42+L43 -> 0 | M44: =M42+M43 -> 0 | N44: =N42+N43 -> 0
C45: 13 | D45: ='Inputs | Price Cap'!D80 -> 0 | E45: Non-capital | F45: ='Inputs | Price Cap'!F80 -> 0 | G45: ='Inputs | Price Cap'!G80 -> 0 | I45: =ROUND('Inputs | Price Cap'!H80,2) -> 0 | J45: =ROUND('Output | Price Caps'!I45*(1-'Inputs | Price Cap'!F$109)*(1+'Inputs | General'!H$26),2) -> 0 | K45: =ROUND('Output | Price Caps'!J45*(1-'Inputs | Price Cap'!G$109)*(1+'Inputs | General'!I$26),2) -> 0 | L45: =ROUND('Output | Price Caps'!K45*(1-'Inputs | Price Cap'!H$109)*(1+'Inputs | General'!J$26),2) -> 0 | M45: =ROUND('Output | Price Caps'!L45*(1-'Inputs | Price Cap'!I$109)*(1+'Inputs | General'!K$26),2) -> 0 | N45: =ROUND('Output | Price Caps'!M45*(1-'Inputs | Price Cap'!J$109)*(1+'Inputs | General'!L$26),2) -> 0
C46: 13 | D46: ='Inputs | Price Cap'!D81 -> 0 | E46: Capital | F46: ='Inputs | Price Cap'!F81 -> 0 | G46: ='Inputs | Price Cap'!G81 -> 0 | I46: =ROUND('Inputs | Price Cap'!H81,2) -> 0 | J46: =ROUND('Output | Price Caps'!I46*(1-'Inputs | Price Cap'!F$125)*(1+'Inputs | General'!H$26),2) -> 0 | K46: =ROUND('Output | Price Caps'!J46*(1-'Inputs | Price Cap'!G$125)*(1+'Inputs | General'!I$26),2) -> 0 | L46: =ROUND('Output | Price Caps'!K46*(1-'Inputs | Price Cap'!H$125)*(1+'Inputs | General'!J$26),2) -> 0 | M46: =ROUND('Output | Price Caps'!L46*(1-'Inputs | Price Cap'!I$125)*(1+'Inputs | General'!K$26),2) -> 0 | N46: =ROUND('Output | Price Caps'!M46*(1-'Inputs | Price Cap'!J$125)*(1+'Inputs | General'!L$26),2) -> 0
C47: 13 | D47: ='Inputs | Price Cap'!D82 -> 0 | E47: Total | F47: ='Inputs | Price Cap'!F82 -> 0 | G47: ='Inputs | Price Cap'!G82 -> 0 | I47: =ROUND('Inputs | Price Cap'!H82,2) -> 0 | J47: =J45+J46 -> 0 | K47: =K45+K46 -> 0 | L47: =L45+L46 -> 0 | M47: =M45+M46 -> 0 | N47: =N45+N46 -> 0
C48: 14 | D48: ='Inputs | Price Cap'!D83 -> 0 | E48: Non-capital | F48: ='Inputs | Price Cap'!F83 -> 0 | G48: ='Inputs | Price Cap'!G83 -> 0 | I48: =ROUND('Inputs | Price Cap'!H83,2) -> 0 | J48: =ROUND('Output | Price Caps'!I48*(1-'Inputs | Price Cap'!F$109)*(1+'Inputs | General'!H$26),2) -> 0 | K48: =ROUND('Output | Price Caps'!J48*(1-'Inputs | Price Cap'!G$109)*(1+'Inputs | General'!I$26),2) -> 0 | L48: =ROUND('Output | Price Caps'!K48*(1-'Inputs | Price Cap'!H$109)*(1+'Inputs | General'!J$26),2) -> 0 | M48: =ROUND('Output | Price Caps'!L48*(1-'Inputs | Price Cap'!I$109)*(1+'Inputs | General'!K$26),2) -> 0 | N48: =ROUND('Output | Price Caps'!M48*(1-'Inputs | Price Cap'!J$109)*(1+'Inputs | General'!L$26),2) -> 0
C49: 14 | D49: ='Inputs | Price Cap'!D84 -> 0 | E49: Capital | F49: ='Inputs | Price Cap'!F84 -> 0 | G49: ='Inputs | Price Cap'!G84 -> 0 | I49: =ROUND('Inputs | Price Cap'!H84,2) -> 0 | J49: =ROUND('Output | Price Caps'!I49*(1-'Inputs | Price Cap'!F$125)*(1+'Inputs | General'!H$26),2) -> 0 | K49: =ROUND('Output | Price Caps'!J49*(1-'Inputs | Price Cap'!G$125)*(1+'Inputs | General'!I$26),2) -> 0 | L49: =ROUND('Output | Price Caps'!K49*(1-'Inputs | Price Cap'!H$125)*(1+'Inputs | General'!J$26),2) -> 0 | M49: =ROUND('Output | Price Caps'!L49*(1-'Inputs | Price Cap'!I$125)*(1+'Inputs | General'!K$26),2) -> 0 | N49: =ROUND('Output | Price Caps'!M49*(1-'Inputs | Price Cap'!J$125)*(1+'Inputs | General'!L$26),2) -> 0
C50: 14 | D50: ='Inputs | Price Cap'!D85 -> 0 | E50: Total | F50: ='Inputs | Price Cap'!F85 -> 0 | G50: ='Inputs | Price Cap'!G85 -> 0 | I50: =ROUND('Inputs | Price Cap'!H85,2) -> 0 | J50: =J48+J49 -> 0 | K50: =K48+K49 -> 0 | L50: =L48+L49 -> 0 | M50: =M48+M49 -> 0 | N50: =N48+N49 -> 0
C51: 15 | D51: ='Inputs | Price Cap'!D86 -> 0 | E51: Non-capital | F51: ='Inputs | Price Cap'!F86 -> 0 | G51: ='Inputs | Price Cap'!G86 -> 0 | I51: =ROUND('Inputs | Price Cap'!H86,2) -> 0 | J51: =ROUND('Output | Price Caps'!I51*(1-'Inputs | Price Cap'!F$109)*(1+'Inputs | General'!H$26),2) -> 0 | K51: =ROUND('Output | Price Caps'!J51*(1-'Inputs | Price Cap'!G$109)*(1+'Inputs | General'!I$26),2) -> 0 | L51: =ROUND('Output | Price Caps'!K51*(1-'Inputs | Price Cap'!H$109)*(1+'Inputs | General'!J$26),2) -> 0 | M51: =ROUND('Output | Price Caps'!L51*(1-'Inputs | Price Cap'!I$109)*(1+'Inputs | General'!K$26),2) -> 0 | N51: =ROUND('Output | Price Caps'!M51*(1-'Inputs | Price Cap'!J$109)*(1+'Inputs | General'!L$26),2) -> 0
C52: 15 | D52: ='Inputs | Price Cap'!D87 -> 0 | E52: Capital | F52: ='Inputs | Price Cap'!F87 -> 0 | G52: ='Inputs | Price Cap'!G87 -> 0 | I52: =ROUND('Inputs | Price Cap'!H87,2) -> 0 | J52: =ROUND('Output | Price Caps'!I52*(1-'Inputs | Price Cap'!F$125)*(1+'Inputs | General'!H$26),2) -> 0 | K52: =ROUND('Output | Price Caps'!J52*(1-'Inputs | Price Cap'!G$125)*(1+'Inputs | General'!I$26),2) -> 0 | L52: =ROUND('Output | Price Caps'!K52*(1-'Inputs | Price Cap'!H$125)*(1+'Inputs | General'!J$26),2) -> 0 | M52: =ROUND('Output | Price Caps'!L52*(1-'Inputs | Price Cap'!I$125)*(1+'Inputs | General'!K$26),2) -> 0 | N52: =ROUND('Output | Price Caps'!M52*(1-'Inputs | Price Cap'!J$125)*(1+'Inputs | General'!L$26),2) -> 0
C53: 15 | D53: ='Inputs | Price Cap'!D88 -> 0 | E53: Total | F53: ='Inputs | Price Cap'!F88 -> 0 | G53: ='Inputs | Price Cap'!G88 -> 0 | I53: =ROUND('Inputs | Price Cap'!H88,2) -> 0 | J53: =J51+J52 -> 0 | K53: =K51+K52 -> 0 | L53: =L51+L52 -> 0 | M53: =M51+M52 -> 0 | N53: =N51+N52 -> 0
B56: Implicit X-Factors
D57: X-Factors | E57: =FPFirstYear -> 2024-25 | F57: =LEFT(E57,4)+1&"-"&RIGHT(E57,2)+1 -> 2025-26 | G57: =LEFT(F57,4)+1&"-"&RIGHT(F57,2)+1 -> 2026-27 | H57: =LEFT(G57,4)+1&"-"&RIGHT(G57,2)+1 -> 2027-28 | I57: =LEFT(H57,4)+1&"-"&RIGHT(H57,2)+1 -> 2028-29
E58: P_0 | F58: X_02 | G58: X_03 | H58: X_04 | I58: X_05
D59: All Tariffs - Non-Capital | E59: =NC_P_0_WAPC -> -0.48 | F59: =NC_X_02_WAPC -> -2.4 | G59: =NC_X_03_WAPC -> -2.28 | H59: =NC_X_04_WAPC -> -0.35 | I59: =NC_X_05_WAPC -> -0.72
D60: All Tariffs - Capital | E60: =C_P_0_WAPC -> 0.0071 | F60: =C_X_02_WAPC -> 0.0073 | G60: =C_X_03_WAPC -> 0.0073 | H60: =C_X_04_WAPC -> 0.0073 | I60: =C_X_05_WAPC -> 0.0073
B65: Cost Metric
I66: Base Year Charges | J66: Price Cap - Annual Charges
D67: Price Cap Per Meter | F67: Application | G67: Units | H67: Basis | I67: =LEFT(J67,4)-1&"-"&RIGHT(J67,2)-1 -> 2023-24 | J67: =FPFirstYear -> 2024-25 | K67: =LEFT(J67,4)+1&"-"&RIGHT(J67,2)+1 -> 2025-26 | L67: =LEFT(K67,4)+1&"-"&RIGHT(K67,2)+1 -> 2026-27 | M67: =LEFT(L67,4)+1&"-"&RIGHT(L67,2)+1 -> 2027-28 | N67: =LEFT(M67,4)+1&"-"&RIGHT(M67,2)+1 -> 2028-29
D68: Volume Weighted Average Price Cap - Per Meter | F68: Non-capital | G68: $dollars | H68: nominal | I68: ='Calc | Price Cap'!I59/'Inputs | Price Cap'!I90 -> 13.94712092 | J68: ='Calc | Price Cap'!J59/'Inputs | Price Cap'!J90 -> 21.33523516 | K68: ='Calc | Price Cap'!K59/'Inputs | Price Cap'!K90 -> 74.9644571 | L68: ='Calc | Price Cap'!L59/'Inputs | Price Cap'!L90 -> 254.117147 | M68: ='Calc | Price Cap'!M59/'Inputs | Price Cap'!M90 -> 354.5438831 | N68: ='Calc | Price Cap'!N59/'Inputs | Price Cap'!N90 -> 630.2353289
D69: Volume Weighted Average Price Cap - Per Meter | F69: Capital | G69: $dollars | H69: nominal | I69: ='Calc | Price Cap'!I60/'Inputs | Price Cap'!I91 -> 15.40448659 | J69: ='Calc | Price Cap'!J60/'Inputs | Price Cap'!J91 -> 15.80400304 | K69: ='Calc | Price Cap'!K60/'Inputs | Price Cap'!K91 -> 16.21358558 | L69: ='Calc | Price Cap'!L60/'Inputs | Price Cap'!L91 -> 16.63450049 | M69: ='Calc | Price Cap'!M60/'Inputs | Price Cap'!M91 -> 17.06634891 | N69: ='Calc | Price Cap'!N60/'Inputs | Price Cap'!N91 -> 17.50952972
D70: Volume Weighted Average Price Cap - Per Non-Capital Meter | F70: Total | G70: $dollars | H70: nominal | I70: ='Calc | Price Cap'!I61/'Inputs | Price Cap'!I90 -> 61.67010301 | J70: ='Calc | Price Cap'!J61/'Inputs | Price Cap'!J90 -> 104.5768457 | K70: ='Calc | Price Cap'!K61/'Inputs | Price Cap'!K90 -> 359.7914762 | L70: ='Calc | Price Cap'!L61/'Inputs | Price Cap'!L90 -> 1167.600957 | M70: ='Calc | Price Cap'!M61/'Inputs | Price Cap'!M90 -> 2697.540811 | N70: ='Calc | Price Cap'!N61/'Inputs | Price Cap'!N90 -> 6639.835647

Sheet Exit Fees >

Sheet Input | Exit Fees
B1: ='Title Page'!B8&" v"&'Title Page'!$C$10 -> Final Standardised Metering Pricing Model v1.02 | M1: DNSP: | N1: =IF('Inputs | General'!$G$16="Price Cap","NOT USED",NSP) -> NOT USED
B2: =MID(CELL("filename",A1),FIND("]",CELL("filename",A1))+1,255) -> Input | Exit Fees | H2: Key: | I2: Input | J2: External Link | K2: Internal Link
B5: =LEFT('Inputs | General'!B21,1)+1&". Linked Input - RAB" -> 3. Linked Input - RAB | J5: =IF('Inputs | General'!$G$16="Price Cap","NOT USED","") -> NOT USED
B7: Linked Input - RAB Meters | G7: Base Year | H7: Regulatory Period
E8: Units | G8: =LEFT(H8,4)-1&"-"&RIGHT(H8,2)-1 -> 2023-24 | H8: =FPFirstYear -> 2024-25 | I8: =LEFT(H8,4)+1&"-"&RIGHT(H8,2)+1 -> 2025-26 | J8: =LEFT(I8,4)+1&"-"&RIGHT(I8,2)+1 -> 2026-27 | K8: =LEFT(J8,4)+1&"-"&RIGHT(J8,2)+1 -> 2027-28 | L8: =LEFT(K8,4)+1&"-"&RIGHT(K8,2)+1 -> 2028-29 | M8: =LEFT(L8,4)+1&"-"&RIGHT(L8,2)+1 -> 2029-30
C9: Opening RAB | E9: $m | H9: =G9+G10-G11 -> 0 | I9: 0 | J9: 0 | K9: 0 | L9: 0 | M9: 0 | N9: Opening balance of METERS row in PTRM inputs sheet of PTRM
C10: Gross capital expenditure | E10: $m | N10: Gross capex from METERS row in ASSETS sheet of PTRM
C11: Regulatory depreciation | E11: $m | N11: Depreciation from METERS row in ASSETS sheet of PTRM
B14: Linked Input - RAB Comms & IT
E15: Units | G15: =LEFT(H15,4)-1&"-"&RIGHT(H15,2)-1 -> 2023-24 | H15: =FPFirstYear -> 2024-25 | I15: =LEFT(H15,4)+1&"-"&RIGHT(H15,2)+1 -> 2025-26 | J15: =LEFT(I15,4)+1&"-"&RIGHT(I15,2)+1 -> 2026-27 | K15: =LEFT(J15,4)+1&"-"&RIGHT(J15,2)+1 -> 2027-28 | L15: =LEFT(K15,4)+1&"-"&RIGHT(K15,2)+1 -> 2028-29 | M15: =LEFT(L15,4)+1&"-"&RIGHT(L15,2)+1 -> 2029-30
C16: Opening RAB | E16: $m | H16: =G16+G17-G18 -> 0 | I16: 0 | J16: 0 | K16: 0 | L16: 0 | M16: 0 | N16: Opening balance of COMMS & IT rows from PTRM INPUTS sheet of PTRM
C17: Gross capital expenditure | E17: $m | N17: Gross capex from COMMS & IT rows in ASSETS sheet of PTRM
C18: Regulatory depreciation | E18: $m | N18: Depreciation from COMMS & IT rows in ASSETS sheet of PTRM
E21: Units | G21: =LEFT(H21,4)-1&"-"&RIGHT(H21,2)-1 -> 2023-24 | H21: =FPFirstYear -> 2024-25 | I21: =LEFT(H21,4)+1&"-"&RIGHT(H21,2)+1 -> 2025-26 | J21: =LEFT(I21,4)+1&"-"&RIGHT(I21,2)+1 -> 2026-27 | K21: =LEFT(J21,4)+1&"-"&RIGHT(J21,2)+1 -> 2027-28 | L21: =LEFT(K21,4)+1&"-"&RIGHT(K21,2)+1 -> 2028-29 | M21: =LEFT(L21,4)+1&"-"&RIGHT(L21,2)+1 -> 2029-30
B22: TOTAL Opening RAB | E22: $m | G22: =G9+G16 -> 0 | H22: 0 | I22: 0 | J22: 0 | K22: 0 | L22: 0 | M22: 0
B25: =LEFT(B5,1)+1&". Input | Define Exit Fees" -> 4. Input | Define Exit Fees
B27: Enter Allowed Exit Fee in final year of current Regulatory Period | G27: Exit Fee
D28: Exit Fee Name | F28: Units | G28: Last Year - Current RP
D29: 0 | F29: $dollars
D30: 0 | F30: $dollars
D31: 0 | F31: $dollars
D32: 0 | F32: $dollars
D33: 0 | F33: $dollars
D34: 0 | F34: $dollars | G34: 0
D35: 0 | F35: $dollars | G35: 0
D36: 0 | F36: $dollars | G36: 0
D37: 0 | F37: $dollars | G37: 0
D38: 0 | F38: $dollars | G38: 0
B42: =LEFT(B25,1)+1&". Input | from Metering ACS Model" -> 5. Input | from Metering ACS Model
B44: METERS
B46: a | C46: Inputs - Designated Exit Fee by Meter Type | G46: b | H46: Linked Input - Meter Types & Unit Costs
K47: Equipment Cost | L47: Labour Cost | M47: Total Cost
D48: Designated Exit Fee | H48: Meter Type | I48: Units | J48: Basis | K48: New Meter Installations | L48: New Meter Installations | M48: New Meter Installations | Q48: Link from Metering - ACS Model
I49: $dollars | J49: 2019-12-01 | M49: =K49+L49 -> 0
I50: $dollars | J50: 2019-12-01 | M50: 0
I51: $dollars | J51: 2019-12-01 | M51: 0
I52: $dollars | J52: 2019-12-01 | M52: 0
I53: $dollars | J53: 2019-12-01 | M53: 0
D54: 0 | I54: $dollars | J54: 2019-12-01 | M54: 0
D55: 0 | I55: $dollars | J55: 2019-12-01
D56: 0 | I56: $dollars | J56: 2019-12-01
D57: 0 | I57: $dollars | J57: 2019-12-01
D58: 0 | I58: $dollars | J58: 2019-12-01
D59: 0 | I59: $dollars | J59: 2019-12-01
D60: 0 | I60: $dollars | J60: 2019-12-01
D61: 0 | H61: 0 | I61: $dollars | J61: 2019-12-01
D62: 0 | H62: 0 | I62: $dollars | J62: 2019-12-01
D63: 0 | H63: 0 | I63: $dollars | J63: 2019-12-01
B66: e | C66: Linked Input - Gross Meter Population (Year End), by meter type
J67: Number of meters in year
H68: =H48 -> Meter Type | I68: Units | J68: =LEFT(K68,4)-1&"-"&RIGHT(K68,2)-1 -> 2023-24 | K68: =FPFirstYear -> 2024-25 | L68: =LEFT(K68,4)+1&"-"&RIGHT(K68,2)+1 -> 2025-26 | M68: =LEFT(L68,4)+1&"-"&RIGHT(L68,2)+1 -> 2026-27 | N68: 2027-28 | O68: 2028-29 | Q68: Link from Metering - ACS Model
H69: 0 | I69: No.
H70: 0 | I70: No.
H71: 0 | I71: No.
H72: 0 | I72: No.
H73: 0 | I73: No.
I74: No.
H75: =H55 -> 0 | I75: No.
H76: 0 | I76: No.
H77: 0 | I77: No.
H78: 0 | I78: No.
H79: 0 | I79: No.
H80: 0 | I80: No.
H81: 0 | I81: No. | J81: 0 | K81: 0 | L81: 0 | M81: 0 | N81: 0 | O81: 0
H82: 0 | I82: No. | J82: 0 | K82: 0 | L82: 0 | M82: 0 | N82: 0 | O82: 0
H83: 0 | I83: No. | J83: 0 | K83: 0 | L83: 0 | M83: 0 | N83: 0 | O83: 0
H84: Total | I84: No. | J84: =SUM(J69:J83) -> 0 | K84: 0 | L84: 0 | M84: 0 | N84: 0 | O84: 0
B87: =LEFT(B42,1)+1&". INPUT | Admin and handling" -> 6. INPUT | Admin and handling
B89: a | C89: Inputs - Admin Hourly Rate
D90: Admin Fees | E90: Units | G90: Rate
D91: Hourly Rate | E91: $dollars/hr | G91: 75
B94: b | C94: Inputs - Admin & Handling Costs
D95: Admin Process Description | G95: Amount ($Fixed or Hours) | H95: Calculated or Entered | I95: Proportion required | K95: =FPFirstYear -> 2024-25 | L95: =LEFT(K95,4)+1&"-"&RIGHT(K95,2)+1 -> 2025-26 | M95: =LEFT(L95,4)+1&"-"&RIGHT(L95,2)+1 -> 2026-27 | N95: =LEFT(M95,4)+1&"-"&RIGHT(M95,2)+1 -> 2027-28 | O95: =LEFT(N95,4)+1&"-"&RIGHT(N95,2)+1 -> 2028-29
D96: 0
D97: 0
D98: 0
D99: 0
D100: 0
D101: 0
D102: 0
D103: 0
D104: 0
D105: 0
B107: c | C107: Admin & Handling Cost Calculation (Autofilled)
D108: Admin Process Description | G108: Amount (Fixed or Hours) | H108: Calculated or Entered | I108: Proportion required | K108: =FPFirstYear -> 2024-25 | L108: =LEFT(K108,4)+1&"-"&RIGHT(K108,2)+1 -> 2025-26 | M108: =LEFT(L108,4)+1&"-"&RIGHT(L108,2)+1 -> 2026-27 | N108: =LEFT(M108,4)+1&"-"&RIGHT(M108,2)+1 -> 2027-28 | O108: =LEFT(N108,4)+1&"-"&RIGHT(N108,2)+1 -> 2028-29
D109: =D96 -> 0 | G109: =G96 -> 0 | H109: 0 | I109: 0 | K109: =IF($H109="Calc-Fixed",$I109*$G109,IF($H109="Calc-Hourly",$G$91*$G109*$I109,IF($H109="Entered",K96,0))) -> 0 | L109: =IF($H109="Calc-Fixed",$I109*$G109,IF($H109="Calc-Hourly",$G$91*$G109*$I109,IF($H109="Entered",L96,0))) -> 0 | M109: 0 | N109: 0 | O109: 0
D110: 0 | G110: 0 | H110: 0 | I110: 0 | K110: =IF($H110="Calc-Fixed",$I110*$G110,IF($H110="Calc-Hourly",$G$91*$G110*$I110,IF($H110="Entered",K97,0))) -> 0 | L110: 0 | M110: 0 | N110: 0 | O110: 0
D111: 0 | G111: 0 | H111: 0 | I111: 0 | K111: =IF($H111="Calc-Fixed",$I111*$G111,IF($H111="Calc-Hourly",$G$91*$G111*$I111,IF($H111="Entered",K98,0))) -> 0 | L111: 0 | M111: 0 | N111: 0 | O111: 0
D112: 0 | G112: 0 | H112: 0 | I112: 0 | K112: =IF($H112="Calc-Fixed",$I112*$G112,IF($H112="Calc-Hourly",$G$91*$G112*$I112,IF($H112="Entered",K99,0))) -> 0 | L112: 0 | M112: 0 | N112: 0 | O112: 0
D113: 0 | G113: 0 | H113: 0 | I113: 0 | K113: =IF($H113="Calc-Fixed",$I113*$G113,IF($H113="Calc-Hourly",$G$91*$G113*$I113,IF($H113="Entered",K100,0))) -> 0 | L113: 0 | M113: 0 | N113: 0 | O113: 0
D114: 0 | G114: 0 | H114: 0 | I114: 0 | K114: =IF($H114="Calc-Fixed",$I114*$G114,IF($H114="Calc-Hourly",$G$91*$G114*$I114,IF($H114="Entered",K101,0))) -> 0 | L114: 0 | M114: 0 | N114: 0 | O114: 0
D115: 0 | G115: 0 | H115: 0 | I115: 0 | K115: =IF($H115="Calc-Fixed",$I115*$G115,IF($H115="Calc-Hourly",$G$91*$G115*$I115,IF($H115="Entered",K102,0))) -> 0 | L115: 0 | M115: 0 | N115: 0 | O115: 0
D116: 0 | G116: 0 | H116: 0 | I116: 0 | K116: =IF($H116="Calc-Fixed",$I116*$G116,IF($H116="Calc-Hourly",$G$91*$G116*$I116,IF($H116="Entered",K103,0))) -> 0 | L116: 0 | M116: 0 | N116: 0 | O116: 0
D117: 0 | G117: 0 | H117: 0 | I117: 0 | K117: =IF($H117="Calc-Fixed",$I117*$G117,IF($H117="Calc-Hourly",$G$91*$G117*$I117,IF($H117="Entered",K104,0))) -> 0 | L117: 0 | M117: 0 | N117: 0 | O117: 0
D118: 0 | G118: 0 | H118: 0 | I118: 0 | K118: =IF($H118="Calc-Fixed",$I118*$G118,IF($H118="Calc-Hourly",$G$91*$G118*$I118,IF($H118="Entered",K105,0))) -> 0 | L118: 0 | M118: 0 | N118: 0 | O118: 0
D119: TOTAL ADMIN and Handling | K119: =SUM(K109:K118) -> 0 | L119: =SUM(L109:L118) -> 0 | M119: =SUM(M109:M118) -> 0 | N119: =SUM(N109:N118) -> 0 | O119: =SUM(O109:O118) -> 0

Sheet Calc | Exit Fees
B1: ='Title Page'!B8&" v"&'Title Page'!$C$10 -> Final Standardised Metering Pricing Model v1.02 | M1: DNSP: | N1: =IF('Inputs | General'!$G$16="Price Cap","NOT USED",NSP) -> NOT USED
B2: =MID(CELL("filename",A1),FIND("]",CELL("filename",A1))+1,255) -> Calc | Exit Fees | H2: Key: | I2: Input | J2: External Link | K2: Internal Link
B5: CALCULATION | Meters
B7: Calculation of Allocated Meters RAB by Designated Exit Fee
E10: Average number of meters (Year, Year-1) | K10: Average number of meters (Year, Year-1)
F11: ='Input | Exit Fees'!H68 -> Meter Type | G11: ='Input | Exit Fees'!I68 -> Units | H11: Designated Exit Fee | K11: =FPFirstYear -> 2024-25 | L11: =LEFT(K11,4)+1&"-"&RIGHT(K11,2)+1 -> 2025-26 | M11: =LEFT(L11,4)+1&"-"&RIGHT(L11,2)+1 -> 2026-27 | N11: 2027-28 | O11: 2028-29
F12: ='Input | Exit Fees'!H69 -> 0 | G12: No. | H12: ='Input | Exit Fees'!D49 -> 0 | K12: =IFERROR(AVERAGE('Input | Exit Fees'!J69:K69),0) -> 0 | L12: =IFERROR(AVERAGE('Input | Exit Fees'!K69:L69),0) -> 0 | M12: =IFERROR(AVERAGE('Input | Exit Fees'!L69:M69),0) -> 0 | N12: =IFERROR(AVERAGE('Input | Exit Fees'!M69:N69),0) -> 0 | O12: =IFERROR(AVERAGE('Input | Exit Fees'!N69:O69),0) -> 0
F13: ='Input | Exit Fees'!H70 -> 0 | G13: No. | H13: ='Input | Exit Fees'!D50 -> 0 | K13: =IFERROR(AVERAGE('Input | Exit Fees'!J70:K70),0) -> 0 | L13: =IFERROR(AVERAGE('Input | Exit Fees'!K70:L70),0) -> 0 | M13: =IFERROR(AVERAGE('Input | Exit Fees'!L70:M70),0) -> 0 | N13: =IFERROR(AVERAGE('Input | Exit Fees'!M70:N70),0) -> 0 | O13: =IFERROR(AVERAGE('Input | Exit Fees'!N70:O70),0) -> 0
F14: ='Input | Exit Fees'!H71 -> 0 | G14: No. | H14: ='Input | Exit Fees'!D51 -> 0 | K14: =IFERROR(AVERAGE('Input | Exit Fees'!J71:K71),0) -> 0 | L14: =IFERROR(AVERAGE('Input | Exit Fees'!K71:L71),0) -> 0 | M14: =IFERROR(AVERAGE('Input | Exit Fees'!L71:M71),0) -> 0 | N14: =IFERROR(AVERAGE('Input | Exit Fees'!M71:N71),0) -> 0 | O14: =IFERROR(AVERAGE('Input | Exit Fees'!N71:O71),0) -> 0
F15: ='Input | Exit Fees'!H72 -> 0 | G15: No. | H15: ='Input | Exit Fees'!D52 -> 0 | K15: =IFERROR(AVERAGE('Input | Exit Fees'!J72:K72),0) -> 0 | L15: =IFERROR(AVERAGE('Input | Exit Fees'!K72:L72),0) -> 0 | M15: =IFERROR(AVERAGE('Input | Exit Fees'!L72:M72),0) -> 0 | N15: =IFERROR(AVERAGE('Input | Exit Fees'!M72:N72),0) -> 0 | O15: =IFERROR(AVERAGE('Input | Exit Fees'!N72:O72),0) -> 0
F16: ='Input | Exit Fees'!H73 -> 0 | G16: No. | H16: ='Input | Exit Fees'!D53 -> 0 | K16: =IFERROR(AVERAGE('Input | Exit Fees'!J73:K73),0) -> 0 | L16: =IFERROR(AVERAGE('Input | Exit Fees'!K73:L73),0) -> 0 | M16: =IFERROR(AVERAGE('Input | Exit Fees'!L73:M73),0) -> 0 | N16: =IFERROR(AVERAGE('Input | Exit Fees'!M73:N73),0) -> 0 | O16: =IFERROR(AVERAGE('Input | Exit Fees'!N73:O73),0) -> 0
F17: ='Input | Exit Fees'!H74 -> 0 | G17: No. | H17: ='Input | Exit Fees'!D54 -> 0 | K17: =IFERROR(AVERAGE('Input | Exit Fees'!J74:K74),0) -> 0 | L17: =IFERROR(AVERAGE('Input | Exit Fees'!K74:L74),0) -> 0 | M17: =IFERROR(AVERAGE('Input | Exit Fees'!L74:M74),0) -> 0 | N17: =IFERROR(AVERAGE('Input | Exit Fees'!M74:N74),0) -> 0 | O17: =IFERROR(AVERAGE('Input | Exit Fees'!N74:O74),0) -> 0
F18: ='Input | Exit Fees'!H75 -> 0 | G18: No. | H18: ='Input | Exit Fees'!D55 -> 0 | K18: =IFERROR(AVERAGE('Input | Exit Fees'!J75:K75),0) -> 0 | L18: =IFERROR(AVERAGE('Input | Exit Fees'!K75:L75),0) -> 0 | M18: =IFERROR(AVERAGE('Input | Exit Fees'!L75:M75),0) -> 0 | N18: =IFERROR(AVERAGE('Input | Exit Fees'!M75:N75),0) -> 0 | O18: =IFERROR(AVERAGE('Input | Exit Fees'!N75:O75),0) -> 0
F19: ='Input | Exit Fees'!H76 -> 0 | G19: No. | H19: ='Input | Exit Fees'!D56 -> 0 | K19: =IFERROR(AVERAGE('Input | Exit Fees'!J76:K76),0) -> 0 | L19: =IFERROR(AVERAGE('Input | Exit Fees'!K76:L76),0) -> 0 | M19: =IFERROR(AVERAGE('Input | Exit Fees'!L76:M76),0) -> 0 | N19: =IFERROR(AVERAGE('Input | Exit Fees'!M76:N76),0) -> 0 | O19: =IFERROR(AVERAGE('Input | Exit Fees'!N76:O76),0) -> 0
F20: ='Input | Exit Fees'!H77 -> 0 | G20: No. | H20: ='Input | Exit Fees'!D57 -> 0 | K20: =IFERROR(AVERAGE('Input | Exit Fees'!J77:K77),0) -> 0 | L20: =IFERROR(AVERAGE('Input | Exit Fees'!K77:L77),0) -> 0 | M20: =IFERROR(AVERAGE('Input | Exit Fees'!L77:M77),0) -> 0 | N20: =IFERROR(AVERAGE('Input | Exit Fees'!M77:N77),0) -> 0 | O20: =IFERROR(AVERAGE('Input | Exit Fees'!N77:O77),0) -> 0
F21: ='Input | Exit Fees'!H78 -> 0 | G21: No. | H21: ='Input | Exit Fees'!D58 -> 0 | K21: =IFERROR(AVERAGE('Input | Exit Fees'!J78:K78),0) -> 0 | L21: =IFERROR(AVERAGE('Input | Exit Fees'!K78:L78),0) -> 0 | M21: =IFERROR(AVERAGE('Input | Exit Fees'!L78:M78),0) -> 0 | N21: =IFERROR(AVERAGE('Input | Exit Fees'!M78:N78),0) -> 0 | O21: =IFERROR(AVERAGE('Input | Exit Fees'!N78:O78),0) -> 0
F22: ='Input | Exit Fees'!H79 -> 0 | G22: No. | H22: ='Input | Exit Fees'!D59 -> 0 | K22: =IFERROR(AVERAGE('Input | Exit Fees'!J79:K79),0) -> 0 | L22: =IFERROR(AVERAGE('Input | Exit Fees'!K79:L79),0) -> 0 | M22: =IFERROR(AVERAGE('Input | Exit Fees'!L79:M79),0) -> 0 | N22: =IFERROR(AVERAGE('Input | Exit Fees'!M79:N79),0) -> 0 | O22: =IFERROR(AVERAGE('Input | Exit Fees'!N79:O79),0) -> 0
F23: ='Input | Exit Fees'!H80 -> 0 | G23: No. | H23: ='Input | Exit Fees'!D60 -> 0 | K23: =IFERROR(AVERAGE('Input | Exit Fees'!J80:K80),0) -> 0 | L23: =IFERROR(AVERAGE('Input | Exit Fees'!K80:L80),0) -> 0 | M23: =IFERROR(AVERAGE('Input | Exit Fees'!L80:M80),0) -> 0 | N23: =IFERROR(AVERAGE('Input | Exit Fees'!M80:N80),0) -> 0 | O23: =IFERROR(AVERAGE('Input | Exit Fees'!N80:O80),0) -> 0
F24: ='Input | Exit Fees'!H81 -> 0 | G24: No. | H24: ='Input | Exit Fees'!D61 -> 0 | K24: =IFERROR(AVERAGE('Input | Exit Fees'!J81:K81),0) -> 0 | L24: =IFERROR(AVERAGE('Input | Exit Fees'!K81:L81),0) -> 0 | M24: =IFERROR(AVERAGE('Input | Exit Fees'!L81:M81),0) -> 0 | N24: =IFERROR(AVERAGE('Input | Exit Fees'!M81:N81),0) -> 0 | O24: =IFERROR(AVERAGE('Input | Exit Fees'!N81:O81),0) -> 0
F25: ='Input | Exit Fees'!H82 -> 0 | G25: No. | H25: ='Input | Exit Fees'!D62 -> 0 | K25: =IFERROR(AVERAGE('Input | Exit Fees'!J82:K82),0) -> 0 | L25: =IFERROR(AVERAGE('Input | Exit Fees'!K82:L82),0) -> 0 | M25: =IFERROR(AVERAGE('Input | Exit Fees'!L82:M82),0) -> 0 | N25: =IFERROR(AVERAGE('Input | Exit Fees'!M82:N82),0) -> 0 | O25: =IFERROR(AVERAGE('Input | Exit Fees'!N82:O82),0) -> 0
F26: ='Input | Exit Fees'!H83 -> 0 | G26: No. | H26: ='Input | Exit Fees'!D63 -> 0 | K26: =IFERROR(AVERAGE('Input | Exit Fees'!J83:K83),0) -> 0 | L26: =IFERROR(AVERAGE('Input | Exit Fees'!K83:L83),0) -> 0 | M26: =IFERROR(AVERAGE('Input | Exit Fees'!L83:M83),0) -> 0 | N26: =IFERROR(AVERAGE('Input | Exit Fees'!M83:N83),0) -> 0 | O26: =IFERROR(AVERAGE('Input | Exit Fees'!N83:O83),0) -> 0
F27: ='Input | Exit Fees'!H84 -> Total | G27: No. | K27: =SUM(K12:K26) -> 0 | L27: 0 | M27: 0 | N27: 0 | O27: 0
E29: Volume of meters | J29: End Year Vol | K29: Regulatory period
F30: Exit Fee | G30: Units | J30: =LEFT(K30,4)-1&"-"&RIGHT(K30,2)-1 -> 2023-24 | K30: =FPFirstYear -> 2024-25 | L30: =LEFT(K30,4)+1&"-"&RIGHT(K30,2)+1 -> 2025-26 | M30: =LEFT(L30,4)+1&"-"&RIGHT(L30,2)+1 -> 2026-27 | N30: 2027-28 | O30: 2028-29
F31: ='Input | Exit Fees'!$D29 -> 0 | G31: $dollars | J31: =IF($F31=0,0,SUMPRODUCT('Input | Exit Fees'!$J$69:$J$83,($H$12:$H$26=$F31)/1)) -> 0 | K31: =IF($F31=0,0,SUMPRODUCT(K$12:K$26,($H$12:$H$26=$F31)/1)) -> 0 | L31: =IF($F31=0,0,SUMPRODUCT(L$12:L$26,($H$12:$H$26=$F31)/1)) -> 0 | M31: =IF($F31=0,0,SUMPRODUCT(M$12:M$26,($H$12:$H$26=$F31)/1)) -> 0 | N31: =IF($F31=0,0,SUMPRODUCT(N$12:N$26,($H$12:$H$26=$F31)/1)) -> 0 | O31: =IF($F31=0,0,SUMPRODUCT(O$12:O$26,($H$12:$H$26=$F31)/1)) -> 0
F32: ='Input | Exit Fees'!$D30 -> 0 | G32: $dollars | J32: =IF($F32=0,0,SUMPRODUCT('Input | Exit Fees'!$J$69:$J$83,($H$12:$H$26=$F32)/1)) -> 0 | K32: =IF($F32=0,0,SUMPRODUCT(K$12:K$26,($H$12:$H$26=$F32)/1)) -> 0 | L32: =IF($F32=0,0,SUMPRODUCT(L$12:L$26,($H$12:$H$26=$F32)/1)) -> 0 | M32: =IF($F32=0,0,SUMPRODUCT(M$12:M$26,($H$12:$H$26=$F32)/1)) -> 0 | N32: =IF($F32=0,0,SUMPRODUCT(N$12:N$26,($H$12:$H$26=$F32)/1)) -> 0 | O32: =IF($F32=0,0,SUMPRODUCT(O$12:O$26,($H$12:$H$26=$F32)/1)) -> 0
F33: ='Input | Exit Fees'!$D31 -> 0 | G33: $dollars | J33: =IF($F33=0,0,SUMPRODUCT('Input | Exit Fees'!$J$69:$J$83,($H$12:$H$26=$F33)/1)) -> 0 | K33: =IF($F33=0,0,SUMPRODUCT(K$12:K$26,($H$12:$H$26=$F33)/1)) -> 0 | L33: =IF($F33=0,0,SUMPRODUCT(L$12:L$26,($H$12:$H$26=$F33)/1)) -> 0 | M33: =IF($F33=0,0,SUMPRODUCT(M$12:M$26,($H$12:$H$26=$F33)/1)) -> 0 | N33: =IF($F33=0,0,SUMPRODUCT(N$12:N$26,($H$12:$H$26=$F33)/1)) -> 0 | O33: =IF($F33=0,0,SUMPRODUCT(O$12:O$26,($H$12:$H$26=$F33)/1)) -> 0
F34: ='Input | Exit Fees'!$D32 -> 0 | G34: $dollars | J34: =IF($F34=0,0,SUMPRODUCT('Input | Exit Fees'!$J$69:$J$83,($H$12:$H$26=$F34)/1)) -> 0 | K34: =IF($F34=0,0,SUMPRODUCT(K$12:K$26,($H$12:$H$26=$F34)/1)) -> 0 | L34: =IF($F34=0,0,SUMPRODUCT(L$12:L$26,($H$12:$H$26=$F34)/1)) -> 0 | M34: =IF($F34=0,0,SUMPRODUCT(M$12:M$26,($H$12:$H$26=$F34)/1)) -> 0 | N34: =IF($F34=0,0,SUMPRODUCT(N$12:N$26,($H$12:$H$26=$F34)/1)) -> 0 | O34: =IF($F34=0,0,SUMPRODUCT(O$12:O$26,($H$12:$H$26=$F34)/1)) -> 0
F35: ='Input | Exit Fees'!$D33 -> 0 | G35: $dollars | J35: =IF($F35=0,0,SUMPRODUCT('Input | Exit Fees'!$J$69:$J$83,($H$12:$H$26=$F35)/1)) -> 0 | K35: =IF($F35=0,0,SUMPRODUCT(K$12:K$26,($H$12:$H$26=$F35)/1)) -> 0 | L35: =IF($F35=0,0,SUMPRODUCT(L$12:L$26,($H$12:$H$26=$F35)/1)) -> 0 | M35: =IF($F35=0,0,SUMPRODUCT(M$12:M$26,($H$12:$H$26=$F35)/1)) -> 0 | N35: =IF($F35=0,0,SUMPRODUCT(N$12:N$26,($H$12:$H$26=$F35)/1)) -> 0 | O35: =IF($F35=0,0,SUMPRODUCT(O$12:O$26,($H$12:$H$26=$F35)/1)) -> 0
F36: ='Input | Exit Fees'!$D34 -> 0 | G36: $dollars | J36: =IF($F36=0,0,SUMPRODUCT('Input | Exit Fees'!$J$69:$J$83,($H$12:$H$26=$F36)/1)) -> 0 | K36: =IF($F36=0,0,SUMPRODUCT(K$12:K$26,($H$12:$H$26=$F36)/1)) -> 0 | L36: =IF($F36=0,0,SUMPRODUCT(L$12:L$26,($H$12:$H$26=$F36)/1)) -> 0 | M36: =IF($F36=0,0,SUMPRODUCT(M$12:M$26,($H$12:$H$26=$F36)/1)) -> 0 | N36: =IF($F36=0,0,SUMPRODUCT(N$12:N$26,($H$12:$H$26=$F36)/1)) -> 0 | O36: =IF($F36=0,0,SUMPRODUCT(O$12:O$26,($H$12:$H$26=$F36)/1)) -> 0
F37: ='Input | Exit Fees'!$D35 -> 0 | G37: $dollars | J37: =IF($F37=0,0,SUMPRODUCT('Input | Exit Fees'!$J$69:$J$83,($H$12:$H$26=$F37)/1)) -> 0 | K37: =IF($F37=0,0,SUMPRODUCT(K$12:K$26,($H$12:$H$26=$F37)/1)) -> 0 | L37: =IF($F37=0,0,SUMPRODUCT(L$12:L$26,($H$12:$H$26=$F37)/1)) -> 0 | M37: =IF($F37=0,0,SUMPRODUCT(M$12:M$26,($H$12:$H$26=$F37)/1)) -> 0 | N37: =IF($F37=0,0,SUMPRODUCT(N$12:N$26,($H$12:$H$26=$F37)/1)) -> 0 | O37: =IF($F37=0,0,SUMPRODUCT(O$12:O$26,($H$12:$H$26=$F37)/1)) -> 0
F38: ='Input | Exit Fees'!$D36 -> 0 | G38: $dollars | J38: =IF($F38=0,0,SUMPRODUCT('Input | Exit Fees'!$J$69:$J$83,($H$12:$H$26=$F38)/1)) -> 0 | K38: =IF($F38=0,0,SUMPRODUCT(K$12:K$26,($H$12:$H$26=$F38)/1)) -> 0 | L38: =IF($F38=0,0,SUMPRODUCT(L$12:L$26,($H$12:$H$26=$F38)/1)) -> 0 | M38: =IF($F38=0,0,SUMPRODUCT(M$12:M$26,($H$12:$H$26=$F38)/1)) -> 0 | N38: =IF($F38=0,0,SUMPRODUCT(N$12:N$26,($H$12:$H$26=$F38)/1)) -> 0 | O38: =IF($F38=0,0,SUMPRODUCT(O$12:O$26,($H$12:$H$26=$F38)/1)) -> 0
F39: ='Input | Exit Fees'!$D37 -> 0 | G39: $dollars | J39: =IF($F39=0,0,SUMPRODUCT('Input | Exit Fees'!$J$69:$J$83,($H$12:$H$26=$F39)/1)) -> 0 | K39: =IF($F39=0,0,SUMPRODUCT(K$12:K$26,($H$12:$H$26=$F39)/1)) -> 0 | L39: =IF($F39=0,0,SUMPRODUCT(L$12:L$26,($H$12:$H$26=$F39)/1)) -> 0 | M39: =IF($F39=0,0,SUMPRODUCT(M$12:M$26,($H$12:$H$26=$F39)/1)) -> 0 | N39: =IF($F39=0,0,SUMPRODUCT(N$12:N$26,($H$12:$H$26=$F39)/1)) -> 0 | O39: =IF($F39=0,0,SUMPRODUCT(O$12:O$26,($H$12:$H$26=$F39)/1)) -> 0
F40: ='Input | Exit Fees'!$D38 -> 0 | G40: $dollars | J40: =IF($F40=0,0,SUMPRODUCT('Input | Exit Fees'!$J$69:$J$83,($H$12:$H$26=$F40)/1)) -> 0 | K40: =IF($F40=0,0,SUMPRODUCT(K$12:K$26,($H$12:$H$26=$F40)/1)) -> 0 | L40: =IF($F40=0,0,SUMPRODUCT(L$12:L$26,($H$12:$H$26=$F40)/1)) -> 0 | M40: =IF($F40=0,0,SUMPRODUCT(M$12:M$26,($H$12:$H$26=$F40)/1)) -> 0 | N40: =IF($F40=0,0,SUMPRODUCT(N$12:N$26,($H$12:$H$26=$F40)/1)) -> 0 | O40: =IF($F40=0,0,SUMPRODUCT(O$12:O$26,($H$12:$H$26=$F40)/1)) -> 0
F41: Total | G41: $dollars | J41: =SUM(J31:J40) -> 0 | K41: 0 | L41: 0 | M41: 0 | N41: 0 | O41: 0
E44: Cost-Weighted Volume of Meters | K44: Regulatory period
F45: Exit Fee | G45: Units | K45: =FPFirstYear -> 2024-25 | L45: =LEFT(K45,4)+1&"-"&RIGHT(K45,2)+1 -> 2025-26 | M45: =LEFT(L45,4)+1&"-"&RIGHT(L45,2)+1 -> 2026-27 | N45: =LEFT(M45,4)+1&"-"&RIGHT(M45,2)+1 -> 2027-28 | O45: =LEFT(N45,4)+1&"-"&RIGHT(N45,2)+1 -> 2028-29
F46: ='Input | Exit Fees'!$D29 -> 0 | G46: $dollars | K46: =SUMPRODUCT('Input | Exit Fees'!$M$49:$M$63,K$12:K$26,($H$12:$H$26=$F46)/1) -> 0 | L46: =SUMPRODUCT('Input | Exit Fees'!$M$49:$M$63,L$12:L$26,($H$12:$H$26=$F46)/1) -> 0 | M46: =SUMPRODUCT('Input | Exit Fees'!$M$49:$M$63,M$12:M$26,($H$12:$H$26=$F46)/1) -> 0 | N46: =SUMPRODUCT('Input | Exit Fees'!$M$49:$M$63,N$12:N$26,($H$12:$H$26=$F46)/1) -> 0 | O46: =SUMPRODUCT('Input | Exit Fees'!$M$49:$M$63,O$12:O$26,($H$12:$H$26=$F46)/1) -> 0
F47: ='Input | Exit Fees'!$D30 -> 0 | G47: $dollars | K47: =SUMPRODUCT('Input | Exit Fees'!$M$49:$M$63,K$12:K$26,($H$12:$H$26=$F47)/1) -> 0 | L47: =SUMPRODUCT('Input | Exit Fees'!$M$49:$M$63,L$12:L$26,($H$12:$H$26=$F47)/1) -> 0 | M47: =SUMPRODUCT('Input | Exit Fees'!$M$49:$M$63,M$12:M$26,($H$12:$H$26=$F47)/1) -> 0 | N47: =SUMPRODUCT('Input | Exit Fees'!$M$49:$M$63,N$12:N$26,($H$12:$H$26=$F47)/1) -> 0 | O47: =SUMPRODUCT('Input | Exit Fees'!$M$49:$M$63,O$12:O$26,($H$12:$H$26=$F47)/1) -> 0
F48: ='Input | Exit Fees'!$D31 -> 0 | G48: $dollars | K48: =SUMPRODUCT('Input | Exit Fees'!$M$49:$M$63,K$12:K$26,($H$12:$H$26=$F48)/1) -> 0 | L48: =SUMPRODUCT('Input | Exit Fees'!$M$49:$M$63,L$12:L$26,($H$12:$H$26=$F48)/1) -> 0 | M48: =SUMPRODUCT('Input | Exit Fees'!$M$49:$M$63,M$12:M$26,($H$12:$H$26=$F48)/1) -> 0 | N48: =SUMPRODUCT('Input | Exit Fees'!$M$49:$M$63,N$12:N$26,($H$12:$H$26=$F48)/1) -> 0 | O48: =SUMPRODUCT('Input | Exit Fees'!$M$49:$M$63,O$12:O$26,($H$12:$H$26=$F48)/1) -> 0
F49: ='Input | Exit Fees'!$D32 -> 0 | G49: $dollars | K49: =SUMPRODUCT('Input | Exit Fees'!$M$49:$M$63,K$12:K$26,($H$12:$H$26=$F49)/1) -> 0 | L49: =SUMPRODUCT('Input | Exit Fees'!$M$49:$M$63,L$12:L$26,($H$12:$H$26=$F49)/1) -> 0 | M49: =SUMPRODUCT('Input | Exit Fees'!$M$49:$M$63,M$12:M$26,($H$12:$H$26=$F49)/1) -> 0 | N49: =SUMPRODUCT('Input | Exit Fees'!$M$49:$M$63,N$12:N$26,($H$12:$H$26=$F49)/1) -> 0 | O49: =SUMPRODUCT('Input | Exit Fees'!$M$49:$M$63,O$12:O$26,($H$12:$H$26=$F49)/1) -> 0
F50: ='Input | Exit Fees'!$D33 -> 0 | G50: $dollars | K50: =SUMPRODUCT('Input | Exit Fees'!$M$49:$M$63,K$12:K$26,($H$12:$H$26=$F50)/1) -> 0 | L50: =SUMPRODUCT('Input | Exit Fees'!$M$49:$M$63,L$12:L$26,($H$12:$H$26=$F50)/1) -> 0 | M50: =SUMPRODUCT('Input | Exit Fees'!$M$49:$M$63,M$12:M$26,($H$12:$H$26=$F50)/1) -> 0 | N50: =SUMPRODUCT('Input | Exit Fees'!$M$49:$M$63,N$12:N$26,($H$12:$H$26=$F50)/1) -> 0 | O50: =SUMPRODUCT('Input | Exit Fees'!$M$49:$M$63,O$12:O$26,($H$12:$H$26=$F50)/1) -> 0
F51: ='Input | Exit Fees'!$D34 -> 0 | G51: $dollars | K51: =SUMPRODUCT('Input | Exit Fees'!$M$49:$M$63,K$12:K$26,($H$12:$H$26=$F51)/1) -> 0 | L51: =SUMPRODUCT('Input | Exit Fees'!$M$49:$M$63,L$12:L$26,($H$12:$H$26=$F51)/1) -> 0 | M51: =SUMPRODUCT('Input | Exit Fees'!$M$49:$M$63,M$12:M$26,($H$12:$H$26=$F51)/1) -> 0 | N51: =SUMPRODUCT('Input | Exit Fees'!$M$49:$M$63,N$12:N$26,($H$12:$H$26=$F51)/1) -> 0 | O51: =SUMPRODUCT('Input | Exit Fees'!$M$49:$M$63,O$12:O$26,($H$12:$H$26=$F51)/1) -> 0
F52: ='Input | Exit Fees'!$D35 -> 0 | G52: $dollars | K52: =SUMPRODUCT('Input | Exit Fees'!$M$49:$M$63,K$12:K$26,($H$12:$H$26=$F52)/1) -> 0 | L52: =SUMPRODUCT('Input | Exit Fees'!$M$49:$M$63,L$12:L$26,($H$12:$H$26=$F52)/1) -> 0 | M52: =SUMPRODUCT('Input | Exit Fees'!$M$49:$M$63,M$12:M$26,($H$12:$H$26=$F52)/1) -> 0 | N52: =SUMPRODUCT('Input | Exit Fees'!$M$49:$M$63,N$12:N$26,($H$12:$H$26=$F52)/1) -> 0 | O52: =SUMPRODUCT('Input | Exit Fees'!$M$49:$M$63,O$12:O$26,($H$12:$H$26=$F52)/1) -> 0
F53: ='Input | Exit Fees'!$D36 -> 0 | G53: $dollars | K53: =SUMPRODUCT('Input | Exit Fees'!$M$49:$M$63,K$12:K$26,($H$12:$H$26=$F53)/1) -> 0 | L53: =SUMPRODUCT('Input | Exit Fees'!$M$49:$M$63,L$12:L$26,($H$12:$H$26=$F53)/1) -> 0 | M53: =SUMPRODUCT('Input | Exit Fees'!$M$49:$M$63,M$12:M$26,($H$12:$H$26=$F53)/1) -> 0 | N53: =SUMPRODUCT('Input | Exit Fees'!$M$49:$M$63,N$12:N$26,($H$12:$H$26=$F53)/1) -> 0 | O53: =SUMPRODUCT('Input | Exit Fees'!$M$49:$M$63,O$12:O$26,($H$12:$H$26=$F53)/1) -> 0
F54: ='Input | Exit Fees'!$D37 -> 0 | G54: $dollars | K54: =SUMPRODUCT('Input | Exit Fees'!$M$49:$M$63,K$12:K$26,($H$12:$H$26=$F54)/1) -> 0 | L54: =SUMPRODUCT('Input | Exit Fees'!$M$49:$M$63,L$12:L$26,($H$12:$H$26=$F54)/1) -> 0 | M54: =SUMPRODUCT('Input | Exit Fees'!$M$49:$M$63,M$12:M$26,($H$12:$H$26=$F54)/1) -> 0 | N54: =SUMPRODUCT('Input | Exit Fees'!$M$49:$M$63,N$12:N$26,($H$12:$H$26=$F54)/1) -> 0 | O54: =SUMPRODUCT('Input | Exit Fees'!$M$49:$M$63,O$12:O$26,($H$12:$H$26=$F54)/1) -> 0
F55: ='Input | Exit Fees'!$D38 -> 0 | G55: $dollars | K55: =SUMPRODUCT('Input | Exit Fees'!$M$49:$M$63,K$12:K$26,($H$12:$H$26=$F55)/1) -> 0 | L55: =SUMPRODUCT('Input | Exit Fees'!$M$49:$M$63,L$12:L$26,($H$12:$H$26=$F55)/1) -> 0 | M55: =SUMPRODUCT('Input | Exit Fees'!$M$49:$M$63,M$12:M$26,($H$12:$H$26=$F55)/1) -> 0 | N55: =SUMPRODUCT('Input | Exit Fees'!$M$49:$M$63,N$12:N$26,($H$12:$H$26=$F55)/1) -> 0 | O55: =SUMPRODUCT('Input | Exit Fees'!$M$49:$M$63,O$12:O$26,($H$12:$H$26=$F55)/1) -> 0
F56: Total | G56: $dollars | K56: =SUM(K46:K55) -> 0 | L56: =SUM(L46:L55) -> 0 | M56: =SUM(M46:M55) -> 0 | N56: =SUM(N46:N55) -> 0 | O56: =SUM(O46:O55) -> 0
E59: Proportionate Volume-Weighted Costs | K59: Regulatory period
F60: Exit Fee | G60: Units | K60: =FPFirstYear -> 2024-25 | L60: =LEFT(K60,4)+1&"-"&RIGHT(K60,2)+1 -> 2025-26 | M60: =LEFT(L60,4)+1&"-"&RIGHT(L60,2)+1 -> 2026-27 | N60: =LEFT(M60,4)+1&"-"&RIGHT(M60,2)+1 -> 2027-28 | O60: =LEFT(N60,4)+1&"-"&RIGHT(N60,2)+1 -> 2028-29
F61: ='Input | Exit Fees'!$D29 -> 0 | G61: % | K61: =K46/K$56 -> 
F62: ='Input | Exit Fees'!$D30 -> 0 | G62: %
F63: ='Input | Exit Fees'!$D31 -> 0 | G63: %
F64: ='Input | Exit Fees'!$D32 -> 0 | G64: %
F65: ='Input | Exit Fees'!$D33 -> 0 | G65: %
F66: ='Input | Exit Fees'!$D34 -> 0 | G66: %
F67: ='Input | Exit Fees'!$D35 -> 0 | G67: %
F68: ='Input | Exit Fees'!$D36 -> 0 | G68: %
F69: ='Input | Exit Fees'!$D37 -> 0 | G69: %
F70: ='Input | Exit Fees'!$D38 -> 0 | G70: %
F71: Total | G71: % | K71: =SUM(K61:K70) ->  | L71: =SUM(L61:L70) ->  | M71: =SUM(M61:M70) ->  | N71: =SUM(N61:N70) ->  | O71: =SUM(O61:O70) -> 
A72: =PRODUCT(J72:O72) ->  | K72: =(K71=1)/1 ->  | L72: =(L71=1)/1 ->  | M72: =(M71=1)/1 ->  | N72: =(N71=1)/1 ->  | O72: =(O71=1)/1 -> 
E75: Allocated Meter RAB by Designated Exit Fee | K75: Regulatory period
F76: Exit Fee | G76: Units | K76: =FPFirstYear -> 2024-25 | L76: =LEFT(K76,4)+1&"-"&RIGHT(K76,2)+1 -> 2025-26 | M76: =LEFT(L76,4)+1&"-"&RIGHT(L76,2)+1 -> 2026-27 | N76: =LEFT(M76,4)+1&"-"&RIGHT(M76,2)+1 -> 2027-28 | O76: =LEFT(N76,4)+1&"-"&RIGHT(N76,2)+1 -> 2028-29
F77: ='Input | Exit Fees'!$D29 -> 0 | G77: $m | K77: =AVERAGE('Input | Exit Fees'!H$9:I$9)*'Calc | Exit Fees'!K61 ->  | L77: =AVERAGE('Input | Exit Fees'!I$9:J$9)*'Calc | Exit Fees'!L61 ->  | M77: =AVERAGE('Input | Exit Fees'!J$9:K$9)*'Calc | Exit Fees'!M61 ->  | N77: =AVERAGE('Input | Exit Fees'!K$9:L$9)*'Calc | Exit Fees'!N61 ->  | O77: =AVERAGE('Input | Exit Fees'!L$9:M$9)*'Calc | Exit Fees'!O61 -> 
F78: ='Input | Exit Fees'!$D30 -> 0 | G78: $m | K78: =AVERAGE('Input | Exit Fees'!H$9:I$9)*'Calc | Exit Fees'!K62 ->  | L78: =AVERAGE('Input | Exit Fees'!I$9:J$9)*'Calc | Exit Fees'!L62 ->  | M78: =AVERAGE('Input | Exit Fees'!J$9:K$9)*'Calc | Exit Fees'!M62 ->  | N78: =AVERAGE('Input | Exit Fees'!K$9:L$9)*'Calc | Exit Fees'!N62 ->  | O78: =AVERAGE('Input | Exit Fees'!L$9:M$9)*'Calc | Exit Fees'!O62 -> 
F79: ='Input | Exit Fees'!$D31 -> 0 | G79: $m | K79: =AVERAGE('Input | Exit Fees'!G$8:H$9)*'Calc | Exit Fees'!K63 ->  | L79: =AVERAGE('Input | Exit Fees'!H$8:I$9)*'Calc | Exit Fees'!L63 ->  | M79: =AVERAGE('Input | Exit Fees'!I$8:J$9)*'Calc | Exit Fees'!M63 ->  | N79: =AVERAGE('Input | Exit Fees'!J$8:K$9)*'Calc | Exit Fees'!N63 ->  | O79: =AVERAGE('Input | Exit Fees'!K$8:L$9)*'Calc | Exit Fees'!O63 -> 
F80: ='Input | Exit Fees'!$D32 -> 0 | G80: $m | K80: =AVERAGE('Input | Exit Fees'!G$8:H$9)*'Calc | Exit Fees'!K64 ->  | L80: =AVERAGE('Input | Exit Fees'!H$8:I$9)*'Calc | Exit Fees'!L64 ->  | M80: =AVERAGE('Input | Exit Fees'!I$8:J$9)*'Calc | Exit Fees'!M64 ->  | N80: =AVERAGE('Input | Exit Fees'!J$8:K$9)*'Calc | Exit Fees'!N64 ->  | O80: =AVERAGE('Input | Exit Fees'!K$8:L$9)*'Calc | Exit Fees'!O64 -> 
F81: ='Input | Exit Fees'!$D33 -> 0 | G81: $m | K81: =AVERAGE('Input | Exit Fees'!G$8:H$9)*'Calc | Exit Fees'!K65 ->  | L81: =AVERAGE('Input | Exit Fees'!H$8:I$9)*'Calc | Exit Fees'!L65 ->  | M81: =AVERAGE('Input | Exit Fees'!I$8:J$9)*'Calc | Exit Fees'!M65 ->  | N81: =AVERAGE('Input | Exit Fees'!J$8:K$9)*'Calc | Exit Fees'!N65 ->  | O81: =AVERAGE('Input | Exit Fees'!K$8:L$9)*'Calc | Exit Fees'!O65 -> 
F82: ='Input | Exit Fees'!$D34 -> 0 | G82: $m | K82: =AVERAGE('Input | Exit Fees'!G$8:H$9)*'Calc | Exit Fees'!K66 ->  | L82: =AVERAGE('Input | Exit Fees'!H$8:I$9)*'Calc | Exit Fees'!L66 ->  | M82: =AVERAGE('Input | Exit Fees'!I$8:J$9)*'Calc | Exit Fees'!M66 ->  | N82: =AVERAGE('Input | Exit Fees'!J$8:K$9)*'Calc | Exit Fees'!N66 ->  | O82: =AVERAGE('Input | Exit Fees'!K$8:L$9)*'Calc | Exit Fees'!O66 -> 
F83: ='Input | Exit Fees'!$D35 -> 0 | G83: $m | K83: =AVERAGE('Input | Exit Fees'!G$8:H$9)*'Calc | Exit Fees'!K67 ->  | L83: =AVERAGE('Input | Exit Fees'!H$8:I$9)*'Calc | Exit Fees'!L67 ->  | M83: =AVERAGE('Input | Exit Fees'!I$8:J$9)*'Calc | Exit Fees'!M67 ->  | N83: =AVERAGE('Input | Exit Fees'!J$8:K$9)*'Calc | Exit Fees'!N67 ->  | O83: =AVERAGE('Input | Exit Fees'!K$8:L$9)*'Calc | Exit Fees'!O67 -> 
F84: ='Input | Exit Fees'!$D36 -> 0 | G84: $m | K84: =AVERAGE('Input | Exit Fees'!G$8:H$9)*'Calc | Exit Fees'!K68 ->  | L84: =AVERAGE('Input | Exit Fees'!H$8:I$9)*'Calc | Exit Fees'!L68 ->  | M84: =AVERAGE('Input | Exit Fees'!I$8:J$9)*'Calc | Exit Fees'!M68 ->  | N84: =AVERAGE('Input | Exit Fees'!J$8:K$9)*'Calc | Exit Fees'!N68 ->  | O84: =AVERAGE('Input | Exit Fees'!K$8:L$9)*'Calc | Exit Fees'!O68 -> 
F85: ='Input | Exit Fees'!$D37 -> 0 | G85: $m | K85: =AVERAGE('Input | Exit Fees'!G$8:H$9)*'Calc | Exit Fees'!K69 ->  | L85: =AVERAGE('Input | Exit Fees'!H$8:I$9)*'Calc | Exit Fees'!L69 ->  | M85: =AVERAGE('Input | Exit Fees'!I$8:J$9)*'Calc | Exit Fees'!M69 ->  | N85: =AVERAGE('Input | Exit Fees'!J$8:K$9)*'Calc | Exit Fees'!N69 ->  | O85: =AVERAGE('Input | Exit Fees'!K$8:L$9)*'Calc | Exit Fees'!O69 -> 
F86: ='Input | Exit Fees'!$D38 -> 0 | G86: $m | K86: =AVERAGE('Input | Exit Fees'!G$8:H$9)*'Calc | Exit Fees'!K70 ->  | L86: =AVERAGE('Input | Exit Fees'!H$8:I$9)*'Calc | Exit Fees'!L70 ->  | M86: =AVERAGE('Input | Exit Fees'!I$8:J$9)*'Calc | Exit Fees'!M70 ->  | N86: =AVERAGE('Input | Exit Fees'!J$8:K$9)*'Calc | Exit Fees'!N70 ->  | O86: =AVERAGE('Input | Exit Fees'!K$8:L$9)*'Calc | Exit Fees'!O70 -> 
F87: Total | G87: $m | K87: =SUM(K77:K86) ->  | L87: =SUM(L77:L86) ->  | M87: =SUM(M77:M86) ->  | N87: =SUM(N77:N86) ->  | O87: =SUM(O77:O86) -> 
A88: =PRODUCT(J88:O88) ->  | K88: =(K87=AVERAGE('Input | Exit Fees'!H$9:I$9))/1 ->  | L88: =(L87=AVERAGE('Input | Exit Fees'!I$9:J$9))/1 ->  | M88: =(M87=AVERAGE('Input | Exit Fees'!J$9:K$9))/1 ->  | N88: =(N87=AVERAGE('Input | Exit Fees'!K$9:L$9))/1 ->  | O88: =(O87=AVERAGE('Input | Exit Fees'!L$9:M$9))/1 -> 
E90: Allocated Meter RAB by Designated Exit Fee Per Meter | K90: Regulatory period
F91: Exit Fee | G91: Units | K91: =FPFirstYear -> 2024-25 | L91: =LEFT(K91,4)+1&"-"&RIGHT(K91,2)+1 -> 2025-26 | M91: =LEFT(L91,4)+1&"-"&RIGHT(L91,2)+1 -> 2026-27 | N91: =LEFT(M91,4)+1&"-"&RIGHT(M91,2)+1 -> 2027-28 | O91: =LEFT(N91,4)+1&"-"&RIGHT(N91,2)+1 -> 2028-29
F92: ='Input | Exit Fees'!$D29 -> 0 | G92: $dollars | K92: =IFERROR(K77*10^6/K31,0) -> 0 | L92: 0 | M92: 0 | N92: 0 | O92: 0
F93: ='Input | Exit Fees'!$D30 -> 0 | G93: $dollars | K93: 0 | L93: 0 | M93: 0 | N93: 0 | O93: 0
F94: ='Input | Exit Fees'!$D31 -> 0 | G94: $dollars | K94: 0 | L94: 0 | M94: 0 | N94: 0 | O94: 0
F95: ='Input | Exit Fees'!$D32 -> 0 | G95: $dollars | K95: 0 | L95: 0 | M95: 0 | N95: 0 | O95: 0
F96: ='Input | Exit Fees'!$D33 -> 0 | G96: $dollars | K96: 0 | L96: 0 | M96: 0 | N96: 0 | O96: 0
F97: ='Input | Exit Fees'!$D34 -> 0 | G97: $dollars | K97: 0 | L97: 0 | M97: 0 | N97: 0 | O97: 0
F98: ='Input | Exit Fees'!$D35 -> 0 | G98: $dollars | K98: 0 | L98: 0 | M98: 0 | N98: 0 | O98: 0
F99: ='Input | Exit Fees'!$D36 -> 0 | G99: $dollars | K99: 0 | L99: 0 | M99: 0 | N99: 0 | O99: 0
F100: ='Input | Exit Fees'!$D37 -> 0 | G100: $dollars | K100: 0 | L100: 0 | M100: 0 | N100: 0 | O100: 0
F101: ='Input | Exit Fees'!$D38 -> 0 | G101: $dollars | K101: 0 | L101: 0 | M101: 0 | N101: 0 | O101: 0
B103: Calculations | Comms & IT
C105: Calculation of Allocated Comms & IT RAB by Designated Exit Fee
K107: Regulatory period
F108: Exit Fee Component | G108: Units | K108: =FPFirstYear -> 2024-25 | L108: =LEFT(K108,4)+1&"-"&RIGHT(K108,2)+1 -> 2025-26 | M108: =LEFT(L108,4)+1&"-"&RIGHT(L108,2)+1 -> 2026-27 | N108: =LEFT(M108,4)+1&"-"&RIGHT(M108,2)+1 -> 2027-28 | O108: =LEFT(N108,4)+1&"-"&RIGHT(N108,2)+1 -> 2028-29
F109: Comms & IT RAB per meter | G109: $dollars | K109: =(AVERAGE('Input | Exit Fees'!G$16:H$16)*10^6)/'Calc | Exit Fees'!K$41 ->  | L109: =(AVERAGE('Input | Exit Fees'!H$16:I$16)*10^6)/'Calc | Exit Fees'!L$41 ->  | M109: =(AVERAGE('Input | Exit Fees'!I$16:J$16)*10^6)/'Calc | Exit Fees'!M$41 ->  | N109: =(AVERAGE('Input | Exit Fees'!J$16:K$16)*10^6)/'Calc | Exit Fees'!N$41 ->  | O109: =(AVERAGE('Input | Exit Fees'!K$16:L$16)*10^6)/'Calc | Exit Fees'!O$41 -> 
B113: Calculations | Exit Fees with Component Detail
F115: Base Year | G115: Regulatory period
G116: Tariff ($/year)
C117: No. | D117: Exit Fee Name | E117: Component | F117: 2020-21 | G117: 2021-22 | H117: 2022-23 | I117: 2023-24 | J117: 2024-25 | K117: 2025-26
C118: 1 | D118: ='Input | Exit Fees'!D29 -> 0
E119: Meter RAB | G119: =IF($D118=0,0,SUMIFS('Calc | Exit Fees'!K$92:K$101,'Input | Exit Fees'!$D$29:$D$38,$D118)) -> 0 | H119: =IF($D118=0,0,SUMIFS('Calc | Exit Fees'!L$92:L$101,'Input | Exit Fees'!$D$29:$D$38,$D118)) -> 0 | I119: =IF($D118=0,0,SUMIFS('Calc | Exit Fees'!M$92:M$101,'Input | Exit Fees'!$D$29:$D$38,$D118)) -> 0 | J119: =IF($D118=0,0,SUMIFS('Calc | Exit Fees'!N$92:N$101,'Input | Exit Fees'!$D$29:$D$38,$D118)) -> 0 | K119: =IF($D118=0,0,SUMIFS('Calc | Exit Fees'!O$92:O$101,'Input | Exit Fees'!$D$29:$D$38,$D118)) -> 0
E120: Comms & IT | G120: =IF($D118=0,0,'Calc | Exit Fees'!K$109) -> 0 | H120: =IF($D118=0,0,'Calc | Exit Fees'!L$109) -> 0 | I120: =IF($D118=0,0,'Calc | Exit Fees'!M$109) -> 0 | J120: =IF($D118=0,0,'Calc | Exit Fees'!N$109) -> 0 | K120: =IF($D118=0,0,'Calc | Exit Fees'!O$109) -> 0
E121: Admin cost | G121: =IF($D118=0,0,'Input | Exit Fees'!K$119) -> 0 | H121: =IF($D118=0,0,'Input | Exit Fees'!L$119) -> 0 | I121: =IF($D118=0,0,'Input | Exit Fees'!M$119) -> 0 | J121: =IF($D118=0,0,'Input | Exit Fees'!N$119) -> 0 | K121: =IF($D118=0,0,'Input | Exit Fees'!O$119) -> 0
E123: TOTAL exit fee | F123: =IF(D118=0,0,'Input | Exit Fees'!G29) -> 0 | G123: =SUM(G119:G122) -> 0 | H123: =SUM(H119:H122) -> 0 | I123: 0 | J123: 0 | K123: 0
C124: 2 | D124: ='Input | Exit Fees'!D30 -> 0
E125: =IF($D124=0,"",E$119) ->  | G125: =IF($D124=0,0,SUMIFS('Calc | Exit Fees'!K$92:K$101,'Input | Exit Fees'!$D$29:$D$38,$D124)) -> 0 | H125: =IF($D124=0,0,SUMIFS('Calc | Exit Fees'!L$92:L$101,'Input | Exit Fees'!$D$29:$D$38,$D124)) -> 0 | I125: =IF($D124=0,0,SUMIFS('Calc | Exit Fees'!M$92:M$101,'Input | Exit Fees'!$D$29:$D$38,$D124)) -> 0 | J125: =IF($D124=0,0,SUMIFS('Calc | Exit Fees'!N$92:N$101,'Input | Exit Fees'!$D$29:$D$38,$D124)) -> 0 | K125: =IF($D124=0,0,SUMIFS('Calc | Exit Fees'!O$92:O$101,'Input | Exit Fees'!$D$29:$D$38,$D124)) -> 0
E126: =IF($D124=0,"",E$120) ->  | G126: =IF($D124=0,0,'Calc | Exit Fees'!K$109) -> 0 | H126: =IF($D124=0,0,'Calc | Exit Fees'!L$109) -> 0 | I126: =IF($D124=0,0,'Calc | Exit Fees'!M$109) -> 0 | J126: =IF($D124=0,0,'Calc | Exit Fees'!N$109) -> 0 | K126: =IF($D124=0,0,'Calc | Exit Fees'!O$109) -> 0
E127: =IF($D124=0,"",E$121) ->  | G127: =IF($D124=0,0,'Input | Exit Fees'!K$119) -> 0 | H127: =IF($D124=0,0,'Input | Exit Fees'!L$119) -> 0 | I127: =IF($D124=0,0,'Input | Exit Fees'!M$119) -> 0 | J127: =IF($D124=0,0,'Input | Exit Fees'!N$119) -> 0 | K127: =IF($D124=0,0,'Input | Exit Fees'!O$119) -> 0
E129: =IF($D124=0,"",E$123) ->  | F129: =IF(D124=0,0,'Input | Exit Fees'!G30) -> 0 | G129: =SUM(G125:G128) -> 0 | H129: =SUM(H125:H128) -> 0 | I129: 0 | J129: 0 | K129: 0
C130: 3 | D130: ='Input | Exit Fees'!D31 -> 0
E131: =IF($D130=0,"",E$119) ->  | G131: =IF($D130=0,0,SUMIFS('Calc | Exit Fees'!K$92:K$101,'Input | Exit Fees'!$D$29:$D$38,$D130)) -> 0 | H131: =IF($D130=0,0,SUMIFS('Calc | Exit Fees'!L$92:L$101,'Input | Exit Fees'!$D$29:$D$38,$D130)) -> 0 | I131: =IF($D130=0,0,SUMIFS('Calc | Exit Fees'!M$92:M$101,'Input | Exit Fees'!$D$29:$D$38,$D130)) -> 0 | J131: =IF($D130=0,0,SUMIFS('Calc | Exit Fees'!N$92:N$101,'Input | Exit Fees'!$D$29:$D$38,$D130)) -> 0 | K131: =IF($D130=0,0,SUMIFS('Calc | Exit Fees'!O$92:O$101,'Input | Exit Fees'!$D$29:$D$38,$D130)) -> 0
E132: =IF($D130=0,"",E$120) ->  | G132: =IF($D130=0,0,'Calc | Exit Fees'!K$109) -> 0 | H132: =IF($D130=0,0,'Calc | Exit Fees'!L$109) -> 0 | I132: =IF($D130=0,0,'Calc | Exit Fees'!M$109) -> 0 | J132: =IF($D130=0,0,'Calc | Exit Fees'!N$109) -> 0 | K132: =IF($D130=0,0,'Calc | Exit Fees'!O$109) -> 0
E133: =IF($D130=0,"",E$121) ->  | G133: =IF($D130=0,0,'Input | Exit Fees'!K$119) -> 0 | H133: =IF($D130=0,0,'Input | Exit Fees'!L$119) -> 0 | I133: =IF($D130=0,0,'Input | Exit Fees'!M$119) -> 0 | J133: =IF($D130=0,0,'Input | Exit Fees'!N$119) -> 0 | K133: =IF($D130=0,0,'Input | Exit Fees'!O$119) -> 0
E135: =IF($D130=0,"",E$123) ->  | F135: =IF(D130=0,0,'Input | Exit Fees'!G31) -> 0 | G135: =SUM(G131:G134) -> 0 | H135: =SUM(H131:H134) -> 0 | I135: 0 | J135: 0 | K135: 0
C136: 4 | D136: ='Input | Exit Fees'!D32 -> 0
E137: =IF($D136=0,"",E$119) ->  | G137: =IF($D136=0,0,SUMIFS('Calc | Exit Fees'!K$92:K$101,'Input | Exit Fees'!$D$29:$D$38,$D136)) -> 0 | H137: =IF($D136=0,0,SUMIFS('Calc | Exit Fees'!L$92:L$101,'Input | Exit Fees'!$D$29:$D$38,$D136)) -> 0 | I137: =IF($D136=0,0,SUMIFS('Calc | Exit Fees'!M$92:M$101,'Input | Exit Fees'!$D$29:$D$38,$D136)) -> 0 | J137: =IF($D136=0,0,SUMIFS('Calc | Exit Fees'!N$92:N$101,'Input | Exit Fees'!$D$29:$D$38,$D136)) -> 0 | K137: =IF($D136=0,0,SUMIFS('Calc | Exit Fees'!O$92:O$101,'Input | Exit Fees'!$D$29:$D$38,$D136)) -> 0
E138: =IF($D136=0,"",E$120) ->  | G138: =IF($D136=0,0,'Calc | Exit Fees'!K$109) -> 0 | H138: =IF($D136=0,0,'Calc | Exit Fees'!L$109) -> 0 | I138: =IF($D136=0,0,'Calc | Exit Fees'!M$109) -> 0 | J138: =IF($D136=0,0,'Calc | Exit Fees'!N$109) -> 0 | K138: =IF($D136=0,0,'Calc | Exit Fees'!O$109) -> 0
E139: =IF($D136=0,"",E$121) ->  | G139: =IF($D136=0,0,'Input | Exit Fees'!K$119) -> 0 | H139: =IF($D136=0,0,'Input | Exit Fees'!L$119) -> 0 | I139: =IF($D136=0,0,'Input | Exit Fees'!M$119) -> 0 | J139: =IF($D136=0,0,'Input | Exit Fees'!N$119) -> 0 | K139: =IF($D136=0,0,'Input | Exit Fees'!O$119) -> 0
E141: =IF($D136=0,"",E$123) ->  | F141: =IF(D136=0,0,'Input | Exit Fees'!G32) -> 0 | G141: =SUM(G137:G140) -> 0 | H141: =SUM(H137:H140) -> 0 | I141: 0 | J141: 0 | K141: 0
C142: 5 | D142: ='Input | Exit Fees'!D33 -> 0
E143: =IF($D142=0,"",E$119) ->  | G143: =IF($D142=0,0,SUMIFS('Calc | Exit Fees'!K$92:K$101,'Input | Exit Fees'!$D$29:$D$38,$D142)) -> 0 | H143: =IF($D142=0,0,SUMIFS('Calc | Exit Fees'!L$92:L$101,'Input | Exit Fees'!$D$29:$D$38,$D142)) -> 0 | I143: =IF($D142=0,0,SUMIFS('Calc | Exit Fees'!M$92:M$101,'Input | Exit Fees'!$D$29:$D$38,$D142)) -> 0 | J143: =IF($D142=0,0,SUMIFS('Calc | Exit Fees'!N$92:N$101,'Input | Exit Fees'!$D$29:$D$38,$D142)) -> 0 | K143: =IF($D142=0,0,SUMIFS('Calc | Exit Fees'!O$92:O$101,'Input | Exit Fees'!$D$29:$D$38,$D142)) -> 0
E144: =IF($D142=0,"",E$120) ->  | G144: =IF($D142=0,0,'Calc | Exit Fees'!K$109) -> 0 | H144: =IF($D142=0,0,'Calc | Exit Fees'!L$109) -> 0 | I144: =IF($D142=0,0,'Calc | Exit Fees'!M$109) -> 0 | J144: =IF($D142=0,0,'Calc | Exit Fees'!N$109) -> 0 | K144: =IF($D142=0,0,'Calc | Exit Fees'!O$109) -> 0
E145: =IF($D142=0,"",E$121) ->  | G145: =IF($D142=0,0,'Input | Exit Fees'!K$119) -> 0 | H145: =IF($D142=0,0,'Input | Exit Fees'!L$119) -> 0 | I145: =IF($D142=0,0,'Input | Exit Fees'!M$119) -> 0 | J145: =IF($D142=0,0,'Input | Exit Fees'!N$119) -> 0 | K145: =IF($D142=0,0,'Input | Exit Fees'!O$119) -> 0
E147: =IF($D142=0,"",E$123) ->  | F147: =IF(D142=0,0,'Input | Exit Fees'!G33) -> 0 | G147: =SUM(G143:G146) -> 0 | H147: =SUM(H143:H146) -> 0 | I147: 0 | J147: 0 | K147: 0
C148: 6 | D148: ='Input | Exit Fees'!D34 -> 0
E149: =IF($D148=0,"",E$119) ->  | G149: =IF($D148=0,0,SUMIFS('Calc | Exit Fees'!K$92:K$101,'Input | Exit Fees'!$D$29:$D$38,$D148)) -> 0 | H149: =IF($D148=0,0,SUMIFS('Calc | Exit Fees'!L$92:L$101,'Input | Exit Fees'!$D$29:$D$38,$D148)) -> 0 | I149: =IF($D148=0,0,SUMIFS('Calc | Exit Fees'!M$92:M$101,'Input | Exit Fees'!$D$29:$D$38,$D148)) -> 0 | J149: =IF($D148=0,0,SUMIFS('Calc | Exit Fees'!N$92:N$101,'Input | Exit Fees'!$D$29:$D$38,$D148)) -> 0 | K149: =IF($D148=0,0,SUMIFS('Calc | Exit Fees'!O$92:O$101,'Input | Exit Fees'!$D$29:$D$38,$D148)) -> 0
E150: =IF($D148=0,"",E$120) ->  | G150: =IF($D148=0,0,'Calc | Exit Fees'!K$109) -> 0 | H150: =IF($D148=0,0,'Calc | Exit Fees'!L$109) -> 0 | I150: =IF($D148=0,0,'Calc | Exit Fees'!M$109) -> 0 | J150: =IF($D148=0,0,'Calc | Exit Fees'!N$109) -> 0 | K150: =IF($D148=0,0,'Calc | Exit Fees'!O$109) -> 0
E151: =IF($D148=0,"",E$121) ->  | G151: =IF($D148=0,0,'Input | Exit Fees'!K$119) -> 0 | H151: =IF($D148=0,0,'Input | Exit Fees'!L$119) -> 0 | I151: =IF($D148=0,0,'Input | Exit Fees'!M$119) -> 0 | J151: =IF($D148=0,0,'Input | Exit Fees'!N$119) -> 0 | K151: =IF($D148=0,0,'Input | Exit Fees'!O$119) -> 0
E153: =IF($D148=0,"",E$123) ->  | F153: =IF(D148=0,0,'Input | Exit Fees'!G34) -> 0 | G153: =SUM(G149:G152) -> 0 | H153: =SUM(H149:H152) -> 0 | I153: 0 | J153: 0 | K153: 0
C154: 7 | D154: ='Input | Exit Fees'!D35 -> 0
E155: =IF($D154=0,"",E$119) ->  | G155: =IF($D154=0,0,SUMIFS('Calc | Exit Fees'!K$92:K$101,'Input | Exit Fees'!$D$29:$D$38,$D154)) -> 0 | H155: =IF($D154=0,0,SUMIFS('Calc | Exit Fees'!L$92:L$101,'Input | Exit Fees'!$D$29:$D$38,$D154)) -> 0 | I155: =IF($D154=0,0,SUMIFS('Calc | Exit Fees'!M$92:M$101,'Input | Exit Fees'!$D$29:$D$38,$D154)) -> 0 | J155: =IF($D154=0,0,SUMIFS('Calc | Exit Fees'!N$92:N$101,'Input | Exit Fees'!$D$29:$D$38,$D154)) -> 0 | K155: =IF($D154=0,0,SUMIFS('Calc | Exit Fees'!O$92:O$101,'Input | Exit Fees'!$D$29:$D$38,$D154)) -> 0
E156: =IF($D154=0,"",E$120) ->  | G156: =IF($D154=0,0,'Calc | Exit Fees'!K$109) -> 0 | H156: =IF($D154=0,0,'Calc | Exit Fees'!L$109) -> 0 | I156: =IF($D154=0,0,'Calc | Exit Fees'!M$109) -> 0 | J156: =IF($D154=0,0,'Calc | Exit Fees'!N$109) -> 0 | K156: =IF($D154=0,0,'Calc | Exit Fees'!O$109) -> 0
E157: =IF($D154=0,"",E$121) ->  | G157: =IF($D154=0,0,'Input | Exit Fees'!K$119) -> 0 | H157: =IF($D154=0,0,'Input | Exit Fees'!L$119) -> 0 | I157: =IF($D154=0,0,'Input | Exit Fees'!M$119) -> 0 | J157: =IF($D154=0,0,'Input | Exit Fees'!N$119) -> 0 | K157: =IF($D154=0,0,'Input | Exit Fees'!O$119) -> 0
E159: =IF($D154=0,"",E$123) ->  | F159: =IF(D154=0,0,'Input | Exit Fees'!G35) -> 0 | G159: =SUM(G155:G158) -> 0 | H159: =SUM(H155:H158) -> 0 | I159: 0 | J159: 0 | K159: 0
C160: 8 | D160: ='Input | Exit Fees'!D36 -> 0
E161: =IF($D160=0,"",E$119) ->  | G161: =IF($D160=0,0,SUMIFS('Calc | Exit Fees'!K$92:K$101,'Input | Exit Fees'!$D$29:$D$38,$D160)) -> 0 | H161: =IF($D160=0,0,SUMIFS('Calc | Exit Fees'!L$92:L$101,'Input | Exit Fees'!$D$29:$D$38,$D160)) -> 0 | I161: =IF($D160=0,0,SUMIFS('Calc | Exit Fees'!M$92:M$101,'Input | Exit Fees'!$D$29:$D$38,$D160)) -> 0 | J161: =IF($D160=0,0,SUMIFS('Calc | Exit Fees'!N$92:N$101,'Input | Exit Fees'!$D$29:$D$38,$D160)) -> 0 | K161: =IF($D160=0,0,SUMIFS('Calc | Exit Fees'!O$92:O$101,'Input | Exit Fees'!$D$29:$D$38,$D160)) -> 0
E162: =IF($D160=0,"",E$120) ->  | G162: =IF($D160=0,0,'Calc | Exit Fees'!K$109) -> 0 | H162: =IF($D160=0,0,'Calc | Exit Fees'!L$109) -> 0 | I162: =IF($D160=0,0,'Calc | Exit Fees'!M$109) -> 0 | J162: =IF($D160=0,0,'Calc | Exit Fees'!N$109) -> 0 | K162: =IF($D160=0,0,'Calc | Exit Fees'!O$109) -> 0
E163: =IF($D160=0,"",E$121) ->  | G163: =IF($D160=0,0,'Input | Exit Fees'!K$119) -> 0 | H163: =IF($D160=0,0,'Input | Exit Fees'!L$119) -> 0 | I163: =IF($D160=0,0,'Input | Exit Fees'!M$119) -> 0 | J163: =IF($D160=0,0,'Input | Exit Fees'!N$119) -> 0 | K163: =IF($D160=0,0,'Input | Exit Fees'!O$119) -> 0
E165: =IF($D160=0,"",E$123) ->  | F165: =IF(D160=0,0,'Input | Exit Fees'!G36) -> 0 | G165: =SUM(G161:G164) -> 0 | H165: =SUM(H161:H164) -> 0 | I165: 0 | J165: 0 | K165: 0
C166: 9 | D166: ='Input | Exit Fees'!D37 -> 0
E167: =IF($D166=0,"",E$119) ->  | G167: =IF($D166=0,0,SUMIFS('Calc | Exit Fees'!K$92:K$101,'Input | Exit Fees'!$D$29:$D$38,$D166)) -> 0 | H167: =IF($D166=0,0,SUMIFS('Calc | Exit Fees'!L$92:L$101,'Input | Exit Fees'!$D$29:$D$38,$D166)) -> 0 | I167: =IF($D166=0,0,SUMIFS('Calc | Exit Fees'!M$92:M$101,'Input | Exit Fees'!$D$29:$D$38,$D166)) -> 0 | J167: =IF($D166=0,0,SUMIFS('Calc | Exit Fees'!N$92:N$101,'Input | Exit Fees'!$D$29:$D$38,$D166)) -> 0 | K167: =IF($D166=0,0,SUMIFS('Calc | Exit Fees'!O$92:O$101,'Input | Exit Fees'!$D$29:$D$38,$D166)) -> 0
E168: =IF($D166=0,"",E$120) ->  | G168: =IF($D166=0,0,'Calc | Exit Fees'!K$109) -> 0 | H168: =IF($D166=0,0,'Calc | Exit Fees'!L$109) -> 0 | I168: =IF($D166=0,0,'Calc | Exit Fees'!M$109) -> 0 | J168: =IF($D166=0,0,'Calc | Exit Fees'!N$109) -> 0 | K168: =IF($D166=0,0,'Calc | Exit Fees'!O$109) -> 0
E169: =IF($D166=0,"",E$121) ->  | G169: =IF($D166=0,0,'Input | Exit Fees'!K$119) -> 0 | H169: =IF($D166=0,0,'Input | Exit Fees'!L$119) -> 0 | I169: =IF($D166=0,0,'Input | Exit Fees'!M$119) -> 0 | J169: =IF($D166=0,0,'Input | Exit Fees'!N$119) -> 0 | K169: =IF($D166=0,0,'Input | Exit Fees'!O$119) -> 0
E171: =IF($D166=0,"",E$123) ->  | F171: =IF(D166=0,0,'Input | Exit Fees'!G37) -> 0 | G171: =SUM(G167:G170) -> 0 | H171: =SUM(H167:H170) -> 0 | I171: 0 | J171: 0 | K171: 0
C172: 10 | D172: ='Input | Exit Fees'!D38 -> 0
E173: =IF($D172=0,"",E$119) ->  | G173: =IF($D172=0,0,SUMIFS('Calc | Exit Fees'!K$92:K$101,'Input | Exit Fees'!$D$29:$D$38,$D172)) -> 0 | H173: =IF($D172=0,0,SUMIFS('Calc | Exit Fees'!L$92:L$101,'Input | Exit Fees'!$D$29:$D$38,$D172)) -> 0 | I173: =IF($D172=0,0,SUMIFS('Calc | Exit Fees'!M$92:M$101,'Input | Exit Fees'!$D$29:$D$38,$D172)) -> 0 | J173: =IF($D172=0,0,SUMIFS('Calc | Exit Fees'!N$92:N$101,'Input | Exit Fees'!$D$29:$D$38,$D172)) -> 0 | K173: =IF($D172=0,0,SUMIFS('Calc | Exit Fees'!O$92:O$101,'Input | Exit Fees'!$D$29:$D$38,$D172)) -> 0
E174: =IF($D172=0,"",E$120) ->  | G174: =IF($D172=0,0,'Calc | Exit Fees'!K$109) -> 0 | H174: =IF($D172=0,0,'Calc | Exit Fees'!L$109) -> 0 | I174: =IF($D172=0,0,'Calc | Exit Fees'!M$109) -> 0 | J174: =IF($D172=0,0,'Calc | Exit Fees'!N$109) -> 0 | K174: =IF($D172=0,0,'Calc | Exit Fees'!O$109) -> 0
E175: =IF($D172=0,"",E$121) ->  | G175: =IF($D172=0,0,'Input | Exit Fees'!K$119) -> 0 | H175: =IF($D172=0,0,'Input | Exit Fees'!L$119) -> 0 | I175: =IF($D172=0,0,'Input | Exit Fees'!M$119) -> 0 | J175: =IF($D172=0,0,'Input | Exit Fees'!N$119) -> 0 | K175: =IF($D172=0,0,'Input | Exit Fees'!O$119) -> 0
E177: =IF($D172=0,"",E$123) ->  | F177: =IF(D172=0,0,'Input | Exit Fees'!G38) -> 0 | G177: =SUM(G173:G176) -> 0 | H177: =SUM(H173:H176) -> 0 | I177: 0 | J177: 0 | K177: 0

Sheet Output | Exit Fee price caps
B1: ='Title Page'!B8&" v"&'Title Page'!$C$10 -> Final Standardised Metering Pricing Model v1.02 | M1: DNSP: | N1: D
B2: =MID(CELL("filename",A1),FIND("]",CELL("filename",A1))+1,255) -> Output | Exit Fee price caps | H2: Key: | I2: Input | J2: External Link | K2: Internal Link
C5: Applicable Exit Fees Price Caps
H7: Base Year | I7: Regulatory Period
D8: Exit Fee Name | F8: Units | G8: Basis | H8: =LEFT(I8,4)-1&"-"&RIGHT(I8,2)-1 -> 2023-24 | I8: =FPFirstYear -> 2024-25 | J8: =LEFT(I8,4)+1&"-"&RIGHT(I8,2)+1 -> 2025-26 | K8: =LEFT(J8,4)+1&"-"&RIGHT(J8,2)+1 -> 2026-27 | L8: 2027-28 | M8: 2028-29
D9: =D25 -> 0 | F9: $dollars | G9: nominal | H9: =ROUND(H25,2) -> 0 | I9: =IF(I25=0,0,ROUND(H9*(1-I45)*(1+I$41),2)) -> 0 | J9: 0 | K9: 0 | L9: 0 | M9: 0
D10: =D26 -> 0 | F10: $dollars | G10: nominal | H10: 0 | I10: 0 | J10: 0 | K10: 0 | L10: 0 | M10: 0
D11: 0 | F11: $dollars | G11: nominal | H11: =ROUND(H27,2) -> 0 | I11: =IF(I27=0,0,ROUND(H11*(1-I47)*(1+I$41),2)) -> 0 | J11: =IF(J27=0,0,ROUND(I11*(1-J47)*(1+J$41),2)) -> 0 | K11: 0 | L11: 0 | M11: 0
D12: 0 | F12: $dollars | G12: nominal | H12: 0 | I12: 0 | J12: 0 | K12: 0 | L12: 0 | M12: 0
D13: 0 | F13: $dollars | G13: nominal | H13: 0 | I13: 0 | J13: 0 | K13: 0 | L13: 0 | M13: 0
D14: 0 | F14: $dollars | G14: nominal | H14: 0 | I14: 0 | J14: 0 | K14: 0 | L14: 0 | M14: 0
D15: 0 | F15: $dollars | G15: nominal | H15: 0 | I15: 0 | J15: 0 | K15: 0 | L15: 0 | M15: 0
D16: 0 | F16: $dollars | G16: nominal | H16: 0 | I16: 0 | J16: 0 | K16: 0 | L16: 0 | M16: 0
D17: 0 | F17: $dollars | G17: nominal | H17: 0 | I17: 0 | J17: 0 | K17: 0 | L17: 0 | M17: 0
D18: 0 | F18: $dollars | G18: nominal | H18: 0 | I18: 0 | J18: 0 | K18: 0 | L18: 0 | M18: 0
C21: Exit Fees Per Meter
H23: Base Year | I23: Regulatory Period
D24: Exit Fee Name | F24: Units | G24: Basis | H24: =LEFT(I24,4)-1&"-"&RIGHT(I24,2)-1 -> 2023-24 | I24: =FPFirstYear -> 2024-25 | J24: =LEFT(I24,4)+1&"-"&RIGHT(I24,2)+1 -> 2025-26 | K24: =LEFT(J24,4)+1&"-"&RIGHT(J24,2)+1 -> 2026-27 | L24: 2027-28 | M24: 2028-29
D25: ='Input | Exit Fees'!$D29 -> 0 | F25: $dollars | G25: nominal | H25: =INDEX(Table3[2020-21],MATCH('Output | Exit Fee price caps'!$D25,Table3[[Exit Fee Name]:[Exit Fee Name]],0)+5) -> 0 | I25: =INDEX(Table3[2021-22],MATCH('Output | Exit Fee price caps'!$D25,Table3[[Exit Fee Name]:[Exit Fee Name]],0)+5) -> 0 | J25: =INDEX(Table3[2022-23],MATCH('Output | Exit Fee price caps'!$D25,Table3[[Exit Fee Name]:[Exit Fee Name]],0)+5) -> 0 | K25: =INDEX(Table3[2023-24],MATCH('Output | Exit Fee price caps'!$D25,Table3[[Exit Fee Name]:[Exit Fee Name]],0)+5) -> 0 | L25: =INDEX(Table3[2024-25],MATCH('Output | Exit Fee price caps'!$D25,Table3[[Exit Fee Name]:[Exit Fee Name]],0)+5) -> 0 | M25: =INDEX(Table3[2025-26],MATCH('Output | Exit Fee price caps'!$D25,Table3[[Exit Fee Name]:[Exit Fee Name]],0)+5) -> 0
D26: ='Input | Exit Fees'!$D30 -> 0 | F26: $dollars | G26: nominal | H26: =INDEX(Table3[2020-21],MATCH('Output | Exit Fee price caps'!$D26,Table3[[Exit Fee Name]:[Exit Fee Name]],0)+5) -> 0 | I26: =INDEX(Table3[2021-22],MATCH('Output | Exit Fee price caps'!$D26,Table3[[Exit Fee Name]:[Exit Fee Name]],0)+5) -> 0 | J26: =INDEX(Table3[2022-23],MATCH('Output | Exit Fee price caps'!$D26,Table3[[Exit Fee Name]:[Exit Fee Name]],0)+5) -> 0 | K26: =INDEX(Table3[2023-24],MATCH('Output | Exit Fee price caps'!$D26,Table3[[Exit Fee Name]:[Exit Fee Name]],0)+5) -> 0 | L26: =INDEX(Table3[2024-25],MATCH('Output | Exit Fee price caps'!$D26,Table3[[Exit Fee Name]:[Exit Fee Name]],0)+5) -> 0 | M26: =INDEX(Table3[2025-26],MATCH('Output | Exit Fee price caps'!$D26,Table3[[Exit Fee Name]:[Exit Fee Name]],0)+5) -> 0
D27: ='Input | Exit Fees'!$D31 -> 0 | F27: $dollars | G27: nominal | H27: =INDEX(Table3[2020-21],MATCH('Output | Exit Fee price caps'!$D27,Table3[[Exit Fee Name]:[Exit Fee Name]],0)+5) -> 0 | I27: =INDEX(Table3[2021-22],MATCH('Output | Exit Fee price caps'!$D27,Table3[[Exit Fee Name]:[Exit Fee Name]],0)+5) -> 0 | J27: =INDEX(Table3[2022-23],MATCH('Output | Exit Fee price caps'!$D27,Table3[[Exit Fee Name]:[Exit Fee Name]],0)+5) -> 0 | K27: =INDEX(Table3[2023-24],MATCH('Output | Exit Fee price caps'!$D27,Table3[[Exit Fee Name]:[Exit Fee Name]],0)+5) -> 0 | L27: =INDEX(Table3[2024-25],MATCH('Output | Exit Fee price caps'!$D27,Table3[[Exit Fee Name]:[Exit Fee Name]],0)+5) -> 0 | M27: =INDEX(Table3[2025-26],MATCH('Output | Exit Fee price caps'!$D27,Table3[[Exit Fee Name]:[Exit Fee Name]],0)+5) -> 0
D28: ='Input | Exit Fees'!$D32 -> 0 | F28: $dollars | G28: nominal | H28: =INDEX(Table3[2020-21],MATCH('Output | Exit Fee price caps'!$D28,Table3[[Exit Fee Name]:[Exit Fee Name]],0)+5) -> 0 | I28: =INDEX(Table3[2021-22],MATCH('Output | Exit Fee price caps'!$D28,Table3[[Exit Fee Name]:[Exit Fee Name]],0)+5) -> 0 | J28: =INDEX(Table3[2022-23],MATCH('Output | Exit Fee price caps'!$D28,Table3[[Exit Fee Name]:[Exit Fee Name]],0)+5) -> 0 | K28: =INDEX(Table3[2023-24],MATCH('Output | Exit Fee price caps'!$D28,Table3[[Exit Fee Name]:[Exit Fee Name]],0)+5) -> 0 | L28: =INDEX(Table3[2024-25],MATCH('Output | Exit Fee price caps'!$D28,Table3[[Exit Fee Name]:[Exit Fee Name]],0)+5) -> 0 | M28: =INDEX(Table3[2025-26],MATCH('Output | Exit Fee price caps'!$D28,Table3[[Exit Fee Name]:[Exit Fee Name]],0)+5) -> 0
D29: ='Input | Exit Fees'!$D33 -> 0 | F29: $dollars | G29: nominal | H29: =INDEX(Table3[2020-21],MATCH('Output | Exit Fee price caps'!$D29,Table3[[Exit Fee Name]:[Exit Fee Name]],0)+5) -> 0 | I29: =INDEX(Table3[2021-22],MATCH('Output | Exit Fee price caps'!$D29,Table3[[Exit Fee Name]:[Exit Fee Name]],0)+5) -> 0 | J29: =INDEX(Table3[2022-23],MATCH('Output | Exit Fee price caps'!$D29,Table3[[Exit Fee Name]:[Exit Fee Name]],0)+5) -> 0 | K29: =INDEX(Table3[2023-24],MATCH('Output | Exit Fee price caps'!$D29,Table3[[Exit Fee Name]:[Exit Fee Name]],0)+5) -> 0 | L29: =INDEX(Table3[2024-25],MATCH('Output | Exit Fee price caps'!$D29,Table3[[Exit Fee Name]:[Exit Fee Name]],0)+5) -> 0 | M29: =INDEX(Table3[2025-26],MATCH('Output | Exit Fee price caps'!$D29,Table3[[Exit Fee Name]:[Exit Fee Name]],0)+5) -> 0
D30: ='Input | Exit Fees'!$D34 -> 0 | F30: $dollars | G30: nominal | H30: =INDEX(Table3[2020-21],MATCH('Output | Exit Fee price caps'!$D30,Table3[[Exit Fee Name]:[Exit Fee Name]],0)+5) -> 0 | I30: =INDEX(Table3[2021-22],MATCH('Output | Exit Fee price caps'!$D30,Table3[[Exit Fee Name]:[Exit Fee Name]],0)+5) -> 0 | J30: =INDEX(Table3[2022-23],MATCH('Output | Exit Fee price caps'!$D30,Table3[[Exit Fee Name]:[Exit Fee Name]],0)+5) -> 0 | K30: =INDEX(Table3[2023-24],MATCH('Output | Exit Fee price caps'!$D30,Table3[[Exit Fee Name]:[Exit Fee Name]],0)+5) -> 0 | L30: =INDEX(Table3[2024-25],MATCH('Output | Exit Fee price caps'!$D30,Table3[[Exit Fee Name]:[Exit Fee Name]],0)+5) -> 0 | M30: =INDEX(Table3[2025-26],MATCH('Output | Exit Fee price caps'!$D30,Table3[[Exit Fee Name]:[Exit Fee Name]],0)+5) -> 0
D31: ='Input | Exit Fees'!$D35 -> 0 | F31: $dollars | G31: nominal | H31: =INDEX(Table3[2020-21],MATCH('Output | Exit Fee price caps'!$D31,Table3[[Exit Fee Name]:[Exit Fee Name]],0)+5) -> 0 | I31: =INDEX(Table3[2021-22],MATCH('Output | Exit Fee price caps'!$D31,Table3[[Exit Fee Name]:[Exit Fee Name]],0)+5) -> 0 | J31: =INDEX(Table3[2022-23],MATCH('Output | Exit Fee price caps'!$D31,Table3[[Exit Fee Name]:[Exit Fee Name]],0)+5) -> 0 | K31: =INDEX(Table3[2023-24],MATCH('Output | Exit Fee price caps'!$D31,Table3[[Exit Fee Name]:[Exit Fee Name]],0)+5) -> 0 | L31: =INDEX(Table3[2024-25],MATCH('Output | Exit Fee price caps'!$D31,Table3[[Exit Fee Name]:[Exit Fee Name]],0)+5) -> 0 | M31: =INDEX(Table3[2025-26],MATCH('Output | Exit Fee price caps'!$D31,Table3[[Exit Fee Name]:[Exit Fee Name]],0)+5) -> 0
D32: ='Input | Exit Fees'!$D36 -> 0 | F32: $dollars | G32: nominal | H32: =INDEX(Table3[2020-21],MATCH('Output | Exit Fee price caps'!$D32,Table3[[Exit Fee Name]:[Exit Fee Name]],0)+5) -> 0 | I32: =INDEX(Table3[2021-22],MATCH('Output | Exit Fee price caps'!$D32,Table3[[Exit Fee Name]:[Exit Fee Name]],0)+5) -> 0 | J32: =INDEX(Table3[2022-23],MATCH('Output | Exit Fee price caps'!$D32,Table3[[Exit Fee Name]:[Exit Fee Name]],0)+5) -> 0 | K32: =INDEX(Table3[2023-24],MATCH('Output | Exit Fee price caps'!$D32,Table3[[Exit Fee Name]:[Exit Fee Name]],0)+5) -> 0 | L32: =INDEX(Table3[2024-25],MATCH('Output | Exit Fee price caps'!$D32,Table3[[Exit Fee Name]:[Exit Fee Name]],0)+5) -> 0 | M32: =INDEX(Table3[2025-26],MATCH('Output | Exit Fee price caps'!$D32,Table3[[Exit Fee Name]:[Exit Fee Name]],0)+5) -> 0
D33: ='Input | Exit Fees'!$D37 -> 0 | F33: $dollars | G33: nominal | H33: =INDEX(Table3[2020-21],MATCH('Output | Exit Fee price caps'!$D33,Table3[[Exit Fee Name]:[Exit Fee Name]],0)+5) -> 0 | I33: =INDEX(Table3[2021-22],MATCH('Output | Exit Fee price caps'!$D33,Table3[[Exit Fee Name]:[Exit Fee Name]],0)+5) -> 0 | J33: =INDEX(Table3[2022-23],MATCH('Output | Exit Fee price caps'!$D33,Table3[[Exit Fee Name]:[Exit Fee Name]],0)+5) -> 0 | K33: =INDEX(Table3[2023-24],MATCH('Output | Exit Fee price caps'!$D33,Table3[[Exit Fee Name]:[Exit Fee Name]],0)+5) -> 0 | L33: =INDEX(Table3[2024-25],MATCH('Output | Exit Fee price caps'!$D33,Table3[[Exit Fee Name]:[Exit Fee Name]],0)+5) -> 0 | M33: =INDEX(Table3[2025-26],MATCH('Output | Exit Fee price caps'!$D33,Table3[[Exit Fee Name]:[Exit Fee Name]],0)+5) -> 0
D34: ='Input | Exit Fees'!$D38 -> 0 | F34: $dollars | G34: nominal | H34: =INDEX(Table3[2020-21],MATCH('Output | Exit Fee price caps'!$D34,Table3[[Exit Fee Name]:[Exit Fee Name]],0)+5) -> 0 | I34: =INDEX(Table3[2021-22],MATCH('Output | Exit Fee price caps'!$D34,Table3[[Exit Fee Name]:[Exit Fee Name]],0)+5) -> 0 | J34: =INDEX(Table3[2022-23],MATCH('Output | Exit Fee price caps'!$D34,Table3[[Exit Fee Name]:[Exit Fee Name]],0)+5) -> 0 | K34: =INDEX(Table3[2023-24],MATCH('Output | Exit Fee price caps'!$D34,Table3[[Exit Fee Name]:[Exit Fee Name]],0)+5) -> 0 | L34: =INDEX(Table3[2024-25],MATCH('Output | Exit Fee price caps'!$D34,Table3[[Exit Fee Name]:[Exit Fee Name]],0)+5) -> 0 | M34: =INDEX(Table3[2025-26],MATCH('Output | Exit Fee price caps'!$D34,Table3[[Exit Fee Name]:[Exit Fee Name]],0)+5) -> 0
C39: Xfactors
D41: CPI | F41: % | I41: ='Inputs | General'!H26 -> 0.03348252263 | J41: ='Inputs | General'!I26 -> 0.03348252263 | K41: ='Inputs | General'!J26 -> 0.03348252263 | L41: ='Inputs | General'!K26 -> 0.03348252263 | M41: ='Inputs | General'!L26 -> 0.03348252263
I43: =FPFirstYear -> 2024-25 | J43: =LEFT(I43,4)+1&"-"&RIGHT(I43,2)+1 -> 2025-26 | K43: =LEFT(J43,4)+1&"-"&RIGHT(J43,2)+1 -> 2026-27 | L43: =LEFT(K43,4)+1&"-"&RIGHT(K43,2)+1 -> 2027-28 | M43: =LEFT(L43,4)+1&"-"&RIGHT(L43,2)+1 -> 2028-29
D44: Exit Fee Name | F44: Units | I44: P_0 | J44: X_02 | K44: X_03 | L44: X_04 | M44: X_05
D45: ='Input | Exit Fees'!$D29 -> 0 | F45: % | I45: =IFERROR(-1*(((I25/H25)/(1+I$41)-1)),"") -> 
D46: ='Input | Exit Fees'!$D30 -> 0 | F46: %
D47: ='Input | Exit Fees'!$D31 -> 0 | F47: %
D48: ='Input | Exit Fees'!$D32 -> 0 | F48: %
D49: ='Input | Exit Fees'!$D33 -> 0 | F49: %
D50: ='Input | Exit Fees'!$D34 -> 0 | F50: %
D51: ='Input | Exit Fees'!$D35 -> 0 | F51: %
D52: ='Input | Exit Fees'!$D36 -> 0 | F52: %
D53: ='Input | Exit Fees'!$D37 -> 0 | F53: %
D54: ='Input | Exit Fees'!$D38 -> 0 | F54: %
C58: Cost Metric
H60: Base Year | I60: Regulatory Period
D61: Exit Fee Per Meter | F61: Units | G61: Basis | H61: =LEFT(I61,4)-1&"-"&RIGHT(I61,2)-1 -> 2023-24 | I61: =FPFirstYear -> 2024-25 | J61: =LEFT(I61,4)+1&"-"&RIGHT(I61,2)+1 -> 2025-26 | K61: =LEFT(J61,4)+1&"-"&RIGHT(J61,2)+1 -> 2026-27 | L61: 2027-28 | M61: 2028-29
D62: Volume Weighted Average Exit Fee - Per Meter | F62: $dollars | G62: nominal | H62: =SUMPRODUCT(H$25:H$34,'Calc | Exit Fees'!J$31:J$40)/'Calc | Exit Fees'!J$41 ->  | I62: =SUMPRODUCT(I$25:I$34,'Calc | Exit Fees'!K$31:K$40)/'Calc | Exit Fees'!K$41 ->  | J62: =SUMPRODUCT(J$25:J$34,'Calc | Exit Fees'!L$31:L$40)/'Calc | Exit Fees'!L$41 ->  | K62: =SUMPRODUCT(K$25:K$34,'Calc | Exit Fees'!M$31:M$40)/'Calc | Exit Fees'!M$41 ->  | L62: =SUMPRODUCT(L$25:L$34,'Calc | Exit Fees'!N$31:N$40)/'Calc | Exit Fees'!N$41 ->  | M62: =SUMPRODUCT(M$25:M$34,'Calc | Exit Fees'!O$31:O$40)/'Calc | Exit Fees'!O$41 -> 

Sheet LUTs and Dropdowns
B1: ='Title Page'!B8&" v"&'Title Page'!$C$10 -> Final Standardised Metering Pricing Model v1.02
B2: =MID(CELL("filename",A1),FIND("]",CELL("filename",A1))+1,255) -> LUTs and Dropdowns
B14: Model Use
B15: Price Cap
B16: Exit Fees (Vic)
B17: Show All Sheets
B20: Admin Charges
B21: Entered
B22: Calc-Fixed
B23: Calc-Hourly
